NUMERO_MANDATO;RIGA_MANDATO;IMPORTO_RIGA;IMPORTO_MANDATO;BENEFICIARIO;CIG;TITOLO_PAGAMENTO;DATA_MANDATO;CAPITOLO;ARTICOLO;NUMERO_IMPEGNO;TITOLO;DESCR_TITOLO;LIVELLO_II;DESCR_LIVELLO_II;LIVELLO_III;DESCR_LIVELLO_III;LIVELLO_IV;DESCR_LIVELLO_IV;LIVELLO_V;DESCR_LIVELLO_V;DATA_PAG_EFF;
2;1;"14.582,19";"14.582,19";CASSA DEPOSITI E PRESTITI; ;"Quota  Interesse Ammortam. Mutuo di         29.619,98 x Anno 2016 - 2 semestre 2016";04-01-2017;108106;2;141;1;Spese correnti;7;Interessi passivi;5;Interessi su Mutui e altri finanziamenti a medio lungo termine;5;Interessi passivi su mutui e altri finanziamenti a medio lungo termine ad altri soggetti;999;Interessi passivi su mutui e altri finanziamenti a medio lungo termine ad altri soggetti;2017-01-04;
3;1;"6.723,05";"6.723,05";CASSA DEPOSITI E PRESTITI; ;"Quota  Interesse Ammortam. Mutuo di         13.664,92 x Anno 2016 - 2 semestre";04-01-2017;109406;1;142;1;Spese correnti;7;Interessi passivi;5;Interessi su Mutui e altri finanziamenti a medio lungo termine;5;Interessi passivi su mutui e altri finanziamenti a medio lungo termine ad altri soggetti;999;Interessi passivi su mutui e altri finanziamenti a medio lungo termine ad altri soggetti;2017-01-04;
4;1;"89,92";"89,92";CASSA DEPOSITI E PRESTITI; ;"Quota  Interesse Ammortam. Mutuo di            263,76 x Anno 2016 - 2 semestre";04-01-2017;110506;1;143;1;Spese correnti;7;Interessi passivi;5;Interessi su Mutui e altri finanziamenti a medio lungo termine;5;Interessi passivi su mutui e altri finanziamenti a medio lungo termine ad altri soggetti;999;Interessi passivi su mutui e altri finanziamenti a medio lungo termine ad altri soggetti;2017-01-04;
5;1;"37,00";"97,26";ECONOMO COMUNALE; ;SERVIZIO ECONOMATO 2016 BUONO N.  15;16-01-2017;103102;6;257;1;Spese correnti;3;Acquisto di beni e servizi;1;Acquisto di beni;2;Altri beni di consumo;999;Altri beni e materiali di consumo n.a.c.;2017-01-16;
5;2;"34,40";"97,26";ECONOMO COMUNALE; ;SERVIZIO ECONOMATO 2016 BUONO N. 12 -;16-01-2017;103102;6;257;1;Spese correnti;3;Acquisto di beni e servizi;1;Acquisto di beni;2;Altri beni di consumo;999;Altri beni e materiali di consumo n.a.c.;2017-01-16;
5;3;"26,86";"97,26";ECONOMO COMUNALE; ;SERVIZIO ECONOMATO 2016 BUONO N. 13 -;16-01-2017;103102;6;257;1;Spese correnti;3;Acquisto di beni e servizi;1;Acquisto di beni;2;Altri beni di consumo;999;Altri beni e materiali di consumo n.a.c.;2017-01-16;
7;1;"65,78";"65,78";ECONOMO COMUNALE; ;SERVIZIO ECONOMATO 2016 - BUONO N. 16 - N. 19 - N.21;16-01-2017;101802;1;95;1;Spese correnti;3;Acquisto di beni e servizi;1;Acquisto di beni;2;Altri beni di consumo;1;"Carta, cancelleria e stampati";2017-01-16;
8;1;"30,00";"30,00";ECONOMO COMUNALE; ;LAVAGGIO E MANODOPERA SOSTITUZIONE GOMME AUTOVETTURA IN DOTAZIONE ALLA POLIZIA LOCALE - ANNO 2016.;16-01-2017;103103;5;178;1;Spese correnti;3;Acquisto di beni e servizi;2;Acquisto di servizi;9;Manutenzione ordinaria e riparazioni;1;"Manutenzione ordinaria e riparazioni di mezzi di trasporto ad uso civile, di sicurezza e ordine pubblico";2017-01-16;
9;1;"84,02";"84,02";ECONOMO COMUNALE; ;SERVIZIO ECONOMATO 2016 -BUONO N. 18;16-01-2017;101102;4;311;1;Spese correnti;3;Acquisto di beni e servizi;1;Acquisto di beni;2;Altri beni di consumo;11;Generi alimentari;2017-01-16;
10;1;"2,70";"2,70";ECONOMO COMUNALE; ;SERVIZIO ECONOMATO 2016 BUONO N. 22;16-01-2017;101603;6;346;1;Spese correnti;3;Acquisto di beni e servizi;2;Acquisto di servizi;99;Altri servizi;999;Altri servizi diversi n.a.c.;2017-01-16;
11;1;"5,17";"8.550,86";IREN MERCATO S.P.A.;664780670D;SALDO Fatt.n. 011640110075  del 17/12/2016 EN.ELETTRICA ILL.PUBBLICA - AGO-NOV. 2016;19-01-2017;108203;1;155;1;Spese correnti;3;Acquisto di beni e servizi;2;Acquisto di servizi;5;Utenze e canoni;4;Energia elettrica;2017-01-19;
11;2;"8,80";"8.550,86";IREN MERCATO S.P.A.;664780670D;SALDO Fatt.n. 011640110109  del 17/12/2016 EN.ELETTRICA I.P. - CONGUAGLIO AGOSTO OTTOBRE 2016;19-01-2017;108203;1;155;1;Spese correnti;3;Acquisto di beni e servizi;2;Acquisto di servizi;5;Utenze e canoni;4;Energia elettrica;2017-01-19;
11;3;"11,71";"8.550,86";IREN MERCATO S.P.A.;664780670D;SALDO Fatt.n. 011640110076  del 17/12/2016 EN.ELETTRICA PER I.P. CONGUAGLIO AGOSTO NOVEMBRE 2016;19-01-2017;108203;1;155;1;Spese correnti;3;Acquisto di beni e servizi;2;Acquisto di servizi;5;Utenze e canoni;4;Energia elettrica;2017-01-19;
11;4;"21,36";"8.550,86";IREN MERCATO S.P.A.;664780670D;SALDO Fatt.n. 011640110087  del 17/12/2016 EN.ELETTRICA I.P. CONGUAGLIO AGOSTO  NOVEMBRE;19-01-2017;108203;1;155;1;Spese correnti;3;Acquisto di beni e servizi;2;Acquisto di servizi;5;Utenze e canoni;4;Energia elettrica;2017-01-19;
11;5;"35,28";"8.550,86";IREN MERCATO S.P.A.;664780670D;SALDO Fatt.n. 011640110099  del 17/12/2016 EN.ELETTRICA I.P. -CONGUAGLIO AGOSTO NOVEMBRE 2016;19-01-2017;108203;1;155;1;Spese correnti;3;Acquisto di beni e servizi;2;Acquisto di servizi;5;Utenze e canoni;4;Energia elettrica;2017-01-19;
11;6;"37,82";"8.550,86";IREN MERCATO S.P.A.;664780670D;SALDO Fatt.n. 011640110092  del 17/12/2016 EN.ELETTR. I.P. - CONGUAGLIO AGOSTO/NOVEMBRE 2016;19-01-2017;108203;1;155;1;Spese correnti;3;Acquisto di beni e servizi;2;Acquisto di servizi;5;Utenze e canoni;4;Energia elettrica;2017-01-19;
11;7;"46,29";"8.550,86";IREN MERCATO S.P.A.;664780670D;SALDO Fatt.n. 011640110094  del 17/12/2016 EN.ELETTRICA I.P. - AGO-NOV. 2016;19-01-2017;108203;1;155;1;Spese correnti;3;Acquisto di beni e servizi;2;Acquisto di servizi;5;Utenze e canoni;4;Energia elettrica;2017-01-19;
11;8;"87,56";"8.550,86";IREN MERCATO S.P.A.;664780670D;SALDO Fatt.n. 011640110084  del 17/12/2016 EN.ELETTRICA I.P. CONGUAGLIO;19-01-2017;108203;1;155;1;Spese correnti;3;Acquisto di beni e servizi;2;Acquisto di servizi;5;Utenze e canoni;4;Energia elettrica;2017-01-19;
11;9;"101,75";"8.550,86";IREN MERCATO S.P.A.;664780670D;SALDO Fatt.n. 011640110106  del 17/12/2016 EN.ELETTRICA I.P. -CONG.AGOSTO OTTOBRE 2016;19-01-2017;108203;1;155;1;Spese correnti;3;Acquisto di beni e servizi;2;Acquisto di servizi;5;Utenze e canoni;4;Energia elettrica;2017-01-19;
11;10;"119,60";"8.550,86";IREN MERCATO S.P.A.;664780670D;SALDO Fatt.n. 011640110072  del 17/12/2016 EN.ELETTRICA ILL.PUBBLICA - AGO-NOV. 2016;19-01-2017;108203;1;155;1;Spese correnti;3;Acquisto di beni e servizi;2;Acquisto di servizi;5;Utenze e canoni;4;Energia elettrica;2017-01-19;
11;11;"121,40";"8.550,86";IREN MERCATO S.P.A.;664780670D;SALDO Fatt.n. 011640110070  del 17/12/2016 EN.ELETTRICA I.P.  CONGUAGLIO AGO/NOVEMBRE 2016;19-01-2017;108203;1;155;1;Spese correnti;3;Acquisto di beni e servizi;2;Acquisto di servizi;5;Utenze e canoni;4;Energia elettrica;2017-01-19;
11;12;"123,20";"8.550,86";IREN MERCATO S.P.A.;664780670D;SALDO Fatt.n. 011640110101  del 17/12/2016 EN.ELETTRICA I.P. CONGUAGLIO AGOSTO NOVEMBRE;19-01-2017;108203;1;155;1;Spese correnti;3;Acquisto di beni e servizi;2;Acquisto di servizi;5;Utenze e canoni;4;Energia elettrica;2017-01-19;
11;13;"127,22";"8.550,86";IREN MERCATO S.P.A.;664780670D;SALDO Fatt.n. 011640110107  del 17/12/2016 ENERGIA ELETTRICA I.P. -CONGUAGLIO AGOSTO NOVEMBRE;19-01-2017;108203;1;155;1;Spese correnti;3;Acquisto di beni e servizi;2;Acquisto di servizi;5;Utenze e canoni;4;Energia elettrica;2017-01-19;
11;14;"150,83";"8.550,86";IREN MERCATO S.P.A.;664780670D;SALDO Fatt.n. 011640110071  del 17/12/2016 EN.ELETTRICA I.P. -AGO-NOV.;19-01-2017;108203;1;155;1;Spese correnti;3;Acquisto di beni e servizi;2;Acquisto di servizi;5;Utenze e canoni;4;Energia elettrica;2017-01-19;
11;15;"233,79";"8.550,86";IREN MERCATO S.P.A.;664780670D;SALDO Fatt.n. 011640110100  del 17/12/2016 EN.ELETTRICA I.P. - AGO-NOV.;19-01-2017;108203;1;155;1;Spese correnti;3;Acquisto di beni e servizi;2;Acquisto di servizi;5;Utenze e canoni;4;Energia elettrica;2017-01-19;
11;16;"244,60";"8.550,86";IREN MERCATO S.P.A.;664780670D;SALDO Fatt.n. 011640110093  del 17/12/2016 EN.ELETTRICA I.P. -AGO-NOV. 2016;19-01-2017;108203;1;155;1;Spese correnti;3;Acquisto di beni e servizi;2;Acquisto di servizi;5;Utenze e canoni;4;Energia elettrica;2017-01-19;
11;17;"280,62";"8.550,86";IREN MERCATO S.P.A.;664780670D;SALDO Fatt.n. 011640110095  del 17/12/2016 ENERGIA ELETTRICA - I.P. - AGO-NOV. 2016;19-01-2017;108203;1;155;1;Spese correnti;3;Acquisto di beni e servizi;2;Acquisto di servizi;5;Utenze e canoni;4;Energia elettrica;2017-01-19;
11;18;"342,92";"8.550,86";IREN MERCATO S.P.A.;664780670D;SALDO Fatt.n. 011640110089  del 17/12/2016 EN.ELETTRICA ILL.PUBBLICA - AGO-NOV.2016;19-01-2017;108203;1;155;1;Spese correnti;3;Acquisto di beni e servizi;2;Acquisto di servizi;5;Utenze e canoni;4;Energia elettrica;2017-01-19;
11;19;"399,07";"8.550,86";IREN MERCATO S.P.A.;664780670D;SALDO Fatt.n. 011640110074  del 17/12/2016 EN.ELETTRICA I.P. - CONGUAGLIO AGOSTO NOVEMBRE 2016 -;19-01-2017;108203;1;155;1;Spese correnti;3;Acquisto di beni e servizi;2;Acquisto di servizi;5;Utenze e canoni;4;Energia elettrica;2017-01-19;
11;20;"454,77";"8.550,86";IREN MERCATO S.P.A.;664780670D;SALDO Fatt.n. 011640110096  del 17/12/2016 EN.ELETTRICA PER I.P. - AGO-NOV. 2016;19-01-2017;108203;1;155;1;Spese correnti;3;Acquisto di beni e servizi;2;Acquisto di servizi;5;Utenze e canoni;4;Energia elettrica;2017-01-19;
11;21;"500,13";"8.550,86";IREN MERCATO S.P.A.;664780670D;SALDO Fatt.n. 011640110090  del 17/12/2016 EN.ELETTRICA I.P. - AGO-NOV. 2016;19-01-2017;108203;1;155;1;Spese correnti;3;Acquisto di beni e servizi;2;Acquisto di servizi;5;Utenze e canoni;4;Energia elettrica;2017-01-19;
11;22;"672,55";"8.550,86";IREN MERCATO S.P.A.;664780670D;SALDO Fatt.n. 011640110108  del 17/12/2016 EN.ELETTRICA I.P. -AGOSTO NOVEMBRE 2016;19-01-2017;108203;1;155;1;Spese correnti;3;Acquisto di beni e servizi;2;Acquisto di servizi;5;Utenze e canoni;4;Energia elettrica;2017-01-19;
11;23;"684,76";"8.550,86";IREN MERCATO S.P.A.;664780670D;SALDO Fatt.n. 011640110091  del 17/12/2016 EN.ELETTRICA ILL.PUBBLICA - AGO-NOV.;19-01-2017;108203;1;155;1;Spese correnti;3;Acquisto di beni e servizi;2;Acquisto di servizi;5;Utenze e canoni;4;Energia elettrica;2017-01-19;
11;24;"763,60";"8.550,86";IREN MERCATO S.P.A.;664780670D;SALDO Fatt.n. 011640110104  del 17/12/2016 EN.ELETTRICA I.P. AGOSTO NOVEMBRE 2016;19-01-2017;108203;1;155;1;Spese correnti;3;Acquisto di beni e servizi;2;Acquisto di servizi;5;Utenze e canoni;4;Energia elettrica;2017-01-19;
11;25;"907,08";"8.550,86";IREN MERCATO S.P.A.;664780670D;SALDO Fatt.n. 011640110085  del 17/12/2016 ENERGIA ELETTRICA I.P. CONGUAGLIO AGOSTO NOVEMBRE 2016;19-01-2017;108203;1;155;1;Spese correnti;3;Acquisto di beni e servizi;2;Acquisto di servizi;5;Utenze e canoni;4;Energia elettrica;2017-01-19;
11;26;"2.083,98";"8.550,86";IREN MERCATO S.P.A.;664780670D;SALDO Fatt.n. 011640110077  del 17/12/2016 EN.ELETTRICA I.P. AGO- NOV.;19-01-2017;108203;1;155;1;Spese correnti;3;Acquisto di beni e servizi;2;Acquisto di servizi;5;Utenze e canoni;4;Energia elettrica;2017-01-19;
12;1;"529,88";"529,88";IREN MERCATO S.P.A.;664780670D;SALDO Fatt.n. 011640110073  del 17/12/2016 EN.ELETTRICA UFFICI COM.LI - CONGUAGLIO AGO NOVEMBRE;19-01-2017;101803;7;147;1;Spese correnti;3;Acquisto di beni e servizi;2;Acquisto di servizi;5;Utenze e canoni;4;Energia elettrica;2017-01-19;
13;1;"47,20";"47,20";IREN MERCATO S.P.A.;664780670D;SALDO Fatt.n. 011640110102  del 17/12/2016 EN.ELETTRICA ALLOGGIO COMUNALE - AGO-NOV.;19-01-2017;101503;6;145;1;Spese correnti;3;Acquisto di beni e servizi;2;Acquisto di servizi;5;Utenze e canoni;4;Energia elettrica;2017-01-19;
14;1;"84,17";"84,17";IREN MERCATO S.P.A.;664780670D;SALDO Fatt.n. 011640110081  del 17/12/2016 EN.ELETTRICA MAGAZZINO - AGO-NOV. 2016;19-01-2017;108103;1;146;1;Spese correnti;3;Acquisto di beni e servizi;2;Acquisto di servizi;5;Utenze e canoni;4;Energia elettrica;2017-01-19;
15;1;"95,55";"500,58";IREN MERCATO S.P.A.;664780670D;SALDO Fatt.n. 011640110078  del 17/12/2016 EN.ELETTRICA SC.PRIMARIA - AGO-NOV.;19-01-2017;104203;2;148;1;Spese correnti;3;Acquisto di beni e servizi;2;Acquisto di servizi;5;Utenze e canoni;4;Energia elettrica;2017-01-19;
15;2;"142,15";"500,58";IREN MERCATO S.P.A.;664780670D;SALDO Fatt.n. 011640110079  del 17/12/2016 EN.ELETTRICA SC.PRIMARIA -CONGUAGLIO  AGO NOV.;19-01-2017;104203;2;148;1;Spese correnti;3;Acquisto di beni e servizi;2;Acquisto di servizi;5;Utenze e canoni;4;Energia elettrica;2017-01-19;
15;3;"263,88";"500,58";IREN MERCATO S.P.A.;664780670D;SALDO Fatt.n. 011640110083  del 17/12/2016 EN.ELETTRICA SC.PRIMARIA - AGO- NOV.;19-01-2017;104203;2;148;1;Spese correnti;3;Acquisto di beni e servizi;2;Acquisto di servizi;5;Utenze e canoni;4;Energia elettrica;2017-01-19;
16;1;"669,35";"669,35";IREN MERCATO S.P.A.;664780670D;SALDO Fatt.n. 011640110088  del 17/12/2016 EN.ELETTRICA EDIF.SCOLASTICO VIA PARTIGIANI - CONGUAGLIO AGO/NOV.;19-01-2017;104303;1;149;1;Spese correnti;3;Acquisto di beni e servizi;2;Acquisto di servizi;5;Utenze e canoni;4;Energia elettrica;2017-01-19;
17;1;"164,32";"164,32";IREN MERCATO S.P.A.;664780670D;SALDO Fatt.n. 011640110105  del 17/12/2016 EN.ELETTRICA PIATTAFORMA ECOLOGICA - AGOSTO NOVEMBRE;19-01-2017;109503;6;150;1;Spese correnti;3;Acquisto di beni e servizi;2;Acquisto di servizi;5;Utenze e canoni;4;Energia elettrica;2017-01-19;
18;1;"38,28";"278,45";IREN MERCATO S.P.A.;664780670D;SALDO Fatt.n. 011640110080  del 17/12/2016 EN.ELETTRICA ILL.VOTIVA CIMITERO VIA CAVENAGHI - CONGUAGLIO AGOSTO NOVEMBRE 2016;19-01-2017;110503;4;151;1;Spese correnti;3;Acquisto di beni e servizi;2;Acquisto di servizi;5;Utenze e canoni;4;Energia elettrica;2017-01-19;
18;2;"69,13";"278,45";IREN MERCATO S.P.A.;664780670D;SALDO Fatt.n. 011640110103  del 17/12/2016 EN.ELETTRICA ILL.VOTIVA CIMITERO VIA MONTE SANTO - AGO-NOV.;19-01-2017;110503;4;151;1;Spese correnti;3;Acquisto di beni e servizi;2;Acquisto di servizi;5;Utenze e canoni;4;Energia elettrica;2017-01-19;
18;3;"171,04";"278,45";IREN MERCATO S.P.A.;664780670D;SALDO Fatt.n. 011640110082  del 17/12/2016 EN.ELETTRICA CIMITERO S.REMIGIO -CONGUAGLIO AGOSTO/NOVEMBRE 2016;19-01-2017;110503;4;151;1;Spese correnti;3;Acquisto di beni e servizi;2;Acquisto di servizi;5;Utenze e canoni;4;Energia elettrica;2017-01-19;
19;1;"1.000,91";"1.000,91";IREN MERCATO S.P.A.;664780670D;SALDO Fatt.n. 011640110098  del 17/12/2016 ENERGIA ELETTRICA CAMPO SPORTIVO - CONGUAGLIO AGO/NOVEMBRE;19-01-2017;106203;1;152;1;Spese correnti;3;Acquisto di beni e servizi;2;Acquisto di servizi;5;Utenze e canoni;4;Energia elettrica;2017-01-19;
20;1;"238,64";"238,64";IREN MERCATO S.P.A.;664780670D;SALDO Fatt.n. 011640110086  del 17/12/2016 EN.ELETTRICA IMP.ITTIOGENICO - AGO NOV. 2016;19-01-2017;109603;5;153;1;Spese correnti;3;Acquisto di beni e servizi;2;Acquisto di servizi;5;Utenze e canoni;4;Energia elettrica;2017-01-19;
21;1;"787,00";"1.591,00";COMUNE DI CLUSONE; ;SPESE FUNZIONAMENTO COMMISSIONE ELETTORALE MANDAMENTALE - 2016 -2 SEMESTRE;19-01-2017;101705;1;54;1;Spese correnti;4;Trasferimenti correnti;1;Trasferimenti correnti a Amministrazioni Pubbliche;2;Trasferimenti correnti a Amministrazioni Locali;3;Trasferimenti correnti a Comuni;2017-01-19;
21;2;"804,00";"1.591,00";COMUNE DI CLUSONE; ;SPESE FUNZIONAMENTO COMMISSIONE ELETTORALE MANDAMENTALE - 2016 -ACCONTO;19-01-2017;101705;1;54;1;Spese correnti;4;Trasferimenti correnti;1;Trasferimenti correnti a Amministrazioni Pubbliche;2;Trasferimenti correnti a Amministrazioni Locali;3;Trasferimenti correnti a Comuni;2017-01-19;
22;1;"150,00";"150,00";L.P.ASSICURAZIONI SAS DI LANZA STEFANO  C.;ZF81AC0861;RIMBORSO FRANCHIGIA ASSICURATIVA SU POLIZZA R.C.T. "ALLIANZ S.p.A." n. 252222593;19-01-2017;101503;4;330;1;Spese correnti;3;Acquisto di beni e servizi;2;Acquisto di servizi;9;Manutenzione ordinaria e riparazioni;11;Manutenzione ordinaria e riparazioni di altri beni materiali;2017-01-19;
23;1;"1.500,00";"1.500,00";ASS.NE VOLONTARI DI PROTEZIONE CIVILE "OROBIE SOCCORSO"; ;CONCESSIONE CONTRIBUTO ALLE ASSOCIAZIONI DI PROTEZIONE CIVILE - ANNO 2016;20-01-2017;109305;1;314;1;Spese correnti;4;Trasferimenti correnti;4;Trasferimenti correnti a Istituzioni Sociali Private;1;Trasferimenti correnti a Istituzioni Sociali Private;1;Trasferimenti correnti a Istituzioni Sociali Private;2017-01-20;
24;1;"4.000,00";"4.000,00";NUCLEO PROTEZIONE CIVILE GRUPPO ALPINI DI ENDINE; ;CONTRIBUTO ALLE ASSOCIAZIONI DI PROTEZIONE CIVILE - ANNO 2016;20-01-2017;109305;1;313;1;Spese correnti;4;Trasferimenti correnti;4;Trasferimenti correnti a Istituzioni Sociali Private;1;Trasferimenti correnti a Istituzioni Sociali Private;1;Trasferimenti correnti a Istituzioni Sociali Private;2017-01-20;
25;1;"3.040,00";"3.040,00";OPERA DIOCESANA PATRONATO SAN VINCENZO;ZEA1CC0F35;AFFITTO ANNO 2016 DEL PARCHEGGIO IN VIA FILIPPONI DENOMINATO "CAMPETTO";20-01-2017;101504;1;338;1;Spese correnti;3;Acquisto di beni e servizi;2;Acquisto di servizi;7;Utilizzo di beni di terzi;1;Locazione di beni immobili;2017-01-20;
29;1;"927,30";"927,30";AMMINISTRATORI; ;INDENNITA' AL SINDACO GENNAIO 2017;20-01-2017;101103;1;5;1;Spese correnti;3;Acquisto di beni e servizi;2;Acquisto di servizi;1;Organi e incarichi istituzionali dell'amministrazione;1;Organi istituzionali dell'amministrazione - Indennit�;2017-01-20;
30;1;"1.066,39";"1.066,39";AMMINISTRATORI; ;INDENNITA' DI FUNZIONE AGLI ASSESSORI - GENNAIO 2017;20-01-2017;101103;2;6;1;Spese correnti;3;Acquisto di beni e servizi;2;Acquisto di servizi;1;Organi e incarichi istituzionali dell'amministrazione;1;Organi istituzionali dell'amministrazione - Indennit�;2017-01-20;
81;1;"495,00";"495,00";CHECKS S.R.L.;Z851BCC75E;SALDO Fatt.n. FATTPA 83_16  del 02/12/2016 Verifica periodica impianti di messa a terra immobili di propriet comunale;23-01-2017;101603;1;268;1;Spese correnti;3;Acquisto di beni e servizi;2;Acquisto di servizi;99;Altri servizi;999;Altri servizi diversi n.a.c.;2017-01-23;
82;1;"77,76";"77,76";C.B.L. SRL;Z2B1CBDBBA;SALDO FATT.N. 42PA DEL 31/08/2016 ACQUISTO MINUTERIE PER MANUTENZIONE STRADE E SEGNALETICA;27-01-2017;108102;4;323;1;Spese correnti;3;Acquisto di beni e servizi;1;Acquisto di beni;2;Altri beni di consumo;999;Altri beni e materiali di consumo n.a.c.;2017-01-27;
83;1;"44,23";"44,23";GRAFICHE E. GASPARI S.R.L.;ZE41C15D1A;SALDO FATT.N. 20778  DEL 30/11/2016 FORNITURA CANCELLERIA UFF.  ANAGRAFE;27-01-2017;101702;1;288;1;Spese correnti;3;Acquisto di beni e servizi;1;Acquisto di beni;2;Altri beni di consumo;1;"Carta, cancelleria e stampati";2017-01-27;
84;1;"2.489,80";"2.489,80";SARMENTI ANTONIO  C. SNC;Z781BCE242;SALDO FATT.N. 02/PA DEL 01/12/2016 MANUTENZIONI VARIE SUL TERRITORIO -OPERE DA IDRAULICO;27-01-2017;101503;1;276;1;Spese correnti;3;Acquisto di beni e servizi;2;Acquisto di servizi;9;Manutenzione ordinaria e riparazioni;8;Manutenzione ordinaria e riparazioni di beni immobili;2017-01-27;
85;1;"8.579,14";"8.579,14";MABB S.R.L.;66409247D0;SALDO Fatt.n. 226/2  del 22/12/2016 TRASPORTO SCOLASTICO  - DICEMBRE 2016;27-01-2017;104503;1;156;1;Spese correnti;3;Acquisto di beni e servizi;2;Acquisto di servizi;15;Contratti di servizio pubblico;2;Contratti di servizio di trasporto scolastico;2017-01-27;
86;1;"55,46";"308,56";QCOM S.P.A.;Z231926C6C;ACCONTO Fatt.n. 002185/PA  del 30/11/2016 CANONE MENSILE ADSL NOVEMBRE 2016;30-01-2017;101803;7;66;1;Spese correnti;3;Acquisto di beni e servizi;2;Acquisto di servizi;5;Utenze e canoni;1;Telefonia fissa;2017-01-30;
86;2;"252,10";"308,56";QCOM S.P.A.;Z231926C6C;ACCONTO Fatt.n. 002185/PA  del 30/11/2016 CANONE MENSILE ADSL NOVEMBRE 2016;30-01-2017;101803;7;66;1;Spese correnti;3;Acquisto di beni e servizi;2;Acquisto di servizi;5;Utenze e canoni;1;Telefonia fissa;2017-01-30;
87;1;"417,50";"2.310,67";ENEL SOLE S.R.L.;ZD4187CC44;SALDO Fatt.n. 1630059371  del 30/11/2016 Manutenzione impianti novembre 2016 - IP;30-01-2017;108203;4;49;1;Spese correnti;3;Acquisto di beni e servizi;2;Acquisto di servizi;9;Manutenzione ordinaria e riparazioni;11;Manutenzione ordinaria e riparazioni di altri beni materiali;2017-01-30;
87;2;"1.893,17";"2.310,67";ENEL SOLE S.R.L.;ZD4187CC44;ACCONTO Fatt.n. 1630059371  del 30/11/2016 Manutenzione impianti novembre 2016 - IP;30-01-2017;108203;4;49;1;Spese correnti;3;Acquisto di beni e servizi;2;Acquisto di servizi;9;Manutenzione ordinaria e riparazioni;11;Manutenzione ordinaria e riparazioni di altri beni materiali;2017-01-30;
88;1;"1.103,88";"1.103,88";F.LLI ZOPPETTI SNC DI ZOPPETTI CINZIA & C.;ZDD1C9643D;SALDO FATT.N.12/P  DEL 28/12/2016 ACQUISTO MATERIALI EDILI DICEMBRE 2016;30-01-2017;108102;4;325;1;Spese correnti;3;Acquisto di beni e servizi;1;Acquisto di beni;2;Altri beni di consumo;999;Altri beni e materiali di consumo n.a.c.;2017-01-30;
89;1;"21,19";"118,51";ENEL SOLE S.R.L.;ZD4187CC44;SALDO Fatt.n. 1630058236  del 30/11/2016 Manutenzione impianti novembre 2016 - IP;30-01-2017;108203;4;49;1;Spese correnti;3;Acquisto di beni e servizi;2;Acquisto di servizi;9;Manutenzione ordinaria e riparazioni;11;Manutenzione ordinaria e riparazioni di altri beni materiali;2017-01-30;
89;2;"96,32";"118,51";ENEL SOLE S.R.L.;ZD4187CC44;ACCONTO Fatt.n. 1630058236  del 30/11/2016 Manutenzione impianti novembre 2016 - IP;30-01-2017;108203;4;49;1;Spese correnti;3;Acquisto di beni e servizi;2;Acquisto di servizi;9;Manutenzione ordinaria e riparazioni;11;Manutenzione ordinaria e riparazioni di altri beni materiali;2017-01-30;
90;1;"171,80";"390,40";HALLEY INFORMATICA S.R.L.;Z1E10FBE76;SALDO FATT.N. 13621/8/10 DELl 28/12/2016 ADD. RIF.F.INTERVENTO N.208406 DEL 19.12.16 - ATTI AMMINISTRATIVI;30-01-2017;201205;3;335;2;Spese in conto capitale;2;Investimenti fissi lordi e acquisto di terreni;1;Beni materiali;7;Hardware;2;Postazioni di lavoro;2017-01-30;
90;2;"220,60";"390,40";HALLEY INFORMATICA S.R.L.;Z1E10FBE76;SALDO FATT.N. 13288/8/10 DEL 20/12/2016 ADDESTRAMENTO - RIFERITI AGLI ATTI AMMINISTRATIVI -;30-01-2017;201205;3;335;2;Spese in conto capitale;2;Investimenti fissi lordi e acquisto di terreni;1;Beni materiali;7;Hardware;2;Postazioni di lavoro;2017-01-30;
91;1;"47,22";"262,88";KUWAIT PETROLEUM ITALIA SPA;Z2A1A2F9EF;IVA SALDO Fatt.n. PJ00056936  del 30/11/2016 Carburanti novembre 2016;30-01-2017;103102;2;213;1;Spese correnti;3;Acquisto di beni e servizi;1;Acquisto di beni;2;Altri beni di consumo;2;"Carburanti, combustibili e lubrificanti";2017-01-30;
91;2;"215,66";"262,88";KUWAIT PETROLEUM ITALIA SPA;Z2A1A2F9EF;SALDO Fatt.n. PJ00056936  del 30/11/2016 Carburanti novembre 2016;30-01-2017;103102;2;213;1;Spese correnti;3;Acquisto di beni e servizi;1;Acquisto di beni;2;Altri beni di consumo;2;"Carburanti, combustibili e lubrificanti";2017-01-30;
92;1;"53,72";"292,36";KUWAIT PETROLEUM ITALIA SPA;Z2A1A2F9EF;SALDO Fatt.n. PJ00056936  del 30/11/2016 Carburanti novembre 2016;30-01-2017;108102;2;212;1;Spese correnti;3;Acquisto di beni e servizi;1;Acquisto di beni;2;Altri beni di consumo;2;"Carburanti, combustibili e lubrificanti";2017-01-30;
92;2;"240,64";"292,36";KUWAIT PETROLEUM ITALIA SPA;Z2A1A2F9EF;SALDO Fatt.n. PJ00056936  del 30/11/2016 Carburanti novembre 2016;30-01-2017;108102;2;212;1;Spese correnti;3;Acquisto di beni e servizi;1;Acquisto di beni;2;Altri beni di consumo;2;"Carburanti, combustibili e lubrificanti";2017-01-30;
93;1;"93,72";"93,72";C.M.A. SISTEMI ANTINCENDIO S.R.L.;Z2D1C6D9D0;SALDO Fatt.n. 130/FE  del 29/12/2016 Fornitura Estintori;30-01-2017;101503;1;305;1;Spese correnti;3;Acquisto di beni e servizi;2;Acquisto di servizi;9;Manutenzione ordinaria e riparazioni;4;Manutenzione ordinaria e riparazioni di impianti e macchinari;2017-01-30;
94;1;"63,70";"1.876,89";ENEL SERVIZIO ELETTRICO;Z941916F86;SALDO Fatt.n. 166799901301019  del 23/12/2016 ENERGIA ELETTRICA I.P. DICEMBRE 2016;30-01-2017;108203;1;75;1;Spese correnti;3;Acquisto di beni e servizi;2;Acquisto di servizi;5;Utenze e canoni;4;Energia elettrica;2017-01-30;
94;2;"1.813,19";"1.876,89";ENEL SERVIZIO ELETTRICO;Z941916F86;SALDO Fatt.n. 166799900301012  del 23/12/2016 ENERGIA ELETTRICA ILLUMINAZIONE PUBBLICA - DICEMBRE 2016;30-01-2017;108203;1;75;1;Spese correnti;3;Acquisto di beni e servizi;2;Acquisto di servizi;5;Utenze e canoni;4;Energia elettrica;2017-01-30;
95;1;"3.587,80";"3.587,80";C.S.C. SOCIETA' COOPERATIVA SOCIALE;Z661BBF40E;SALDO Fatt.n. FATTPA 83_16  del 30/12/2016 Canone 2016 applicativi/servizi;30-01-2017;101803;6;264;1;Spese correnti;3;Acquisto di beni e servizi;2;Acquisto di servizi;19;Servizi informatici e di telecomunicazioni;1;Gestione e manutenzione applicazioni;2017-01-30;
96;1;"2.067,49";"2.067,49";CANTAMESSI S.R.L.;Z2C1CBC08B;SALDO Fatt.n. 161/FE  del 30/12/2016 Manutenzione parco mezzi in dotazione all'ufficio tecnico;30-01-2017;108103;7;321;1;Spese correnti;3;Acquisto di beni e servizi;2;Acquisto di servizi;9;Manutenzione ordinaria e riparazioni;1;"Manutenzione ordinaria e riparazioni di mezzi di trasporto ad uso civile, di sicurezza e ordine pubblico";2017-01-30;
97;1;"688,39";"688,39";GENERAL SERVICE;Z9F123FDAC;Fatt.n. FatPAM 61/.PA/2016 del 31/12/2016  Pulizia stabile comunale Dicembre 2016;30-01-2017;101503;5;109;1;Spese correnti;3;Acquisto di beni e servizi;2;Acquisto di servizi;13;Servizi ausiliari per il funzionamento dell'ente;2;Servizi di pulizia e lavanderia;2017-01-30;
98;1;"573,40";"573,40";TIPOGRAFIA QUETTI DI QUETTI MARIO;ZBE1C9A27A;Fatt.n. 4 del 31/12/2016 FORNITURA MATERIALE INFORMATIVO PER MOSTRA ARTISTI 2016.;30-01-2017;105103;3;317;1;Spese correnti;3;Acquisto di beni e servizi;2;Acquisto di servizi;99;Altri servizi;999;Altri servizi diversi n.a.c.;2017-01-30;
99;1;"1.475,44";"1.475,44";CASA DEL PESCATORE-MONASTEROLO D.C.-COOP. L'INNESTO;ZC3187CF87;Fatt.n. 201/PA del 30/11/2016 sc. 31/01/2017 Manutenzione immobili e giardini novembre 2016;30-01-2017;110403;5;65;1;Spese correnti;3;Acquisto di beni e servizi;2;Acquisto di servizi;13;Servizi ausiliari per il funzionamento dell'ente;999;Altri servizi ausiliari n.a.c.;2017-01-30;
100;1;"4.987,36";"4.987,36";DUEFFE SERVIZI S.R.L.;Z0D1A6E8E7;FATT.N.  2/PA DEL 31/12/2016 SPESE GESTIONE CIMITERI;30-01-2017;110503;2;200;1;Spese correnti;3;Acquisto di beni e servizi;2;Acquisto di servizi;99;Altri servizi;999;Altri servizi diversi n.a.c.;2017-01-30;
101;1;"8.000,00";"8.000,00";BERGAMO GIOCHI S.R.L. UNIPERSONALE;ZDE1CBACDE;FATT.N. 3/PA DEL 31/12/2016 OPERE DI MANUTENZIONE STRAORDINARIA PLESSO SCUOLE MEDIE ENDINE MARTIRI;30-01-2017;204301;1;328;2;Spese in conto capitale;2;Investimenti fissi lordi e acquisto di terreni;1;Beni materiali;9;Beni immobili;3;Fabbricati ad uso scolastico;2017-01-30;
102;1;"88,45";"228,45";GRUPPO MAGGIOLI SPA;Z651C06DF4;FAT.N. 0002145811DEL 30/11/2016  CANCELLERIA UFFICIO POLIZIA LOCALE;30-01-2017;103102;6;283;1;Spese correnti;3;Acquisto di beni e servizi;1;Acquisto di beni;2;Altri beni di consumo;1;"Carta, cancelleria e stampati";2017-01-30;
102;2;"140,00";"228,45";GRUPPO MAGGIOLI SPA;Z651C06DF4;Fatt.n. 0002145811 del 30/11/2016  CANCELLERIA UFFICIO POLIZIA LOCALE;30-01-2017;103102;6;283;1;Spese correnti;3;Acquisto di beni e servizi;1;Acquisto di beni;2;Altri beni di consumo;1;"Carta, cancelleria e stampati";2017-01-30;
103;1;"577,60";"577,60";NORD BROKER S.R.L.;600778335E;SERVIZIO DI ASSICURAZIONE -INFORTUNI DIPENDENTI -REALE MUTUA -N.2538183-PREMIO 31.12.16 - 31.12.17;31-01-2017;101803;5;74;1;Spese correnti;10;Altre spese correnti;4;Premi di assicurazione;1;Premi di assicurazione contro i danni;999;Altri premi di assicurazione contro i danni;2017-01-31;
104;1;"100,00";"100,00";NORD BROKER S.R.L.;ZE513B6A75;POLIZZA INFORTUNI E MALATTIE REALE MUTUA N.2555735 31.12.16/31.12.17;31-01-2017;101803;5;115;1;Spese correnti;10;Altre spese correnti;4;Premi di assicurazione;1;Premi di assicurazione contro i danni;999;Altri premi di assicurazione contro i danni;2017-01-31;
105;1;"3.790,00";"3.790,00";NORD BROKER S.R.L.;6007790923;POLIZZA TUTELA LEGALE - 31.12.16 - 31.12.17;31-01-2017;101103;3;75;1;Spese correnti;10;Altre spese correnti;4;Premi di assicurazione;1;Premi di assicurazione contro i danni;999;Altri premi di assicurazione contro i danni;2017-01-31;
106;1;"703,00";"703,00";NORD BROKER S.R.L.;6007793B9C;POLIZZA RCA REALE MUTUA -DACIA DUSTER -31.12.16 - 31.12.17;31-01-2017;101603;4;77;1;Spese correnti;10;Altre spese correnti;4;Premi di assicurazione;1;Premi di assicurazione contro i danni;3;Premi di assicurazione per responsabilit� civile verso terzi;2017-01-31;
107;1;"263,00";"263,00";NORD BROKER S.R.L.; ;POLIZZA R.C.A. REALE MUTUA - DAIHATSU TERIOS - 31.12.16-31.12.17;31-01-2017;101203;22;76;1;Spese correnti;10;Altre spese correnti;4;Premi di assicurazione;1;Premi di assicurazione contro i danni;3;Premi di assicurazione per responsabilit� civile verso terzi;2017-01-31;
108;1;"248,00";"1.582,00";NORD BROKER S.R.L.;6007793B9C;POLIZZA RCA REALE MUTUA MACCHINA OPERATRICE 31.12.16-31.12.17;31-01-2017;108103;2;79;1;Spese correnti;10;Altre spese correnti;4;Premi di assicurazione;1;Premi di assicurazione contro i danni;3;Premi di assicurazione per responsabilit� civile verso terzi;2017-01-31;
108;2;"542,00";"1.582,00";NORD BROKER S.R.L.;6007793B9C;POLIZZA RCA REALE MUTUA  AUTOCARRO 31.12.16 - 31.12.17;31-01-2017;108103;2;79;1;Spese correnti;10;Altre spese correnti;4;Premi di assicurazione;1;Premi di assicurazione contro i danni;3;Premi di assicurazione per responsabilit� civile verso terzi;2017-01-31;
108;3;"792,00";"1.582,00";NORD BROKER S.R.L.;6007793B9C;POLIZZA REALE MUTUA AUTOCARRO MITSUBISHI 31.12.16-31.12.17;31-01-2017;108103;2;79;1;Spese correnti;10;Altre spese correnti;4;Premi di assicurazione;1;Premi di assicurazione contro i danni;3;Premi di assicurazione per responsabilit� civile verso terzi;2017-01-31;
109;1;"673,00";"673,00";NORD BROKER S.R.L.;6007793B9C;POLIZZA RCA REALE MUTUA VEICOLO POLIZIA LOCALE -31.12.16 - 31.12.17;31-01-2017;103103;7;78;1;Spese correnti;10;Altre spese correnti;4;Premi di assicurazione;1;Premi di assicurazione contro i danni;3;Premi di assicurazione per responsabilit� civile verso terzi;2017-01-31;
110;1;"9.800,00";"9.800,00";NORD BROKER S.R.L.;Z791BE8435;COPERTURA ASSICURATIVA DELLA RESPONSABILITA' CIVILE RCT/RCO - 31.12.2016/31.12.2017;31-01-2017;101803;5;292;1;Spese correnti;10;Altre spese correnti;4;Premi di assicurazione;1;Premi di assicurazione contro i danni;3;Premi di assicurazione per responsabilit� civile verso terzi;2017-01-31;
111;1;"18,23";"101,09";TELECOM ITALIA SPA;Z9E18F1836;IVA Fatt.n. 8B01049802  del 06/10/2016 SPESE TELEFONICHE FAX 035827221 - 6 BIM 2016;31-01-2017;101803;7;70;1;Spese correnti;3;Acquisto di beni e servizi;2;Acquisto di servizi;5;Utenze e canoni;1;Telefonia fissa;2017-01-31;
111;2;"83,86";"101,09";TELECOM ITALIA SPA;Z9E18F1836;ACCONTO Fatt.n. 8B01049802  del 06/10/2016 SPESE TELEFONICHE FAX 035827221 - 6 BIM 2016;31-01-2017;101803;7;70;1;Spese correnti;3;Acquisto di beni e servizi;2;Acquisto di servizi;5;Utenze e canoni;1;Telefonia fissa;2017-01-31;
112;1;"15,36";"85,16";TELECOM ITALIA SPA;Z9E18F1836;ACCONTO Fatt.n. 8B01052710  del 06/10/2016 SPESE TELEFONICHE UFFICI - 6 BIM 2016;31-01-2017;101803;7;70;1;Spese correnti;3;Acquisto di beni e servizi;2;Acquisto di servizi;5;Utenze e canoni;1;Telefonia fissa;2017-01-31;
112;2;"70,80";"85,16";TELECOM ITALIA SPA;Z9E18F1836;ACCONTO Fatt.n. 8B01052710  del 06/10/2016 SPESE TELEFONICHE UFFICI - 6 BIM 2016;31-01-2017;101803;7;70;1;Spese correnti;3;Acquisto di beni e servizi;2;Acquisto di servizi;5;Utenze e canoni;1;Telefonia fissa;2017-01-31;
113;1;"18,78";"99,58";TELECOM ITALIA SPA;Z9E18F1836;ACCONTO Fatt.n. 8B01055167  del 06/10/2016 SPESE TELEFONICHE UFFICI - 6 BIM 2016;31-01-2017;101803;7;70;1;Spese correnti;3;Acquisto di beni e servizi;2;Acquisto di servizi;5;Utenze e canoni;1;Telefonia fissa;2017-01-31;
113;2;"81,80";"99,58";TELECOM ITALIA SPA;Z9E18F1836;ACCONTO Fatt.n. 8B01055167  del 06/10/2016 SPESE TELEFONICHE UFFICI - 6 BIM 2016;31-01-2017;101803;7;70;1;Spese correnti;3;Acquisto di beni e servizi;2;Acquisto di servizi;5;Utenze e canoni;1;Telefonia fissa;2017-01-31;
114;1;"11,96";"61,76";TELECOM ITALIA SPA;Z9E18F1836;IVA Fatt.n. 8B01054993  del 06/10/2016 SPESE TELEFONICHE SC.PRIMARIA ROVA  6 BIM 2016;31-01-2017;104203;2;67;1;Spese correnti;3;Acquisto di beni e servizi;2;Acquisto di servizi;5;Utenze e canoni;1;Telefonia fissa;2017-01-31;
114;2;"50,80";"61,76";TELECOM ITALIA SPA;Z9E18F1836;ACCONTO Fatt.n. 8B01054993  del 06/10/2016 SPESE TELEFONICHE SC.PRIMARIA ROVA  6 BIM 2016;31-01-2017;104203;2;67;1;Spese correnti;3;Acquisto di beni e servizi;2;Acquisto di servizi;5;Utenze e canoni;1;Telefonia fissa;2017-01-31;
115;1;"19,91";"105,87";TELECOM ITALIA SPA;Z9E18F1836;SALDO Fatt.n. 8B01051403  del 06/10/2016 SP.TELEFONICHE SC.PRIMARIA ENDINE - 6 BIM 2016;31-01-2017;104203;2;67;1;Spese correnti;3;Acquisto di beni e servizi;2;Acquisto di servizi;5;Utenze e canoni;1;Telefonia fissa;2017-01-31;
115;2;"86,96";"105,87";TELECOM ITALIA SPA;Z9E18F1836;ACCONTO Fatt.n. 8B01051403  del 06/10/2016 SP.TELEFONICHE SC.PRIMARIA ENDINE - 6 BIM 2016;31-01-2017;104203;2;67;1;Spese correnti;3;Acquisto di beni e servizi;2;Acquisto di servizi;5;Utenze e canoni;1;Telefonia fissa;2017-01-31;
116;1;"11,96";"162,85";TELECOM ITALIA SPA;Z9E18F1836;ACCONTO Fatt.n. 8B01048788  del 06/10/2016 SPESE TELEFONICHE SC.SECONDARIA - 6 BIM 2016;31-01-2017;104303;1;68;1;Spese correnti;3;Acquisto di beni e servizi;2;Acquisto di servizi;5;Utenze e canoni;1;Telefonia fissa;2017-01-31;
116;2;"18,23";"162,85";TELECOM ITALIA SPA;Z9E18F1836;SALDO Fatt.n. 8B01051794  del 06/10/2016 SPESE TELEFONICHE SC.MEDIE - 6 BIM 2016;31-01-2017;104303;1;68;1;Spese correnti;3;Acquisto di beni e servizi;2;Acquisto di servizi;5;Utenze e canoni;1;Telefonia fissa;2017-01-31;
116;3;"50,80";"162,85";TELECOM ITALIA SPA;Z9E18F1836;ACCONTO Fatt.n. 8B01048788  del 06/10/2016 SPESE TELEFONICHE SC.SECONDARIA - 6 BIM 2016;31-01-2017;104303;1;68;1;Spese correnti;3;Acquisto di beni e servizi;2;Acquisto di servizi;5;Utenze e canoni;1;Telefonia fissa;2017-01-31;
116;4;"83,86";"162,85";TELECOM ITALIA SPA;Z9E18F1836;ACCONTO Fatt.n. 8B01051794  del 06/10/2016 SPESE TELEFONICHE SC.MEDIE - 6 BIM 2016;31-01-2017;104303;1;68;1;Spese correnti;3;Acquisto di beni e servizi;2;Acquisto di servizi;5;Utenze e canoni;1;Telefonia fissa;2017-01-31;
117;1;"11,96";"61,76";TELECOM ITALIA SPA;Z9E18F1836;ACCONTO Fatt.n. 8B01048025  del 06/10/2016 SPESE TELEFONICHE BIBLIOTECA - 035826923 6BIM 2016;31-01-2017;105103;5;69;1;Spese correnti;3;Acquisto di beni e servizi;2;Acquisto di servizi;5;Utenze e canoni;1;Telefonia fissa;2017-01-31;
117;2;"50,80";"61,76";TELECOM ITALIA SPA;Z9E18F1836;ACCONTO Fatt.n. 8B01048025  del 06/10/2016 SPESE TELEFONICHE BIBLIOTECA - 035826923 6BIM 2016;31-01-2017;105103;5;69;1;Spese correnti;3;Acquisto di beni e servizi;2;Acquisto di servizi;5;Utenze e canoni;1;Telefonia fissa;2017-01-31;
118;1;"101,32";"562,88";SOENERGY S.R.L.;6432016B81;ACCONTO Fatt.n. 161194533  del 07/12/2016 FORNITURA GAS PER RISCALDAMENTO UFFICI - NOVEMBRE 2016;31-01-2017;101803;7;76;1;Spese correnti;3;Acquisto di beni e servizi;2;Acquisto di servizi;5;Utenze e canoni;6;Gas;2017-01-31;
118;2;"461,56";"562,88";SOENERGY S.R.L.;6432016B81;ACCONTO Fatt.n. 161194533  del 07/12/2016 FORNITURA GAS PER RISCALDAMENTO UFFICI - NOVEMBRE 2016;31-01-2017;101803;7;76;1;Spese correnti;3;Acquisto di beni e servizi;2;Acquisto di servizi;5;Utenze e canoni;6;Gas;2017-01-31;
119;1;"95,06";"527,13";SOENERGY S.R.L.;6432016B81;SALDO Fatt.n. 161194534  del 07/12/2016 FORNITURA GAS PER RISCALDAMENTO SCUOLA PRIMARIA ROVA - NOVEMBRE 2016 -;31-01-2017;104203;2;78;1;Spese correnti;3;Acquisto di beni e servizi;2;Acquisto di servizi;5;Utenze e canoni;6;Gas;2017-01-31;
119;2;"432,07";"527,13";SOENERGY S.R.L.;6432016B81;ACCONTO Fatt.n. 161194534  del 07/12/2016 FORNITURA GAS PER RISCALDAMENTO SCUOLA PRIMARIA ROVA - NOVEMBRE 2016 -;31-01-2017;104203;2;78;1;Spese correnti;3;Acquisto di beni e servizi;2;Acquisto di servizi;5;Utenze e canoni;6;Gas;2017-01-31;
120;1;"423,72";"2.344,18";SOENERGY S.R.L.;6432016B81;SALDO Fatt.n. 161194535  del 07/12/2016 FORNITURA GAS PER RISCALDAMENTO SC.PRIMARIA ENDINE - NOVEMBRE 2016 -;31-01-2017;104203;2;78;1;Spese correnti;3;Acquisto di beni e servizi;2;Acquisto di servizi;5;Utenze e canoni;6;Gas;2017-01-31;
120;2;"1.921,46";"2.344,18";SOENERGY S.R.L.;6432016B81;ACCONTO Fatt.n. 161194535  del 07/12/2016 FORNITURA GAS PER RISCALDAMENTO SC.PRIMARIA ENDINE - NOVEMBRE 2016 -;31-01-2017;104203;2;78;1;Spese correnti;3;Acquisto di beni e servizi;2;Acquisto di servizi;5;Utenze e canoni;6;Gas;2017-01-31;
121;1;"19,55";"103,85";SOENERGY S.R.L.;6432016B81;ACCONTO Fatt.n. 161194536  del 07/12/2016 FORNITURA GAS PER RSCALDAMENTO IMMOBILE COMUNALE - NOVEMBRE 2016;31-01-2017;101503;6;77;1;Spese correnti;3;Acquisto di beni e servizi;2;Acquisto di servizi;5;Utenze e canoni;6;Gas;2017-01-31;
121;2;"84,30";"103,85";SOENERGY S.R.L.;6432016B81;SALDO Fatt.n. 161194536  del 07/12/2016 FORNITURA GAS PER RSCALDAMENTO IMMOBILE COMUNALE - NOVEMBRE 2016;31-01-2017;101503;6;77;1;Spese correnti;3;Acquisto di beni e servizi;2;Acquisto di servizi;5;Utenze e canoni;6;Gas;2017-01-31;
122;1;"85,13";"472,07";SOENERGY S.R.L.;6432016B81;SALDO Fatt.n. 161194537  del 07/12/2016 FORNITURA GAS PER RISCALDAMENTO IMP.SPORTIVI - NOVEMBRE 2016 -;31-01-2017;106203;1;80;1;Spese correnti;3;Acquisto di beni e servizi;2;Acquisto di servizi;5;Utenze e canoni;6;Gas;2017-01-31;
122;2;"387,94";"472,07";SOENERGY S.R.L.;6432016B81;ACCONTO Fatt.n. 161194537  del 07/12/2016 FORNITURA GAS PER RISCALDAMENTO IMP.SPORTIVI - NOVEMBRE 2016 -;31-01-2017;106203;1;80;1;Spese correnti;3;Acquisto di beni e servizi;2;Acquisto di servizi;5;Utenze e canoni;6;Gas;2017-01-31;
123;1;"46,43";"257,48";QCOM S.P.A.;Z231926C6C;ACCONTO Fatt.n. 002395/PA  del 31/12/2016;31-01-2017;101803;7;66;1;Spese correnti;3;Acquisto di beni e servizi;2;Acquisto di servizi;5;Utenze e canoni;1;Telefonia fissa;2017-01-31;
123;2;"211,05";"257,48";QCOM S.P.A.;Z231926C6C;SALDO Fatt.n. 002395/PA  del 31/12/2016;31-01-2017;101803;7;66;1;Spese correnti;3;Acquisto di beni e servizi;2;Acquisto di servizi;5;Utenze e canoni;1;Telefonia fissa;2017-01-31;
124;1;"4,75";"4,75";TESORIERE COMUNALE BANCO BPM; ;SPESE PER IL SERVIZIO TESORERIA - ART.16 CONTRATTO REP. 881/2013  SPESE 4 TRIM. 2016 - CPRU 4/9.1.17-;31-01-2017;101303;5;109;1;Spese correnti;3;Acquisto di beni e servizi;2;Acquisto di servizi;17;Servizi finanziari;2;Oneri per servizio di tesoreria;2017-01-31;
126;1;"240,00";"240,00";BERTESAGO STELLA MARIA; ;FONDO SOSTEGNO GRAVE DISAGIO ECONOMICO 2015 - QUOTA COMUNALE;31-01-2017;110405;10;321;1;Spese correnti;4;Trasferimenti correnti;2;Trasferimenti correnti a Famiglie;5;Altri trasferimenti a famiglie;999;Altri trasferimenti a famiglie n.a.c.;2017-01-31;
127;1;"960,00";"960,00";BERTESAGO STELLA MARIA; ;FONDO SOSTEGNO GRAVE DISAGIO ECONOMICO 2015 - QUOTA REGIONALE;31-01-2017;110405;10;322;1;Spese correnti;4;Trasferimenti correnti;2;Trasferimenti correnti a Famiglie;5;Altri trasferimenti a famiglie;999;Altri trasferimenti a famiglie n.a.c.;2017-01-31;
128;1;"476,67";"961,66";TERZAGO MACCHINE; ;RIMBORSO ONERI SOSTENUTI DIPENDENTE Z.M.  DICEMBRE 2016 NOTA DEL 26.1.17;31-01-2017;101103;5;57;1;Spese correnti;3;Acquisto di beni e servizi;2;Acquisto di servizi;1;Organi e incarichi istituzionali dell'amministrazione;2;Organi istituzionali dell'amministrazione - Rimborsi;2017-01-31;
128;2;"485,99";"961,66";TERZAGO MACCHINE; ;RIMBORSO ONERI SOSTENUTI DIPENDENTE Z.M. NOVEMBRE 2016 NOTA DEL 15.12.16;31-01-2017;101103;5;57;1;Spese correnti;3;Acquisto di beni e servizi;2;Acquisto di servizi;1;Organi e incarichi istituzionali dell'amministrazione;2;Organi istituzionali dell'amministrazione - Rimborsi;2017-01-31;
129;1;"324,38";"324,38";KYOCERA DOCUMENTS SOLUTIONS;Z92159FBC2;Fatt.n. 1010389773 del 06/12/2016  FOTOCOPIATRICI 24 - LOTTO 2 - 48 MESI CIG 6002442BD3 - Fotocopiatori BN;31-01-2017;101803;8;201;1;Spese correnti;3;Acquisto di beni e servizi;2;Acquisto di servizi;7;Utilizzo di beni di terzi;4;Noleggi di hardware;2017-01-31;
130;1;"317,38";"317,38";KYOCERA DOCUMENTS SOLUTIONS;ZBE159FBDA;Fatt.n. 1010389774 del 06/12/2016  FOTOCOPIATRICI 24 - LOTTO 4 - 48 MESI CIG 6002452416 - Colori;31-01-2017;101803;8;202;1;Spese correnti;3;Acquisto di beni e servizi;2;Acquisto di servizi;7;Utilizzo di beni di terzi;4;Noleggi di hardware;2017-01-31;
131;1;"17,08";"17,08";UILSER S.R.L.; ;SALDO Fatt.n. FATTPA 251_16  del 28/12/2016 VALUTAZIONE CONTRIBUTI ISEE;31-01-2017;110403;1;118;1;Spese correnti;3;Acquisto di beni e servizi;2;Acquisto di servizi;99;Altri servizi;999;Altri servizi diversi n.a.c.;2017-01-31;
132;1;"4.729,72";"4.729,72";MANCINI MARCO;Z3913C76D4;SALDO Fatt.n. 12  del 19/12/2016 GESTIONE ATTIVITA CONNESSE ALL'IMPIANTO ITTIOGENICO DI PRADA 2016;03-02-2017;109603;6;312;1;Spese correnti;3;Acquisto di beni e servizi;2;Acquisto di servizi;99;Altri servizi;999;Altri servizi diversi n.a.c.;2017-02-03;
144;1;"171,14";"171,14";IREN MERCATO S.P.A.;664780670D;SALDO Fatt.n. 011740013043  del 16/01/2017 PIATTAFORMA ECOLOGICA;10-02-2017;109503;6;150;1;Spese correnti;3;Acquisto di beni e servizi;2;Acquisto di servizi;5;Utenze e canoni;4;Energia elettrica;2017-02-10;
145;1;"4.889,50";"4.889,50";NORD BROKER S.R.L.;6007777E67;ASSICURAZIONE INCENDIO - LOTTO N.2 -;13-02-2017;101503;3;73;1;Spese correnti;10;Altre spese correnti;4;Premi di assicurazione;1;Premi di assicurazione contro i danni;2;Premi di assicurazione su beni immobili;2017-02-13;
146;1;"46,87";"46,87";NORD BROKER S.R.L.;6007793B9C;ASSICURAZIONE INCENDIO - LOTTO N.2 -SALDO;13-02-2017;101603;4;77;1;Spese correnti;10;Altre spese correnti;4;Premi di assicurazione;1;Premi di assicurazione contro i danni;3;Premi di assicurazione per responsabilit� civile verso terzi;2017-02-13;
153;1;"927,30";"927,30";AMMINISTRATORI; ;INDENNITA' DI CARICA AL SINDACO FEBBRAIO 2016;20-02-2017;101103;1;5;1;Spese correnti;3;Acquisto di beni e servizi;2;Acquisto di servizi;1;Organi e incarichi istituzionali dell'amministrazione;1;Organi istituzionali dell'amministrazione - Indennit�;2017-02-20;
154;1;"1.066,39";"1.066,39";AMMINISTRATORI; ;INDENNITA' DI FUNZIONE AGLI ASSESSORI FEBBRAIO 2017;20-02-2017;101103;2;6;1;Spese correnti;3;Acquisto di beni e servizi;2;Acquisto di servizi;1;Organi e incarichi istituzionali dell'amministrazione;1;Organi istituzionali dell'amministrazione - Indennit�;2017-02-20;
202;1;"535,56";"535,56";IREN MERCATO S.P.A.;664780670D;Fatt.n. 011740013011 del 16/01/2017 MUNICIPIO EN. ELETTRICA DICEMBRE 2016;20-02-2017;101803;7;147;1;Spese correnti;3;Acquisto di beni e servizi;2;Acquisto di servizi;5;Utenze e canoni;4;Energia elettrica;2017-02-20;
203;1;"569,37";"569,37";IREN MERCATO S.P.A.;664780670D;Fatt.n. 011740013026 del 16/01/2017  SCUOLA MEDIA ENERGIA ELETTRICA DICEMBRE 2016;20-02-2017;104303;1;149;1;Spese correnti;3;Acquisto di beni e servizi;2;Acquisto di servizi;5;Utenze e canoni;4;Energia elettrica;2017-02-20;
204;1;"792,00";"792,00";IREN MERCATO S.P.A.;664780670D;Fatt.n. 011740013036 del 16/01/2017 - CAMPO SPORTIVO ENERGIA ELETTRICA DICEMBRE 2016;20-02-2017;106203;1;152;1;Spese correnti;3;Acquisto di beni e servizi;2;Acquisto di servizi;5;Utenze e canoni;4;Energia elettrica;2017-02-20;
205;1;"5,39";"7.156,45";IREN MERCATO S.P.A.;664780670D;Fatt.n. 011740013013 del 16/01/2017 - EN. ELETTRICA I.P. DICEMBRE 2016;20-02-2017;108203;1;155;1;Spese correnti;3;Acquisto di beni e servizi;2;Acquisto di servizi;5;Utenze e canoni;4;Energia elettrica;2017-02-20;
205;2;"9,60";"7.156,45";IREN MERCATO S.P.A.;664780670D;Fatt.n. 011740013047 del 16/01/2017  EN.ELETTRICA ILL.PUBBLICA - DICEMBRE 2016;20-02-2017;108203;1;155;1;Spese correnti;3;Acquisto di beni e servizi;2;Acquisto di servizi;5;Utenze e canoni;4;Energia elettrica;2017-02-20;
205;3;"11,93";"7.156,45";IREN MERCATO S.P.A.;664780670D;Fatt.n. 011740013014 del 16/01/2017  EN. ELETTRICA I.P. DICEMBRE 2016;20-02-2017;108203;1;155;1;Spese correnti;3;Acquisto di beni e servizi;2;Acquisto di servizi;5;Utenze e canoni;4;Energia elettrica;2017-02-20;
205;4;"23,95";"7.156,45";IREN MERCATO S.P.A.;664780670D;Fatt.n. 011740013025 del 16/01/2017 EN. ELETTRICA I.P. DICEMBRE 2016;20-02-2017;108203;1;155;1;Spese correnti;3;Acquisto di beni e servizi;2;Acquisto di servizi;5;Utenze e canoni;4;Energia elettrica;2017-02-20;
205;5;"36,49";"7.156,45";IREN MERCATO S.P.A.;664780670D;Fatt.n. 011740013037 del 16/01/2017  EN.ELETTRICA I.P. ENERGIA ELETTRICA DICEMBRE 2016;20-02-2017;108203;1;155;1;Spese correnti;3;Acquisto di beni e servizi;2;Acquisto di servizi;5;Utenze e canoni;4;Energia elettrica;2017-02-20;
205;6;"39,41";"7.156,45";IREN MERCATO S.P.A.;664780670D;Fatt.n. 011740013030 del 16/01/2017  EN. ELETTRICA I.P. DICEMBRE 2016;20-02-2017;108203;1;155;1;Spese correnti;3;Acquisto di beni e servizi;2;Acquisto di servizi;5;Utenze e canoni;4;Energia elettrica;2017-02-20;
205;7;"49,84";"7.156,45";IREN MERCATO S.P.A.;664780670D;Fatt.n. 011740013032 del 16/01/2017  EN. ELETTRICA I.P. DICEMBRE 2016;20-02-2017;108203;1;155;1;Spese correnti;3;Acquisto di beni e servizi;2;Acquisto di servizi;5;Utenze e canoni;4;Energia elettrica;2017-02-20;
205;8;"98,70";"7.156,45";IREN MERCATO S.P.A.;664780670D;Fatt.n. 011740013022 del 16/01/2017  EN.ELETTRICA I.P DICEMBRE 2016;20-02-2017;108203;1;155;1;Spese correnti;3;Acquisto di beni e servizi;2;Acquisto di servizi;5;Utenze e canoni;4;Energia elettrica;2017-02-20;
205;9;"109,48";"7.156,45";IREN MERCATO S.P.A.;664780670D;Fatt.n. 011740013044 del 16/01/2017 - EN. ELETTRICA I.P. DICEMBRE 2016;20-02-2017;108203;1;155;1;Spese correnti;3;Acquisto di beni e servizi;2;Acquisto di servizi;5;Utenze e canoni;4;Energia elettrica;2017-02-20;
205;10;"120,11";"7.156,45";IREN MERCATO S.P.A.;664780670D;Fatt.n. 011740013010 del 16/01/2017  EN.ELETTRICA I.P. DICEMBRE 2016;20-02-2017;108203;1;155;1;Spese correnti;3;Acquisto di beni e servizi;2;Acquisto di servizi;5;Utenze e canoni;4;Energia elettrica;2017-02-20;
205;11;"134,63";"7.156,45";IREN MERCATO S.P.A.;664780670D;Fatt.n. 011740013045 del 16/01/2017  EN. ELETTRICA I.P. DICEMBRE 2016;20-02-2017;108203;1;155;1;Spese correnti;3;Acquisto di beni e servizi;2;Acquisto di servizi;5;Utenze e canoni;4;Energia elettrica;2017-02-20;
205;12;"157,11";"7.156,45";IREN MERCATO S.P.A.;664780670D;Fatt.n. 011740013009 del 16/01/2017  EN. ELETTRICA I.P. DICEMBRE 2016;20-02-2017;108203;1;155;1;Spese correnti;3;Acquisto di beni e servizi;2;Acquisto di servizi;5;Utenze e canoni;4;Energia elettrica;2017-02-20;
205;13;"157,29";"7.156,45";IREN MERCATO S.P.A.;664780670D;Fatt.n. 011740013008 del 16/01/2017 EN.ELETTRICA ILLUMINAZIONE PUBBLICA  - DICEMBRE 2016 -;20-02-2017;108203;1;155;1;Spese correnti;3;Acquisto di beni e servizi;2;Acquisto di servizi;5;Utenze e canoni;4;Energia elettrica;2017-02-20;
205;14;"236,48";"7.156,45";IREN MERCATO S.P.A.;664780670D;Fatt.n. 011740013039 del 16/01/2017  EN.ELETTRICA I.P. DICEMBRE 2016;20-02-2017;108203;1;155;1;Spese correnti;3;Acquisto di beni e servizi;2;Acquisto di servizi;5;Utenze e canoni;4;Energia elettrica;2017-02-20;
205;15;"241,52";"7.156,45";IREN MERCATO S.P.A.;664780670D;Fatt.n. 011740013038 del 16/01/2017  EN.ELETTRICA I.P DICEMBRE 2016;20-02-2017;108203;1;155;1;Spese correnti;3;Acquisto di beni e servizi;2;Acquisto di servizi;5;Utenze e canoni;4;Energia elettrica;2017-02-20;
205;16;"255,19";"7.156,45";IREN MERCATO S.P.A.;664780670D;Fatt.n. 011740013031 del 16/01/2017  EN.ELETTRICA  ILL.PUBBLICA - DICEMBRE 2016 -;20-02-2017;108203;1;155;1;Spese correnti;3;Acquisto di beni e servizi;2;Acquisto di servizi;5;Utenze e canoni;4;Energia elettrica;2017-02-20;
205;17;"291,20";"7.156,45";IREN MERCATO S.P.A.;664780670D;Fatt.n. 011740013033 del 16/01/2017 -  EN. ELETTRICA I.P. DICEMBRE 2016;20-02-2017;108203;1;155;1;Spese correnti;3;Acquisto di beni e servizi;2;Acquisto di servizi;5;Utenze e canoni;4;Energia elettrica;2017-02-20;
205;18;"358,75";"7.156,45";IREN MERCATO S.P.A.;664780670D;Fatt.n. 011740013027 del 16/01/2017- EN.ELETTRICA ILL.PUBBLICA;20-02-2017;108203;1;155;1;Spese correnti;3;Acquisto di beni e servizi;2;Acquisto di servizi;5;Utenze e canoni;4;Energia elettrica;2017-02-20;
205;19;"433,61";"7.156,45";IREN MERCATO S.P.A.;664780670D;Fatt.n. 011740013012 del 16/01/2017  EN. ELETTRICA I.P. DICEMBRE 2016;20-02-2017;108203;1;155;1;Spese correnti;3;Acquisto di beni e servizi;2;Acquisto di servizi;5;Utenze e canoni;4;Energia elettrica;2017-02-20;
205;20;"554,87";"7.156,45";IREN MERCATO S.P.A.;664780670D;Fatt.n. 011740013028 del 16/01/2017 EN. ELETTRICA I.P. DICEMBRE 2016;20-02-2017;108203;1;155;1;Spese correnti;3;Acquisto di beni e servizi;2;Acquisto di servizi;5;Utenze e canoni;4;Energia elettrica;2017-02-20;
205;21;"554,48";"7.156,45";IREN MERCATO S.P.A.;664780670D;Fatt.n. 011740013034 del 16/01/2017  EN. ELETTRICA I.P. DICEMBRE 2016;20-02-2017;108203;1;155;1;Spese correnti;3;Acquisto di beni e servizi;2;Acquisto di servizi;5;Utenze e canoni;4;Energia elettrica;2017-02-20;
205;22;"739,98";"7.156,45";IREN MERCATO S.P.A.;664780670D;Fatt.n. 011740013029 del 16/01/2017 -  EN. ELETTRICA I.P. DICEMBRE 2016;20-02-2017;108203;1;155;1;Spese correnti;3;Acquisto di beni e servizi;2;Acquisto di servizi;5;Utenze e canoni;4;Energia elettrica;2017-02-20;
205;23;"744,31";"7.156,45";IREN MERCATO S.P.A.;664780670D;Fatt.n. 011740013046 del 16/01/2017  EN. ELETTRICA I.P. DICEMBRE 2016;20-02-2017;108203;1;155;1;Spese correnti;3;Acquisto di beni e servizi;2;Acquisto di servizi;5;Utenze e canoni;4;Energia elettrica;2017-02-20;
205;24;"812,51";"7.156,45";IREN MERCATO S.P.A.;664780670D;Fatt.n. 011740013042 del 16/01/2017 EN.ELETTRICA I.P. DICEMBRE 2016;20-02-2017;108203;1;155;1;Spese correnti;3;Acquisto di beni e servizi;2;Acquisto di servizi;5;Utenze e canoni;4;Energia elettrica;2017-02-20;
205;25;"992,62";"7.156,45";IREN MERCATO S.P.A.;664780670D;Fatt.n. 011740013023 del 16/01/2017  ENERGIA ELETTRICA ILL.PUBBLICA DICEMBRE 2016;20-02-2017;108203;1;155;1;Spese correnti;3;Acquisto di beni e servizi;2;Acquisto di servizi;5;Utenze e canoni;4;Energia elettrica;2017-02-20;
206;1;"199,48";"199,48";IREN MERCATO S.P.A.;664780670D;Fatt.n. 011740013024 del 16/01/2017  IMPIANTO ITTIOGENICO EN. ELETTRICA DICEMBRE 2016;20-02-2017;109603;5;153;1;Spese correnti;3;Acquisto di beni e servizi;2;Acquisto di servizi;5;Utenze e canoni;4;Energia elettrica;2017-02-20;
207;1;"38,28";"272,76";IREN MERCATO S.P.A.;664780670D;SALDO Fatt.n. 011740013018  del 16/01/2017 CIMITERO EN. ELETTRICA DICEMBRE 2016;21-02-2017;110503;4;151;1;Spese correnti;3;Acquisto di beni e servizi;2;Acquisto di servizi;5;Utenze e canoni;4;Energia elettrica;2017-02-21;
207;2;"67,41";"272,76";IREN MERCATO S.P.A.;664780670D;SALDO Fatt.n. 011740013041  del 16/01/2017 CIMITERO MONTE SANTO - EN. ELETTRICA DICEMBRE 2016;21-02-2017;110503;4;151;1;Spese correnti;3;Acquisto di beni e servizi;2;Acquisto di servizi;5;Utenze e canoni;4;Energia elettrica;2017-02-21;
207;3;"166,07";"272,76";IREN MERCATO S.P.A.;664780670D;SALDO Fatt.n. 011740013020  del 16/01/2017 ENERGIA ELETTRICA CIMITERO SAN REMIGIO -DICEMBRE 2016 -;21-02-2017;110503;4;151;1;Spese correnti;3;Acquisto di beni e servizi;2;Acquisto di servizi;5;Utenze e canoni;4;Energia elettrica;2017-02-21;
208;1;"88,35";"88,35";IREN MERCATO S.P.A.;664780670D;SALDO Fatt.n. 011740013019  del 16/01/2017 EN.ELETTRICA MAGAZZINO - DICEMBRE 2016 -;21-02-2017;108103;1;146;1;Spese correnti;3;Acquisto di beni e servizi;2;Acquisto di servizi;5;Utenze e canoni;4;Energia elettrica;2017-02-21;
209;1;"50,03";"50,03";IREN MERCATO S.P.A.;664780670D;SALDO Fatt.n. 011740013040  del 16/01/2017 BANCO ALIMENTARE ENERGIA ELETTRICA DICEMBRE 2016;21-02-2017;101503;6;145;1;Spese correnti;3;Acquisto di beni e servizi;2;Acquisto di servizi;5;Utenze e canoni;4;Energia elettrica;2017-02-21;
210;1;"98,80";"359,82";IREN MERCATO S.P.A.;664780670D;SALDO Fatt.n. 011740013016  del 16/01/2017 EN.ELETTRICA SC.PRIMARIA VIA  MARTIRI LIBERTA' -DICEMBRE 2016 -;21-02-2017;104203;2;148;1;Spese correnti;3;Acquisto di beni e servizi;2;Acquisto di servizi;5;Utenze e canoni;4;Energia elettrica;2017-02-21;
210;2;"261,02";"359,82";IREN MERCATO S.P.A.;664780670D;SALDO Fatt.n. 011740013021  del 16/01/2017 EN.ELETTRICA SC.PRIMARIA VIA PAPA GIOVANNI XXIII - DICEMBRE 2016 -;21-02-2017;104203;2;148;1;Spese correnti;3;Acquisto di beni e servizi;2;Acquisto di servizi;5;Utenze e canoni;4;Energia elettrica;2017-02-21;
211;1;"153,63";"153,63";IREN MERCATO S.P.A.;664780670D;SALDO Fatt.n. 011740013017  del 16/01/2017 EN.ELETTRICA SC.PRIMARIA VIA MADONNA BUON CONSIGLIO - DICEMBRE 2016 -;21-02-2017;104203;2;148;1;Spese correnti;3;Acquisto di beni e servizi;2;Acquisto di servizi;5;Utenze e canoni;4;Energia elettrica;2017-02-21;
212;1;"2.472,14";"2.472,14";GENERAL SERVICE;Z9F123FDAC;Fatt.n. FatPAM 60/.PA/2016 del 20/12/2016 SPESE PULIZIA EDIFICIO COMUNALE;21-02-2017;101503;5;109;1;Spese correnti;3;Acquisto di beni e servizi;2;Acquisto di servizi;13;Servizi ausiliari per il funzionamento dell'ente;2;Servizi di pulizia e lavanderia;2017-02-21;
213;1;"-4,20";"2.193,06";GENERAL SERVICE;Z9F123FDAC;Fatt.n. FatPAM 1./PA/2017 del 31/01/2017  Nota di credito su fattura 60/.Pa/2016;21-02-2017;101503;5;109;1;Spese correnti;3;Acquisto di beni e servizi;2;Acquisto di servizi;13;Servizi ausiliari per il funzionamento dell'ente;2;Servizi di pulizia e lavanderia;2017-02-21;
213;2;"2.197,26";"2.193,06";GENERAL SERVICE;Z9F123FDAC;Fatt.n. FatPAM 60/.PA/2016 del 20/12/2016  SPESE PULIZIA EDIFICIO COMUNALE;21-02-2017;101503;5;109;1;Spese correnti;3;Acquisto di beni e servizi;2;Acquisto di servizi;13;Servizi ausiliari per il funzionamento dell'ente;2;Servizi di pulizia e lavanderia;2017-02-21;
214;1;"1.310,13";"1.310,13";IREN MERCATO S.P.A.;664780670D;Fatt.n. 011740013015 del 16/01/2017  EN.ELETTRICA I.P. DICEMBRE 2016;21-02-2017;101803;7;147;1;Spese correnti;3;Acquisto di beni e servizi;2;Acquisto di servizi;5;Utenze e canoni;4;Energia elettrica;2017-02-21;
215;1;"834,24";"834,24";IREN MERCATO S.P.A.;664780670D;Fatt.n. 011740013015 del 16/01/2017 sc. 16/02/2017 EN.ELETTRICA I.P. DICEMBRE 2016;21-02-2017;108203;1;155;1;Spese correnti;3;Acquisto di beni e servizi;2;Acquisto di servizi;5;Utenze e canoni;4;Energia elettrica;2017-02-21;
216;1;"360,00";"360,00";BGV ONORANZE FUNEBRI SRL; ;SALDO Fatt.n. FATTPA 3_17  del 09/01/2017 FORNITURA 4 CORONE DI ALLORO FESTIVITA' IV NOV. 2016;21-02-2017;101102;4;275;1;Spese correnti;3;Acquisto di beni e servizi;1;Acquisto di beni;2;Altri beni di consumo;999;Altri beni e materiali di consumo n.a.c.;2017-02-21;
217;1;"93,95";"93,95";GAMMA DARFO S.R.L.;Z2B1C3E06E;Fatt.n. 438/PA del 31/12/2016  Fornitura materiale cancelleria;21-02-2017;101202;1;294;1;Spese correnti;3;Acquisto di beni e servizi;1;Acquisto di beni;2;Altri beni di consumo;8;Strumenti tecnico-specialistici non sanitari;2017-02-21;
218;1;"98,60";"98,60";GRAFICHE E. GASPARI S.R.L.;Z401C5B3E4;Fatt.n. 22744 del 30/12/2016  RILEGATURA REGISTRI;21-02-2017;101203;3;299;1;Spese correnti;3;Acquisto di beni e servizi;2;Acquisto di servizi;99;Altri servizi;999;Altri servizi diversi n.a.c.;2017-02-21;
219;1;"355,26";"355,26";GRAFICHE E. GASPARI S.R.L.;ZE41C15D1A;Fatt.n. 22608 del 30/12/2016  FORNITURA FOGLI STATO CIVILE 2017 E CANCELLERIA UFF. ANAGRAFE;21-02-2017;101702;1;288;1;Spese correnti;3;Acquisto di beni e servizi;1;Acquisto di beni;2;Altri beni di consumo;1;"Carta, cancelleria e stampati";2017-02-21;
220;1;"226,70";"226,70";GRUPPO MAGGIOLI SPA;Z651C06DF4;Fatt.n. 0002148665 del 16/12/2016  FORNITURA CANCELLERIA SPECIFICA UFF. POL. LOCALE;21-02-2017;103102;6;283;1;Spese correnti;3;Acquisto di beni e servizi;1;Acquisto di beni;2;Altri beni di consumo;1;"Carta, cancelleria e stampati";2017-02-21;
221;1;"471,41";"471,41";ASSOCIAZIONE"RIFUGIO DEL CANE";Z611951BC;Fatt.n. 106/PA del 31/12/2016  MANTENIMENTO CANI RANDAGI - 2 SEM. 2016;21-02-2017;103103;6;100;1;Spese correnti;3;Acquisto di beni e servizi;2;Acquisto di servizi;15;Contratti di servizio pubblico;11;Contratti di servizio per la lotta al randagismo;2017-02-21;
222;1;"1.000,00";"1.000,00";VITALI DENIS - IMPIANTI ELETTRICI;ZE01CBBC1D;FATT.N. 2/PA DEL 09/01/2017  MANUTENZIONE IMPIANTI DI ILLUMUNAZIONE PUBBLICA DI PROPRIETA' COMUNALE;21-02-2017;108203;4;322;1;Spese correnti;3;Acquisto di beni e servizi;2;Acquisto di servizi;9;Manutenzione ordinaria e riparazioni;4;Manutenzione ordinaria e riparazioni di impianti e macchinari;2017-02-21;
223;1;"2.517,73";"2.517,73";SIBESTAR SRL;ZB61B5BFB0;SALDO Fatt.n. 465/FT  del 23/12/2016 Acquisizione di segnaletica stradale 2016;22-02-2017;108103;5;252;1;Spese correnti;3;Acquisto di beni e servizi;2;Acquisto di servizi;9;Manutenzione ordinaria e riparazioni;8;Manutenzione ordinaria e riparazioni di beni immobili;2017-02-22;
224;1;"805,20";"805,20";KONE ASCENSORI SPA;Z791521B0F;SALDO FATT.N. 0093512177  DEL 30/12/2016 FORNITURA SERVIZI DI MANUTENIONE SECONDO SEMESTRE 2016;22-02-2017;101503;1;199;1;Spese correnti;3;Acquisto di beni e servizi;2;Acquisto di servizi;9;Manutenzione ordinaria e riparazioni;4;Manutenzione ordinaria e riparazioni di impianti e macchinari;2017-02-22;
225;1;"522,81";"522,81";SERVIZIO ELETTRICO NAZIONALE;Z941916F86;SALDO Fatt.n. 166790310304437  del 13/01/2017 ENERGIA ELETTRICA DIC. GENN. 2017 -;22-02-2017;101503;6;92;1;Spese correnti;3;Acquisto di beni e servizi;2;Acquisto di servizi;5;Utenze e canoni;4;Energia elettrica;2017-02-22;
227;1;"3.270,28";"3.270,28";MANCINI MARCO;Z0C1CA1833;SALDO Fatt.n. 14  del 27/12/2016 STUDIO REALIZZAZIONE SISTEMA AERAZIONE AUTOMATICO DELLE VASCHE DI ALLEVAMENTO ITTIOGENICHE;24-02-2017;109603;6;341;1;Spese correnti;3;Acquisto di beni e servizi;2;Acquisto di servizi;99;Altri servizi;999;Altri servizi diversi n.a.c.;2017-02-24;
229;1;"176,30";"978,67";SOENERGY S.R.L.;6432016B81;SALDO Fatt.n. 171007813  del 13/01/2017 FORNITURA GAS PER RISCALDAMENTO UFFICI - CONG.NOVEMBRE E DICEMBRE 2016;28-02-2017;101803;7;76;1;Spese correnti;3;Acquisto di beni e servizi;2;Acquisto di servizi;5;Utenze e canoni;6;Gas;2017-02-28;
229;2;"801,37";"978,67";SOENERGY S.R.L.;6432016B81;ACCONTO Fatt.n. 171007813  del 13/01/2017 FORNITURA GAS PER RISCALDAMENTO UFFICI - CONG.NOVEMBRE E DICEMBRE 2016;28-02-2017;101803;7;76;1;Spese correnti;3;Acquisto di beni e servizi;2;Acquisto di servizi;5;Utenze e canoni;6;Gas;2017-02-28;
230;1;"797,87";"4.419,01";SOENERGY S.R.L.;6432016B81;ACCONTO Fatt.n. 171007815  del 13/01/2017 FORNITURA GAS PER RISCALDAMENTO SC.PRIMARIA ENDINE CONG.NOVEMBRE E DICEMBRE 2016;28-02-2017;104303;1;79;1;Spese correnti;3;Acquisto di beni e servizi;2;Acquisto di servizi;5;Utenze e canoni;6;Gas;2017-02-28;
230;2;"3.622,14";"4.419,01";SOENERGY S.R.L.;6432016B81;ACCONTO Fatt.n. 171007815  del 13/01/2017 FORNITURA GAS PER RISCALDAMENTO SC.PRIMARIA ENDINE CONG.NOVEMBRE E DICEMBRE 2016;28-02-2017;104303;1;79;1;Spese correnti;3;Acquisto di beni e servizi;2;Acquisto di servizi;5;Utenze e canoni;6;Gas;2017-02-28;
231;1;"2,89";"10,49";SOENERGY S.R.L.;6432016B81;ACCONTO Fatt.n. 171007816  del 13/01/2017 FORNITURA GAS PER RISCALDAMENTO IMOBILE COMUNALE - CONG.NOVEMBRE E MESE DICEMBRE 2016;28-02-2017;101503;6;77;1;Spese correnti;3;Acquisto di beni e servizi;2;Acquisto di servizi;5;Utenze e canoni;6;Gas;2017-02-28;
231;2;"9,60";"10,49";SOENERGY S.R.L.;6432016B81;ACCONTO Fatt.n. 171007816  del 13/01/2017 FORNITURA GAS PER RISCALDAMENTO IMOBILE COMUNALE - CONG.NOVEMBRE E MESE DICEMBRE 2016;28-02-2017;101503;6;77;1;Spese correnti;3;Acquisto di beni e servizi;2;Acquisto di servizi;5;Utenze e canoni;6;Gas;2017-02-28;
232;1;"133,93";"737,17";SOENERGY S.R.L.;6432016B81;ACCONTO Fatt.n. 171007814  del 13/01/2017 FORNITURA GAS PER RISCALDAMENTO SC.PRIMARIA ROVA - CONG.NOVEMBRE E MESE DICEMBRE 2016;28-02-2017;104203;2;78;1;Spese correnti;3;Acquisto di beni e servizi;2;Acquisto di servizi;5;Utenze e canoni;6;Gas;2017-02-28;
232;2;"604,24";"737,17";SOENERGY S.R.L.;6432016B81;ACCONTO Fatt.n. 171007814  del 13/01/2017 FORNITURA GAS PER RISCALDAMENTO SC.PRIMARIA ROVA - CONG.NOVEMBRE E MESE DICEMBRE 2016;28-02-2017;104203;2;78;1;Spese correnti;3;Acquisto di beni e servizi;2;Acquisto di servizi;5;Utenze e canoni;6;Gas;2017-02-28;
233;1;"184,34";"1.022,23";SOENERGY S.R.L.;6432016B81;ACCONTO Fatt.n. 171007817  del 13/01/2017 FORNITURA GAS PER RISCALDAMENTO IMP.SPORTIVI - CONG. NOVEMBRE E MESE DICEMBRE 2016;28-02-2017;106203;1;80;1;Spese correnti;3;Acquisto di beni e servizi;2;Acquisto di servizi;5;Utenze e canoni;6;Gas;2017-02-28;
233;2;"838,89";"1.022,23";SOENERGY S.R.L.;6432016B81;ACCONTO Fatt.n. 171007817  del 13/01/2017 FORNITURA GAS PER RISCALDAMENTO IMP.SPORTIVI - CONG. NOVEMBRE E MESE DICEMBRE 2016;28-02-2017;106203;1;80;1;Spese correnti;3;Acquisto di beni e servizi;2;Acquisto di servizi;5;Utenze e canoni;6;Gas;2017-02-28;
234;1;"61,97";"338,12";KUWAIT PETROLEUM ITALIA SPA;Z2A1A2F9EF;ACCONTO Fatt.n. PJ00060872  del 31/12/2016 CARBURANTI  DICEMBRE 2016;28-02-2017;103102;2;213;1;Spese correnti;3;Acquisto di beni e servizi;1;Acquisto di beni;2;Altri beni di consumo;2;"Carburanti, combustibili e lubrificanti";2017-02-28;
234;2;"277,15";"338,12";KUWAIT PETROLEUM ITALIA SPA;Z2A1A2F9EF;ACCONTO Fatt.n. PJ00060872  del 31/12/2016 CARBURANTI  DICEMBRE 2016;28-02-2017;103102;2;213;1;Spese correnti;3;Acquisto di beni e servizi;1;Acquisto di beni;2;Altri beni di consumo;2;"Carburanti, combustibili e lubrificanti";2017-02-28;
235;1;"80,31";"445,35";KUWAIT PETROLEUM ITALIA SPA;Z2A1A2F9EF;ACCONTO Fatt.n. PJ00060872  del 31/12/2016 CARBURANTI  DICEMBRE 2016;28-02-2017;108102;2;212;1;Spese correnti;3;Acquisto di beni e servizi;1;Acquisto di beni;2;Altri beni di consumo;2;"Carburanti, combustibili e lubrificanti";2017-02-28;
235;2;"365,04";"445,35";KUWAIT PETROLEUM ITALIA SPA;Z2A1A2F9EF;ACCONTO Fatt.n. PJ00060872  del 31/12/2016 CARBURANTI  DICEMBRE 2016;28-02-2017;108102;2;212;1;Spese correnti;3;Acquisto di beni e servizi;1;Acquisto di beni;2;Altri beni di consumo;2;"Carburanti, combustibili e lubrificanti";2017-02-28;
236;1;"38,13";"211,43";QCOM S.P.A.; ;ACCONTO Fatt.n. 000128/PA  del 31/01/2017 CANONE ADSL GENNAIO 2017;28-02-2017;101803;7;66;1;Spese correnti;3;Acquisto di beni e servizi;2;Acquisto di servizi;5;Utenze e canoni;1;Telefonia fissa;2017-02-28;
236;2;"173,30";"211,43";QCOM S.P.A.; ;ACCONTO Fatt.n. 000128/PA  del 31/01/2017 CANONE ADSL GENNAIO 2017;28-02-2017;101803;7;66;1;Spese correnti;3;Acquisto di beni e servizi;2;Acquisto di servizi;5;Utenze e canoni;1;Telefonia fissa;2017-02-28;
237;1;"8.579,14";"8.579,14";MABB S.R.L.;66409247D0;SALDO Fatt.n. 8/2  del 31/01/2017 TRASPORTO SCOLASTICO - GENNAIO 2017;03-03-2017;104503;1;156;1;Spese correnti;3;Acquisto di beni e servizi;2;Acquisto di servizi;15;Contratti di servizio pubblico;2;Contratti di servizio di trasporto scolastico;2017-03-03;
238;1;"3.000,00";"3.000,00";ASSOCIAZIONE PESCA DILETTANTISTICA RESPONSABILE CINESI; ;CONTRIBUTO ALL' A.S.D. PESCA ENDINESE PER GESTIONE INCIBATOIO IN LOC. PRADA;03-03-2017;109605;5;339;1;Spese correnti;4;Trasferimenti correnti;4;Trasferimenti correnti a Istituzioni Sociali Private;1;Trasferimenti correnti a Istituzioni Sociali Private;1;Trasferimenti correnti a Istituzioni Sociali Private;2017-03-03;
245;1;"51,63";"51,63";AGENZIA DELLE ENTRATE; ;IVA 2016 - SALDO A DEBITO;07-03-2017;101407;2;360;1;Spese correnti;10;Altre spese correnti;3;Versamenti IVA a debito;1;Versamenti IVA a debito per le gestioni commerciali;1;Versamenti IVA a debito per le gestioni commerciali;2017-03-07;
247;1;"300,00";"300,00";ISTITUTO IDM s.r.l.; ;Fatt.n. 29-2017 PA del 08/02/2017 CORSI FORMATIVI "MENTE LOCALE";10-03-2017;101203;2;298;1;Spese correnti;3;Acquisto di beni e servizi;2;Acquisto di servizi;4;Acquisto di servizi per formazione e addestramento del personale dell'ente;999;Acquisto di servizi per altre spese per formazione e addestramento n.a.c.;2017-03-10;
248;1;"503,06";"503,06";POSTE ITALIANE SPA; ;Fatt.n. 8717041129 del 10/02/2017  SPESE DI SPEDIZIONE  -NOVEMBRE 2016;10-03-2017;101203;21;59;1;Spese correnti;3;Acquisto di beni e servizi;2;Acquisto di servizi;16;Servizi amministrativi;2;Spese postali;2017-03-10;
249;1;"30,91";"30,91";BORGO SRL; ;Fatt.n. 007/000106 del 17/12/2016 FORNITURA LIBRI DI TESTO SCUOLE PRIM. A.S. 2016/2017;10-03-2017;104202;2;238;1;Spese correnti;3;Acquisto di beni e servizi;1;Acquisto di beni;1;"Giornali, riviste e pubblicazioni";2;Pubblicazioni;2017-03-10;
250;1;"26,60";"26,60";LEGGERE S.R.L. CENTRO SERVIZI BIBLIOTECHE DI BERGAMO;6333662F36;Fatt.n. 1420 del 31/01/2017  FORNITURA LIBRI BIBLIOTECA;10-03-2017;205105;3;224;2;Spese in conto capitale;2;Investimenti fissi lordi e acquisto di terreni;1;Beni materiali;99;Altri beni materiali;1;Materiale bibliografico;2017-03-10;
252;1;"9,54";"9,54";UILSER S.R.L.; ;SALDO Fatt.n. FATTPA 250_16  del 28/12/2016 ELABORAZIONE DOMANDE BONUS ENERGIA E GAS;14-03-2017;110403;1;118;1;Spese correnti;3;Acquisto di beni e servizi;2;Acquisto di servizi;99;Altri servizi;999;Altri servizi diversi n.a.c.;2017-03-14;
253;1;"191,03";"191,03";ERREBIAN S.P.A.;Z381A8A3E6;SALDO Fatt.n. V2/594905  del 09/12/2016 CANCELLERIA;14-03-2017;101802;1;174;1;Spese correnti;3;Acquisto di beni e servizi;1;Acquisto di beni;2;Altri beni di consumo;1;"Carta, cancelleria e stampati";2017-03-14;
254;1;"662,46";"662,46";VALSECCHI GIOVANNI S.R.L.;Z8F1BD0EB2;SALDO Fatt.n. 5776/PA  del 18/11/2016 CARTA PER FOTOCOPIE;14-03-2017;101802;1;277;1;Spese correnti;3;Acquisto di beni e servizi;1;Acquisto di beni;2;Altri beni di consumo;1;"Carta, cancelleria e stampati";2017-03-14;
255;1;"289,24";"289,24";C.B.L. SRL;Z2B1CBDBBA;SALDO Fatt.n. 3PA  del 31/01/2017 Acquisto minuteria da ferramenta 2016;14-03-2017;108102;4;323;1;Spese correnti;3;Acquisto di beni e servizi;1;Acquisto di beni;2;Altri beni di consumo;999;Altri beni e materiali di consumo n.a.c.;2017-03-14;
256;1;"23,59";"165,31";LA TECNICA S.P.A.;Z97195642D;SALDO Fatt.n. 421/PA  del 31/01/2017 CARTUCCIA INCHIOSTRO;14-03-2017;101802;1;126;1;Spese correnti;3;Acquisto di beni e servizi;1;Acquisto di beni;2;Altri beni di consumo;1;"Carta, cancelleria e stampati";2017-03-14;
256;2;"143,72";"165,31";LA TECNICA S.P.A.;Z97195642D;SALDO Fatt.n. 4378/PA  del 30/11/2016 CARTUCCE INCHIOSTRO;14-03-2017;101802;1;126;1;Spese correnti;3;Acquisto di beni e servizi;1;Acquisto di beni;2;Altri beni di consumo;1;"Carta, cancelleria e stampati";2017-03-14;
257;1;"92,50";"92,50";INGRAPHIC DI TRAPLETTI MASSIMILIANO;ZB41C02424;SALDO Fatt.n. 17-0003/PA  del 28/02/2017 FORNITURA BUONI PER REFEZIONE SCOLASTICA;14-03-2017;101203;3;280;1;Spese correnti;3;Acquisto di beni e servizi;2;Acquisto di servizi;99;Altri servizi;999;Altri servizi diversi n.a.c.;2017-03-14;
258;1;"212,50";"212,50";COOPERATIVA SOCIALE PAESE O.N.L.U.S.; ;RIMBORSO  SPESE MINUTE GESTIONE BANCO ALIMENTARE;14-03-2017;110405;5;63;1;Spese correnti;4;Trasferimenti correnti;4;Trasferimenti correnti a Istituzioni Sociali Private;1;Trasferimenti correnti a Istituzioni Sociali Private;1;Trasferimenti correnti a Istituzioni Sociali Private;2017-03-14;
259;1;"12,76";"52,06";CITTA' DI ROMANO  DI LOMBARDIA; ;RIMBORSO DIRITTI DI NOTIFICA -AVVISI TARSU 2011 TARES 2013 - NOTIFICHE N. 1864 1865;17-03-2017;101203;3;53;1;Spese correnti;3;Acquisto di beni e servizi;2;Acquisto di servizi;99;Altri servizi;999;Altri servizi diversi n.a.c.;2017-03-17;
259;2;"23,66";"52,06";CITTA' DI VELLETRI AREA METROPOLITANA DI ROMA CAPITALE; ;RIMBORSO DIRITTI DI NOTIFICA - II SEMESTRE 2016 -PROT.7202/16.02.2017- TARES;17-03-2017;101203;3;53;1;Spese correnti;3;Acquisto di beni e servizi;2;Acquisto di servizi;99;Altri servizi;999;Altri servizi diversi n.a.c.;2017-03-17;
259;3;"6,88";"52,06";COMUNE DI AGLIANA; ;RIMBORSO DIRITTI DI NOTIFICA - TARSU - NOTIFICHE DAL 1.10.16 AL 31.12.16 -;17-03-2017;101203;3;53;1;Spese correnti;3;Acquisto di beni e servizi;2;Acquisto di servizi;99;Altri servizi;999;Altri servizi diversi n.a.c.;2017-03-17;
259;4;"6,88";"52,06";COMUNE DI MARSALA; ;RIMBORSO DIRITTI DI NOTIFICA - 2016 -AVVISO ACCERTAMENTO TARSU;17-03-2017;101203;3;53;1;Spese correnti;3;Acquisto di beni e servizi;2;Acquisto di servizi;99;Altri servizi;999;Altri servizi diversi n.a.c.;2017-03-17;
259;5;"6,88";"52,06";COMUNE DI SALE MARASINO; ;RIMBORSO DIRITTI DI NOTIFICA - AVVISO N. 172 2015 -PROT. 6914/29.11.16 -;17-03-2017;101203;3;53;1;Spese correnti;3;Acquisto di beni e servizi;2;Acquisto di servizi;99;Altri servizi;999;Altri servizi diversi n.a.c.;2017-03-17;
261;1;"927,30";"927,30";AMMINISTRATORI; ;INDENNITA' DI CARICA AL SINDACO - MARZO 2017-;20-03-2017;101103;1;5;1;Spese correnti;3;Acquisto di beni e servizi;2;Acquisto di servizi;1;Organi e incarichi istituzionali dell'amministrazione;1;Organi istituzionali dell'amministrazione - Indennit�;2017-03-20;
262;1;"1.066,39";"1.066,39";AMMINISTRATORI; ;INDENNITA' DI FUNZIONE AGLI ASSESSORI -MARZO 2017-;20-03-2017;101103;2;6;1;Spese correnti;3;Acquisto di beni e servizi;2;Acquisto di servizi;1;Organi e incarichi istituzionali dell'amministrazione;1;Organi istituzionali dell'amministrazione - Indennit�;2017-03-20;
305;1;"610,00";"610,00";RAINERI SERVICE S.A.S. DI ARRIGONI ROBERTA E C.;ZEE1CB7F2D;Fatt.n. 2771 del 18/01/2017  MANUT. ORDINARIA MONTAFERETRI;22-03-2017;110503;1;318;1;Spese correnti;3;Acquisto di beni e servizi;2;Acquisto di servizi;9;Manutenzione ordinaria e riparazioni;4;Manutenzione ordinaria e riparazioni di impianti e macchinari;2017-03-22;
306;1;"366,00";"366,00";CRES LT SRL;ZDF1ACCC99;FATT.N. 260 DEL 31/10/2016  CORSO SALUTE E SICUREZZA NEI LUOGHI DI LAVORO -;22-03-2017;101603;1;251;1;Spese correnti;3;Acquisto di beni e servizi;2;Acquisto di servizi;99;Altri servizi;999;Altri servizi diversi n.a.c.;2017-03-22;
307;1;"322,00";"322,00";CRES LT SRL;ZA117C0D26;FATT.N. 337 DEL 23/12/2016 CORSO ADDETTI ANTINCENDIO DA 8 ORE;22-03-2017;101603;1;421;1;Spese correnti;3;Acquisto di beni e servizi;2;Acquisto di servizi;99;Altri servizi;999;Altri servizi diversi n.a.c.;2017-03-22;
308;1;"334,28";"334,28";ISEO SERRATURE;Z271CC0AB1;FATT.N. 0117PA1DEL 30/01/2017 LUCCHETTI PER LA GESTIONE SBARRE ACCESSO ALLE STRADE E SENTIERI COMUNALI;24-03-2017;108102;4;340;1;Spese correnti;3;Acquisto di beni e servizi;1;Acquisto di beni;2;Altri beni di consumo;999;Altri beni e materiali di consumo n.a.c.;2017-03-24;
309;1;"4.414,96";"4.414,96";SARMENTI ANTONIO  C. SNC;Z951CBE0C4;Fatt.n. 01/PA del 13/02/2017 Prestazione di servizio - Riparazione caldaia scuole medie;24-03-2017;101503;1;319;1;Spese correnti;3;Acquisto di beni e servizi;2;Acquisto di servizi;9;Manutenzione ordinaria e riparazioni;4;Manutenzione ordinaria e riparazioni di impianti e macchinari;2017-03-24;
310;1;"595,36";"1.219,63";GENERAL SERVICE;Z531CDEE28;SALDO Fatt.n. FatPAM 10/.PA/2017  del 28/02/2017 INTERVENTI DI PULIZIA ORDINARIA PRESSO I LOCALI COMUNALI FEBBRAIO 2017;24-03-2017;101503;5;58;1;Spese correnti;3;Acquisto di beni e servizi;2;Acquisto di servizi;13;Servizi ausiliari per il funzionamento dell'ente;2;Servizi di pulizia e lavanderia;2017-03-24;
310;2;"623,27";"1.219,63";GENERAL SERVICE;Z531CDEE28;SALDO Fatt.n. FatPAM 2/.PA/2017  del 31/01/2017 INTERVENTI DI PULIZIA ORDINARIA PRESSO I LOCALI COMUNALI ESEGUITI NEL MESE DI GENNAIO 2017;24-03-2017;101503;5;58;1;Spese correnti;3;Acquisto di beni e servizi;2;Acquisto di servizi;13;Servizi ausiliari per il funzionamento dell'ente;2;Servizi di pulizia e lavanderia;2017-03-24;
311;1;"118,19";"118,19";MIDA S.R.L.;Z97195642D;FATT.N. 24 DEL 03/01/2017 - FORNITURA TONER E CARTUCCE PER STAMPANTI UFFICI COMUNALI;24-03-2017;101802;1;125;1;Spese correnti;3;Acquisto di beni e servizi;1;Acquisto di beni;2;Altri beni di consumo;1;"Carta, cancelleria e stampati";2017-03-24;
312;1;"310,88";"310,88";GAMMA DARFO S.R.L.;ZD31CC652C;Fatt.n. 4/PA del 26/01/2017  Acquisto apparecchiature informatiche server;24-03-2017;201205;4;331;2;Spese in conto capitale;2;Investimenti fissi lordi e acquisto di terreni;1;Beni materiali;7;Hardware;999;Hardware n.a.c.;2017-03-24;
313;1;"6.344,00";"6.344,00";DALL'ANGELO PAOLO - IMPRESA EDILE;ZB51C1E868;"Fatt.n. 1/E del 28/02/2017 sc. 28/02/2017 INTERVENTO DI RIQUALIFICAZIONE URBANA, VIA GAIANO: SUPERAMENTO BARRIERE ARCHITETTONICHE - PRIMO LOTTO";24-03-2017;209101;1;333;2;Spese in conto capitale;2;Investimenti fissi lordi e acquisto di terreni;1;Beni materiali;9;Beni immobili;12;Infrastrutture stradali;2017-03-24;
314;1;"288,54";"288,54";BERTONI ANTINFORTUNISTICA S.N.C.;ZF51C9A87A;SALDO Fatt.n. 3PA  del 31/01/2017 ARREDI PER SCUOLE COMUNALI;24-03-2017;204205;1;324;2;Spese in conto capitale;2;Investimenti fissi lordi e acquisto di terreni;1;Beni materiali;3;Mobili e arredi;999;Mobili e arredi n.a.c.;2017-03-24;
315;1;"999,42";"999,42";BERTONI ANTINFORTUNISTICA S.N.C.;Z3B1C9A46D;SALDO Fatt.n. 4PA  del 27/02/2017 Acquisto vestiario DPI 2016;24-03-2017;108102;3;316;1;Spese correnti;3;Acquisto di beni e servizi;1;Acquisto di beni;2;Altri beni di consumo;4;Vestiario;2017-03-24;
316;1;"345,26";"345,26";Converge S.p.A.;ZB21CC612E;Fatt.n. 200610 del 28/02/2017 sc. 28/03/2017 Acquisto controller per server gestionali;24-03-2017;201205;4;329;2;Spese in conto capitale;2;Investimenti fissi lordi e acquisto di terreni;1;Beni materiali;7;Hardware;999;Hardware n.a.c.;2017-03-24;
317;1;"2.203,32";"2.203,32";Converge S.p.A.;Z4A1CC5EA4;Fatt.n. 200609 del 28/02/2017 sc. 28/03/2017 Acquisto server gestionali;24-03-2017;201205;4;332;2;Spese in conto capitale;2;Investimenti fissi lordi e acquisto di terreni;1;Beni materiali;7;Hardware;999;Hardware n.a.c.;2017-03-24;
318;1;"5.124,00";"5.124,00";ROMELI GIUSEPPE -;Z9E1BD41CD;SALDO Fatt.n. 2E  del 31/12/2016 SERVIZIO NEVE STAGIONE 2016/2017: CORRISPETTIVO FISSO + INTERVENTI ESEGUITI FINO AL 31/12/2016;24-03-2017;108103;3;315;1;Spese correnti;3;Acquisto di beni e servizi;2;Acquisto di servizi;13;Servizi ausiliari per il funzionamento dell'ente;999;Altri servizi ausiliari n.a.c.;2017-03-24;
319;1;"1.636,57";"1.636,57";CASA DEL PESCATORE-MONASTEROLO D.C.-COOP. L'INNESTO;ZC3187CF87;SALDO Fatt.n. 219/PA  del 31/12/2016 Manutenzioni verde dicembre 2016;24-03-2017;110403;5;65;1;Spese correnti;3;Acquisto di beni e servizi;2;Acquisto di servizi;13;Servizi ausiliari per il funzionamento dell'ente;999;Altri servizi ausiliari n.a.c.;2017-03-24;
320;1;"19,47";"361,34";TELECOM ITALIA SPA;Z331DD28B3;FATT.N. 8B01274023  DEL 06/12/2016 SPESE TELEFONIA UFFICI  1 BIM 2017;28-03-2017;101503;6;86;1;Spese correnti;3;Acquisto di beni e servizi;2;Acquisto di servizi;5;Utenze e canoni;1;Telefonia fissa;2017-03-28;
320;2;"23,62";"361,34";TELECOM ITALIA SPA;Z331DD28B3;ACCONTO FATT.N. 8B01279767  DEL 06/12/2016 SPESE TELEFONICHE UFFICI 1 BIM 2017;28-03-2017;101503;6;86;1;Spese correnti;3;Acquisto di beni e servizi;2;Acquisto di servizi;5;Utenze e canoni;1;Telefonia fissa;2017-03-28;
320;3;"23,07";"361,34";TELECOM ITALIA SPA;Z331DD28B3;ACCONTO FATT.N. 8B01277566 DEL 06/12/2016 SPESE TELEFONICHE UFFICI FAX 1 BIM 2017;28-03-2017;101503;6;86;1;Spese correnti;3;Acquisto di beni e servizi;2;Acquisto di servizi;5;Utenze e canoni;1;Telefonia fissa;2017-03-28;
320;4;"89,52";"361,34";TELECOM ITALIA SPA;Z331DD28B3;ACCONTO FATT.N.8B01274023  DEL 06/12/2016 SPESE TELEFONIA UFFICI  1 BIM 2017;28-03-2017;101503;6;86;1;Spese correnti;3;Acquisto di beni e servizi;2;Acquisto di servizi;5;Utenze e canoni;1;Telefonia fissa;2017-03-28;
320;5;"103,80";"361,34";TELECOM ITALIA SPA;Z331DD28B3;ACCONTO Fatt.n. 8B01279767  del 06/12/2016 SPESE TELEFONICHE UFFICI 1 BIM 2017;28-03-2017;101503;6;86;1;Spese correnti;3;Acquisto di beni e servizi;2;Acquisto di servizi;5;Utenze e canoni;1;Telefonia fissa;2017-03-28;
320;6;"105,86";"361,34";TELECOM ITALIA SPA;Z331DD28B3;ACCONTO FATT.N.8B01277566  DEL 06/12/2016 SPESE TELEFONICHE UFFICI FAX 1 BIM 2017;28-03-2017;101503;6;86;1;Spese correnti;3;Acquisto di beni e servizi;2;Acquisto di servizi;5;Utenze e canoni;1;Telefonia fissa;2017-03-28;
321;1;"12,06";"195,79";TELECOM ITALIA SPA;Z331DD28B3;ACCONTO FAT.N. 8B01279663 DEL 06/12/2016 SPESE TELEFONICHE SC.SECONDARIA - 1BIM 2017;28-03-2017;104303;1;88;1;Spese correnti;3;Acquisto di beni e servizi;2;Acquisto di servizi;5;Utenze e canoni;1;Telefonia fissa;2017-03-28;
321;2;"23,07";"195,79";TELECOM ITALIA SPA;Z331DD28B3;ACCONTO FATT.N. 8B01280274 DEL 06/12/2016 SPESE TELEFONICHE SCUOLA SECONDARIA 1 BIM 2017;28-03-2017;104303;1;88;1;Spese correnti;3;Acquisto di beni e servizi;2;Acquisto di servizi;5;Utenze e canoni;1;Telefonia fissa;2017-03-28;
321;3;"55,80";"195,79";TELECOM ITALIA SPA;Z331DD28B3;ACCONTO FATT.N. 8B01279663  DEL 06/12/2016 SPESE TELEFONICHE SC.SECONDARIA - 1BIM 2017;28-03-2017;104303;1;88;1;Spese correnti;3;Acquisto di beni e servizi;2;Acquisto di servizi;5;Utenze e canoni;1;Telefonia fissa;2017-03-28;
321;4;"105,86";"195,79";TELECOM ITALIA SPA;Z331DD28B3;ACCONTO FATT.N. 8B01280274  DEL 06/12/2016 SPESE TELEFONICHE SCUOLA SECONDARIA 1 BIM 2017;28-03-2017;104303;1;88;1;Spese correnti;3;Acquisto di beni e servizi;2;Acquisto di servizi;5;Utenze e canoni;1;Telefonia fissa;2017-03-28;
322;1;"12,06";"67,86";TELECOM ITALIA SPA;Z331DD28B3;ACCONTO FATT.N. 8B01275627  DEL 06/12/2016 SPESE TELEFONICHE BIBLIOTECA 035826923 1BIM 2017;28-03-2017;105103;5;89;1;Spese correnti;3;Acquisto di beni e servizi;2;Acquisto di servizi;5;Utenze e canoni;1;Telefonia fissa;2017-03-28;
322;2;"55,80";"67,86";TELECOM ITALIA SPA;Z331DD28B3;ACCONTO Fatt.n. 8B01275627  del 06/12/2016 SPESE TELEFONICHE BIBLIOTECA 035826923 1BIM 2017;28-03-2017;105103;5;89;1;Spese correnti;3;Acquisto di beni e servizi;2;Acquisto di servizi;5;Utenze e canoni;1;Telefonia fissa;2017-03-28;
323;1;"12,06";"203,45";TELECOM ITALIA SPA;Z331DD28B3;ACCONTO FATT.N. 8B01279327 DEL 06/12/2016 SPESE TELEFONICHE SC.PRIMARIA - 1 BIM 2017;28-03-2017;104203;2;87;1;Spese correnti;3;Acquisto di beni e servizi;2;Acquisto di servizi;5;Utenze e canoni;1;Telefonia fissa;2017-03-28;
323;2;"25,63";"203,45";TELECOM ITALIA SPA;Z331DD28B3;ACCONTO FATT.N. 8B01274398  DEL 06/12/2016 SPESE TELEFONICHE SCUOLA PRIMARIA 1BIM 2017;28-03-2017;104203;2;87;1;Spese correnti;3;Acquisto di beni e servizi;2;Acquisto di servizi;5;Utenze e canoni;1;Telefonia fissa;2017-03-28;
323;3;"55,80";"203,45";TELECOM ITALIA SPA;Z331DD28B3;ACCONTO FATT.N. 8B01279327 DEL 06/12/2016 SPESE TELEFONICHE SC.PRIMARIA - 1 BIM 2017;28-03-2017;104203;2;87;1;Spese correnti;3;Acquisto di beni e servizi;2;Acquisto di servizi;5;Utenze e canoni;1;Telefonia fissa;2017-03-28;
323;4;"112,96";"203,45";TELECOM ITALIA SPA;Z331DD28B3;ACCONTO FATT.N. 8B01274398 DEL 06/12/2016 SPESE TELEFONICHE SCUOLA PRIMARIA 1BIM 2017;28-03-2017;104203;2;87;1;Spese correnti;3;Acquisto di beni e servizi;2;Acquisto di servizi;5;Utenze e canoni;1;Telefonia fissa;2017-03-28;
324;1;"99,02";"549,13";KUWAIT PETROLEUM ITALIA SPA;Z2A1A2F9EF;ACCONTO FATT.N. PJ00064744 DEL 31/01/2017 CARBURANTI GENNAIO 2017;28-03-2017;101202;6;22;1;Spese correnti;3;Acquisto di beni e servizi;1;Acquisto di beni;2;Altri beni di consumo;2;"Carburanti, combustibili e lubrificanti";2017-03-28;
324;2;"450,11";"549,13";KUWAIT PETROLEUM ITALIA SPA;Z2A1A2F9EF;ACCONTO Fatt.n. PJ00064744  del 31/01/2017 Carburanti Gennaio 2017;28-03-2017;101202;6;22;1;Spese correnti;3;Acquisto di beni e servizi;1;Acquisto di beni;2;Altri beni di consumo;2;"Carburanti, combustibili e lubrificanti";2017-03-28;
325;1;"14.400,00";"15.000,00";SCUOLA MATERNA PARROCCHIALE "CASA DEI BIMBI"; ;CONTRIBUTO ALLA SCUOLA MATERNA PARROCCHIALE - 1^ RATA - ANNO 2017;28-03-2017;104105;1;65;1;Spese correnti;4;Trasferimenti correnti;4;Trasferimenti correnti a Istituzioni Sociali Private;1;Trasferimenti correnti a Istituzioni Sociali Private;1;Trasferimenti correnti a Istituzioni Sociali Private;2017-03-28;
325;2;"600,00";"15.000,00";SCUOLA MATERNA PARROCCHIALE "CASA DEI BIMBI"; ;CONTRIBUTO ALLA SCUOLA MATERNA PARROCCHIALE - 1^ RATA - ANNO 2017;28-03-2017;104105;1;65;1;Spese correnti;4;Trasferimenti correnti;4;Trasferimenti correnti a Istituzioni Sociali Private;1;Trasferimenti correnti a Istituzioni Sociali Private;1;Trasferimenti correnti a Istituzioni Sociali Private;2017-03-28;
327;1;"8.579,14";"8.579,14";MABB S.R.L.;66409247D0;SALDO Fatt.n. 23/2  del 28/02/2017 SERVIZIO TRASPORTO SCOLASTICO - FEBBRAIO 2017;29-03-2017;104503;1;156;1;Spese correnti;3;Acquisto di beni e servizi;2;Acquisto di servizi;15;Contratti di servizio pubblico;2;Contratti di servizio di trasporto scolastico;2017-03-29;
328;1;"206,88";"206,88";CASA DEL PESCATORE-MONASTEROLO D.C.-COOP. L'INNESTO;Z2F1CF32CB;SALDO Fatt.n. 9/PA  del 31/01/2017 MANUTENZIONE EDIFICI E SPAZI PUBBLICI MESE DI GENNAIO 2017;29-03-2017;110403;5;55;1;Spese correnti;3;Acquisto di beni e servizi;2;Acquisto di servizi;13;Servizi ausiliari per il funzionamento dell'ente;999;Altri servizi ausiliari n.a.c.;2017-03-29;
331;1;"35,22";"195,30";QCOM S.P.A.;ZC11DA97D2;SALDO Fatt.n. 000340/PA  del 28/02/2017 CANONE ADSL - FEBBRAIO;31-03-2017;101803;7;66;1;Spese correnti;3;Acquisto di beni e servizi;2;Acquisto di servizi;5;Utenze e canoni;1;Telefonia fissa;2017-03-31;
331;2;"160,08";"195,30";QCOM S.P.A.;ZC11DA97D2;ACCONTO Fatt.n. 000340/PA  del 28/02/2017 CANONE ADSL - FEBBRAIO;31-03-2017;101803;7;66;1;Spese correnti;3;Acquisto di beni e servizi;2;Acquisto di servizi;5;Utenze e canoni;1;Telefonia fissa;2017-03-31;
332;1;"138,71";"884,25";SOENERGY S.R.L.;6432016B81;ACCONTO Fatt.n. 171018744  del 13/02/2017 FORNITURA GAS IMPIANTI SPORTIVI - GENNAIO 2017;31-03-2017;106203;1;95;1;Spese correnti;3;Acquisto di beni e servizi;2;Acquisto di servizi;5;Utenze e canoni;6;Gas;2017-03-31;
332;2;"747,54";"884,25";SOENERGY S.R.L.;6432016B81;ACCONTO Fatt.n. 171018744  del 13/02/2017 FORNITURA GAS IMPIANTI SPORTIVI - GENNAIO 2017;31-03-2017;106203;1;95;1;Spese correnti;3;Acquisto di beni e servizi;2;Acquisto di servizi;5;Utenze e canoni;6;Gas;2017-03-31;
333;1;"692,61";"3.958,60";SOENERGY S.R.L.;6432016B81;ACCONTO Fatt.n. 171018745  del 13/02/2017 FORNITURA GAS - EDIFICIO SCOLASTICO VIA PARTIGIANI - GENNAIO 2017;31-03-2017;104303;1;94;1;Spese correnti;3;Acquisto di beni e servizi;2;Acquisto di servizi;5;Utenze e canoni;6;Gas;2017-03-31;
333;2;"3.266,99";"3.958,60";SOENERGY S.R.L.;6432016B81;ACCONTO Fatt.n. 171018745  del 13/02/2017 FORNITURA GAS - EDIFICIO SCOLASTICO VIA PARTIGIANI - GENNAIO 2017;31-03-2017;104303;1;94;1;Spese correnti;3;Acquisto di beni e servizi;2;Acquisto di servizi;5;Utenze e canoni;6;Gas;2017-03-31;
334;1;"140,04";"897,27";SOENERGY S.R.L.;6432016B81;ACCONTO Fatt.n. 171018741  del 13/02/2017 FORNITURA GAS - GENNAIO  2017- UFFICI COMUNALI;31-03-2017;101803;7;76;1;Spese correnti;3;Acquisto di beni e servizi;2;Acquisto di servizi;5;Utenze e canoni;6;Gas;2017-03-31;
334;2;"757,23";"897,27";SOENERGY S.R.L.;6432016B81;ACCONTO Fatt.n. 171018741  del 13/02/2017 FORNITURA GAS - GENNAIO  2017- UFFICI COMUNALI;31-03-2017;101803;7;76;1;Spese correnti;3;Acquisto di beni e servizi;2;Acquisto di servizi;5;Utenze e canoni;6;Gas;2017-03-31;
335;1;"96,75";"651,39";SOENERGY S.R.L.;6432016B81;ACCONTO Fatt.n. 171018742  del 13/02/2017 FORNITURA GAS - RISCALDAMENTO SC.PRIMARIA ROVA - GENNAIO;31-03-2017;104203;2;78;1;Spese correnti;3;Acquisto di beni e servizi;2;Acquisto di servizi;5;Utenze e canoni;6;Gas;2017-03-31;
335;2;"556,64";"651,39";SOENERGY S.R.L.;6432016B81;ACCONTO Fatt.n. 171018742  del 13/02/2017 FORNITURA GAS - RISCALDAMENTO SC.PRIMARIA ROVA - GENNAIO;31-03-2017;104203;2;78;1;Spese correnti;3;Acquisto di beni e servizi;2;Acquisto di servizi;5;Utenze e canoni;6;Gas;2017-03-31;
336;1;"11,71";"111,90";SOENERGY S.R.L.;6432016B81;ACCONTO Fatt.n. 171018743  del 13/02/2017 FORNITURA GAS - ALLOGGIO C.LE - GENNAIO 2017 -;31-03-2017;101503;6;77;1;Spese correnti;3;Acquisto di beni e servizi;2;Acquisto di servizi;5;Utenze e canoni;6;Gas;2017-03-31;
336;2;"100,19";"111,90";SOENERGY S.R.L.;6432016B81;ACCONTO Fatt.n. 171018743  del 13/02/2017 FORNITURA GAS - ALLOGGIO C.LE - GENNAIO 2017 -;31-03-2017;101503;6;77;1;Spese correnti;3;Acquisto di beni e servizi;2;Acquisto di servizi;5;Utenze e canoni;6;Gas;2017-03-31;
337;1;"3.339,48";"3.339,48";VAL CAVALLINA SERVIZI S.R.L.;Z291CEFE31;SALDO Fatt.n. 14/PE  del 31/01/2017 GESTIONE PIATTAFORMA ECOLOGICA - GENNAIO;31-03-2017;109503;3;61;1;Spese correnti;3;Acquisto di beni e servizi;2;Acquisto di servizi;99;Altri servizi;999;Altri servizi diversi n.a.c.;2017-03-31;
338;1;"-17.695,37";"10.299,53";VAL CAVALLINA SERVIZI S.R.L.;Z87187CD15;SALDO Fatt.n. 177/PE  del 22/11/2016 CONGUAGLIO PER ERRATA APPLICAZIONE ALIQUOTA IVA;31-03-2017;109503;3;50;1;Spese correnti;3;Acquisto di beni e servizi;2;Acquisto di servizi;99;Altri servizi;999;Altri servizi diversi n.a.c.;2017-03-31;
338;2;"-143,13";"10.299,53";VAL CAVALLINA SERVIZI S.R.L.;Z87187CD15;SALDO Fatt.n. 219/PE  del 31/12/2016 NOTA CREDITO (E);31-03-2017;109503;3;50;1;Spese correnti;3;Acquisto di beni e servizi;2;Acquisto di servizi;99;Altri servizi;999;Altri servizi diversi n.a.c.;2017-03-31;
338;3;"3.877,14";"10.299,53";VAL CAVALLINA SERVIZI S.R.L.;Z87187CD15;SALDO Fatt.n. 193/PE  del 30/11/2016 Gestione piattaforma ecologica novembre 2016;31-03-2017;109503;3;50;1;Spese correnti;3;Acquisto di beni e servizi;2;Acquisto di servizi;99;Altri servizi;999;Altri servizi diversi n.a.c.;2017-03-31;
338;4;"3.929,77";"10.299,53";VAL CAVALLINA SERVIZI S.R.L.;Z87187CD15;SALDO Fatt.n. 212/PE  del 31/12/2016 Gestione piazzola ecologica - dicembre 2016;31-03-2017;109503;3;50;1;Spese correnti;3;Acquisto di beni e servizi;2;Acquisto di servizi;99;Altri servizi;999;Altri servizi diversi n.a.c.;2017-03-31;
338;5;"4.376,32";"10.299,53";VAL CAVALLINA SERVIZI S.R.L.;Z87187CD15;SALDO Fatt.n. 173/PE  del 31/10/2016 GESTIONE PIATTAFORMA ECOLOGICA - OTTOBRE 2016;31-03-2017;109503;3;50;1;Spese correnti;3;Acquisto di beni e servizi;2;Acquisto di servizi;99;Altri servizi;999;Altri servizi diversi n.a.c.;2017-03-31;
338;6;"15.955,80";"10.299,53";VAL CAVALLINA SERVIZI S.R.L.;Z87187CD15;SALDO Fatt.n. 178/PE  del 22/11/2016 CONGUAGLIO PER ERRATA APPLICAZIONE ALIQUOTA IVA;31-03-2017;109503;3;50;1;Spese correnti;3;Acquisto di beni e servizi;2;Acquisto di servizi;99;Altri servizi;999;Altri servizi diversi n.a.c.;2017-03-31;
339;1;"3.996,56";"3.996,56";VAL CAVALLINA SERVIZI S.R.L.;Z291CEFE31;SALDO Fatt.n. 34/PE  del 28/02/2017 GESTIONE PIATTAFORMA ECOLOGICA FEBBRAIO;31-03-2017;109503;3;61;1;Spese correnti;3;Acquisto di beni e servizi;2;Acquisto di servizi;99;Altri servizi;999;Altri servizi diversi n.a.c.;2017-03-31;
340;1;"49,80";"49,80";IREN MERCATO S.P.A.;7028434F34;Fatt.n. 011740020817 del 16/02/2017  EN.ELETTRICA ALLOGGIO P.ZZA IV NOVEMBRE  -B.ALIMENTARE -GENNAIO 2017;31-03-2017;101503;6;101;1;Spese correnti;3;Acquisto di beni e servizi;2;Acquisto di servizi;5;Utenze e canoni;4;Energia elettrica;2017-03-31;
341;1;"557,26";"557,26";IREN MERCATO S.P.A.;7028434F34;Fatt.n. 011740020811 del 16/02/2017  EN.ELETTRICA UFFICI - GENNAIO 2017;31-03-2017;101803;7;100;1;Spese correnti;3;Acquisto di beni e servizi;2;Acquisto di servizi;5;Utenze e canoni;4;Energia elettrica;2017-03-31;
342;1;"691,41";"691,41";IREN MERCATO S.P.A.;7028434F34;Fatt.n. 011740020815 del 16/02/2017 7 EN.ELETTRICA EDIF.SCOLASTICO VIA PARTIGIANI - GENNAIO 2017;31-03-2017;104303;1;104;1;Spese correnti;3;Acquisto di beni e servizi;2;Acquisto di servizi;5;Utenze e canoni;4;Energia elettrica;2017-03-31;
343;1;"806,60";"806,60";IREN MERCATO S.P.A.;7028434F34;Fatt.n. 011740020816 del 16/02/2017  EN.ELETTRICA IMP.SPORTIVI - GENNAIO 2017 -;31-03-2017;106203;1;107;1;Spese correnti;3;Acquisto di beni e servizi;2;Acquisto di servizi;5;Utenze e canoni;4;Energia elettrica;2017-03-31;
344;1;"87,12";"87,12";IREN MERCATO S.P.A.;7028434F34;Fatt.n. 011740020812 del 16/02/2017  EN.ELETTRICA MAGAZZINO GENNAIO 2017;31-03-2017;108103;1;102;1;Spese correnti;3;Acquisto di beni e servizi;2;Acquisto di servizi;5;Utenze e canoni;4;Energia elettrica;2017-03-31;
345;1;"1.010,72";"7.345,50";IREN MERCATO S.P.A.;7028434F34;Fatt.n. 011740020813 del 16/02/2017  EN.ELETTRICA P.I. VALLE DELLE FONTANE - GENNAIO 2017 -;31-03-2017;108203;1;109;1;Spese correnti;3;Acquisto di beni e servizi;2;Acquisto di servizi;5;Utenze e canoni;4;Energia elettrica;2017-03-31;
345;2;"6.335,78";"7.345,50";IREN MERCATO S.P.A.;7028434F34;Fatt.n. 011740020810 del 16/02/2017 EN.ELETTRICA P.I. VIA FANOVO - GENNAIO 2017 -;31-03-2017;108203;1;109;1;Spese correnti;3;Acquisto di beni e servizi;2;Acquisto di servizi;5;Utenze e canoni;4;Energia elettrica;2017-03-31;
346;1;"211,49";"211,49";IREN MERCATO S.P.A.;7028434F34;Fatt.n. 011740020819 del 16/02/2017  EN.ELETTRICA STAZIONE ECOLOGICA - GENNAIO 2017;31-03-2017;109503;6;105;1;Spese correnti;3;Acquisto di beni e servizi;2;Acquisto di servizi;5;Utenze e canoni;4;Energia elettrica;2017-03-31;
347;1;"202,01";"202,01";IREN MERCATO S.P.A.;7028434F34;Fatt.n. 011740020814 del 16/02/2017  EN.ELETTRICA IMP.ITTIOGENICO -GENNAIO 2017;31-03-2017;109603;5;108;1;Spese correnti;3;Acquisto di beni e servizi;2;Acquisto di servizi;5;Utenze e canoni;4;Energia elettrica;2017-03-31;
348;1;"67,34";"67,34";IREN MERCATO S.P.A.;7028434F34;Fatt.n. 011740020818 del 16/02/2017 EN.ELETTRICA ILL.PUBBLICA - CIMITERO VIA MONTE SANTO - GENNAIO 2017;31-03-2017;110503;4;106;1;Spese correnti;3;Acquisto di beni e servizi;2;Acquisto di servizi;5;Utenze e canoni;4;Energia elettrica;2017-03-31;
351;1;"1.103,40";"7.000,97";ZAMBETTI GEOM. PAOLO;Z301CBB6D6;SALDO Fatt.n. 000002-2017-PAOLO  del 01/03/2017 REDAZIONE PRATICHE CATASTALI PER L'ACCATASTAMENTO DEGLI IMMOBILI DI PROPRIETA' COMUNALE;03-04-2017;101603;2;320;1;Spese correnti;3;Acquisto di beni e servizi;2;Acquisto di servizi;11;Prestazioni professionali e specialistiche;999;Altre prestazioni professionali e specialistiche n.a.c.;2017-04-03;
351;2;"5.897,57";"7.000,97";ZAMBETTI GEOM. PAOLO;Z301CBB6D6;SALDO Fatt.n. 000002-2017-PAOLO  del 01/03/2017 REDAZIONE PRATICHE CATASTALI PER L'ACCATASTAMENTO DEGLI IMMOBILI DI PROPRIETA' COMUNALE;03-04-2017;101603;2;320;1;Spese correnti;3;Acquisto di beni e servizi;2;Acquisto di servizi;11;Prestazioni professionali e specialistiche;999;Altre prestazioni professionali e specialistiche n.a.c.;2017-04-03;
354;1;"200,00";"4.000,00";AUGUSTO ALESSANDRA; ;"BONUS BEBE' 2016"-POIATTI NATHAN;04-04-2017;110405;15;347;1;Spese correnti;4;Trasferimenti correnti;2;Trasferimenti correnti a Famiglie;5;Altri trasferimenti a famiglie;999;Altri trasferimenti a famiglie n.a.c.;2017-04-04;
354;2;"200,00";"4.000,00";BERARDELLI ROBERTO; ;"BONUS BEBE' 2016"-BERARDELLI ELENA;04-04-2017;110405;15;347;1;Spese correnti;4;Trasferimenti correnti;2;Trasferimenti correnti a Famiglie;5;Altri trasferimenti a famiglie;999;Altri trasferimenti a famiglie n.a.c.;2017-04-04;
354;3;"200,00";"4.000,00";BOTTANI LUIGI; ;"BONUS BEBE' 2016"-BOTTANI FRANCESCO;04-04-2017;110405;15;347;1;Spese correnti;4;Trasferimenti correnti;2;Trasferimenti correnti a Famiglie;5;Altri trasferimenti a famiglie;999;Altri trasferimenti a famiglie n.a.c.;2017-04-04;
354;4;"200,00";"4.000,00";BRAGHIN FEDERICA; ;"BONUS BEBE' 2016" - BENAGLIO DAVIDE;04-04-2017;110405;15;347;1;Spese correnti;4;Trasferimenti correnti;2;Trasferimenti correnti a Famiglie;5;Altri trasferimenti a famiglie;999;Altri trasferimenti a famiglie n.a.c.;2017-04-04;
354;5;"200,00";"4.000,00";CADEI MONICA; ;"BONUS BEBE' 2016"-GIURINI CAMILLA;04-04-2017;110405;15;347;1;Spese correnti;4;Trasferimenti correnti;2;Trasferimenti correnti a Famiglie;5;Altri trasferimenti a famiglie;999;Altri trasferimenti a famiglie n.a.c.;2017-04-04;
354;6;"200,00";"4.000,00";CALZONI STEFANIA; ;"BONUS BEBE' 2016"-LANFRANCHI GABRIELE;04-04-2017;110405;15;347;1;Spese correnti;4;Trasferimenti correnti;2;Trasferimenti correnti a Famiglie;5;Altri trasferimenti a famiglie;999;Altri trasferimenti a famiglie n.a.c.;2017-04-04;
354;7;"200,00";"4.000,00";CRUZ MALAVE FELIX B.; ;"BONUS BEBE' 2016"-CRUZ LAZO BRITTANI;04-04-2017;110405;15;347;1;Spese correnti;4;Trasferimenti correnti;2;Trasferimenti correnti a Famiglie;5;Altri trasferimenti a famiglie;999;Altri trasferimenti a famiglie n.a.c.;2017-04-04;
354;8;"200,00";"4.000,00";ESSADEK ABDELILAH; ;"BONUS BEBE' 2016"-ESSADEK KHADIJA;04-04-2017;110405;15;347;1;Spese correnti;4;Trasferimenti correnti;2;Trasferimenti correnti a Famiglie;5;Altri trasferimenti a famiglie;999;Altri trasferimenti a famiglie n.a.c.;2017-04-04;
354;9;"200,00";"4.000,00";FACCHI DANIELE; ;"BONUS BEBE' 2016"-FACCHI LEONARDO;04-04-2017;110405;15;347;1;Spese correnti;4;Trasferimenti correnti;2;Trasferimenti correnti a Famiglie;5;Altri trasferimenti a famiglie;999;Altri trasferimenti a famiglie n.a.c.;2017-04-04;
354;10;"200,00";"4.000,00";FACCHINETTI OSCAR; ;"BONUS BEBE' 2016"-FACCHINETTI NOEMI;04-04-2017;110405;15;347;1;Spese correnti;4;Trasferimenti correnti;2;Trasferimenti correnti a Famiglie;5;Altri trasferimenti a famiglie;999;Altri trasferimenti a famiglie n.a.c.;2017-04-04;
354;11;"200,00";"4.000,00";GARATTINI EMANUEL; ;"BONUS BEBE' 2016"-GARATTINI CRIS;04-04-2017;110405;15;347;1;Spese correnti;4;Trasferimenti correnti;2;Trasferimenti correnti a Famiglie;5;Altri trasferimenti a famiglie;999;Altri trasferimenti a famiglie n.a.c.;2017-04-04;
354;12;"200,00";"4.000,00";GARDONI MIRKO CAMILLO; ;"BONUS BEBE' 2016"-GARDONI AURORA M.;04-04-2017;110405;15;347;1;Spese correnti;4;Trasferimenti correnti;2;Trasferimenti correnti a Famiglie;5;Altri trasferimenti a famiglie;999;Altri trasferimenti a famiglie n.a.c.;2017-04-04;
354;13;"200,00";"4.000,00";MAZZUCCHELLI FRANCESCA; ;"BONUS BEBE' 2016"-CERIMBELLI LORENZO;04-04-2017;110405;15;347;1;Spese correnti;4;Trasferimenti correnti;2;Trasferimenti correnti a Famiglie;5;Altri trasferimenti a famiglie;999;Altri trasferimenti a famiglie n.a.c.;2017-04-04;
354;14;"200,00";"4.000,00";MUTTI DIEGO; ;"BONUS BEBE' 2016"-MUTTI ANGELICA;04-04-2017;110405;15;347;1;Spese correnti;4;Trasferimenti correnti;2;Trasferimenti correnti a Famiglie;5;Altri trasferimenti a famiglie;999;Altri trasferimenti a famiglie n.a.c.;2017-04-04;
354;15;"200,00";"4.000,00";OPRANDI RICCARDO; ;"BONUS BEBE' 2016"-OPRANDI FILIPPO-;04-04-2017;110405;15;347;1;Spese correnti;4;Trasferimenti correnti;2;Trasferimenti correnti a Famiglie;5;Altri trasferimenti a famiglie;999;Altri trasferimenti a famiglie n.a.c.;2017-04-04;
354;16;"200,00";"4.000,00";PASINELLI SARA; ;"BONUS BEBE' 2016"-BARTOLINI LETIZIA-;04-04-2017;110405;15;347;1;Spese correnti;4;Trasferimenti correnti;2;Trasferimenti correnti a Famiglie;5;Altri trasferimenti a famiglie;999;Altri trasferimenti a famiglie n.a.c.;2017-04-04;
354;17;"200,00";"4.000,00";PATERA LAURA; ;"BONUS BEBE' 2016"-TRAPLETTI DANTE;04-04-2017;110405;15;347;1;Spese correnti;4;Trasferimenti correnti;2;Trasferimenti correnti a Famiglie;5;Altri trasferimenti a famiglie;999;Altri trasferimenti a famiglie n.a.c.;2017-04-04;
354;18;"200,00";"4.000,00";RIBOLI ANDREA GIUSEPPE; ;"BONUS BEBE' 2016"-RIBOLI GIADA;04-04-2017;110405;15;347;1;Spese correnti;4;Trasferimenti correnti;2;Trasferimenti correnti a Famiglie;5;Altri trasferimenti a famiglie;999;Altri trasferimenti a famiglie n.a.c.;2017-04-04;
354;19;"200,00";"4.000,00";ZANNI DAVIDE FAUSTO; ;"BONUS BEBE' 2016"-ZANNI ALISEA;04-04-2017;110405;15;347;1;Spese correnti;4;Trasferimenti correnti;2;Trasferimenti correnti a Famiglie;5;Altri trasferimenti a famiglie;999;Altri trasferimenti a famiglie n.a.c.;2017-04-04;
354;20;"200,00";"4.000,00";ZANNI LUCA; ;"BONUS BEBE' 2016"-ZANNI BEATRICE;04-04-2017;110405;15;347;1;Spese correnti;4;Trasferimenti correnti;2;Trasferimenti correnti a Famiglie;5;Altri trasferimenti a famiglie;999;Altri trasferimenti a famiglie n.a.c.;2017-04-04;
355;1;"805,20";"805,20";P.A.CONSULTING S.R.L.;Z6407DBD45;SALDO Fatt.n. 20/10  del 11/01/2017 GESTIONE PAGHE IV TRIMESTRE 2016;07-04-2017;101303;4;3;1;Spese correnti;3;Acquisto di beni e servizi;2;Acquisto di servizi;99;Altri servizi;999;Altri servizi diversi n.a.c.;2017-04-07;
356;1;"1.049,80";"1.049,80";SISTEMA BIBLIOTECARIO SERIATE LAGHI; ;QUOTA SERVIZI CENTRALIZZATI E ADESIONE AL SISTEMA BIBLIOTECARIO SERIATE LAGHI - QUOTA  -GENNAIO 2017;07-04-2017;105105;1;91;1;Spese correnti;4;Trasferimenti correnti;1;Trasferimenti correnti a Amministrazioni Pubbliche;2;Trasferimenti correnti a Amministrazioni Locali;3;Trasferimenti correnti a Comuni;2017-04-07;
358;1;"280,00";"350,00";PIZIALI MARIANGELA; ;PRESTAZIONE PER  INIZIATIVA "MOSTRA ARTISTI ENDINESI - EDIZIONE 2016/2017".;07-04-2017;105103;3;296;1;Spese correnti;3;Acquisto di beni e servizi;2;Acquisto di servizi;99;Altri servizi;999;Altri servizi diversi n.a.c.;2017-04-07;
358;2;"70,00";"350,00";PIZIALI MARIANGELA; ;ADESIONE INIZIATIVA "MOSTRA ARTISTI ENDINESI - EDIZIONE 2016/2017".;07-04-2017;105103;3;296;1;Spese correnti;3;Acquisto di beni e servizi;2;Acquisto di servizi;99;Altri servizi;999;Altri servizi diversi n.a.c.;2017-04-07;
359;1;"252,00";"315,00";PEDRETTI PAOLA; ;ADESIONE INIZIATIVA "MOSTRA ARTISTI ENDINESI - EDIZIONE 2016/2017".;07-04-2017;105103;3;296;1;Spese correnti;3;Acquisto di beni e servizi;2;Acquisto di servizi;99;Altri servizi;999;Altri servizi diversi n.a.c.;2017-04-07;
359;2;"63,00";"315,00";PEDRETTI PAOLA; ;PRESTAZIONE PER INIZIATIVA "MOSTRA ARTISTI ENDINESI - EDIZIONE 2016/2017".;07-04-2017;105103;3;296;1;Spese correnti;3;Acquisto di beni e servizi;2;Acquisto di servizi;99;Altri servizi;999;Altri servizi diversi n.a.c.;2017-04-07;
360;1;"252,00";"315,00";PILIA FRANCESCA; ;PRESTAZIONE PER  INIZIATIVA "MOSTRA ARTISTI ENDINESI - EDIZIONE 2016/2017".;07-04-2017;105103;3;296;1;Spese correnti;3;Acquisto di beni e servizi;2;Acquisto di servizi;99;Altri servizi;999;Altri servizi diversi n.a.c.;2017-04-07;
360;2;"63,00";"315,00";PILIA FRANCESCA; ;ADESIONE INIZIATIVA "MOSTRA ARTISTI ENDINESI - EDIZIONE 2016/2017".;07-04-2017;105103;3;296;1;Spese correnti;3;Acquisto di beni e servizi;2;Acquisto di servizi;99;Altri servizi;999;Altri servizi diversi n.a.c.;2017-04-07;
363;1;"6,88";"59,04";CITTA' DI CIAMPINO - UFFICIO MESSI -; ;RIMBORSO DIRITTI DI NOTIFICA - PROT.43657;07-04-2017;101203;3;53;1;Spese correnti;3;Acquisto di beni e servizi;2;Acquisto di servizi;99;Altri servizi;999;Altri servizi diversi n.a.c.;2017-04-07;
363;2;"18,64";"59,04";COMUNE DI COMUN NUOVO; ;"RIMBORSO DIRITTI DI NOTIFICA - ATTI ANNO 2016 - AVVISI ACCERTAMENTO N. 100, 31, 170";07-04-2017;101203;3;53;1;Spese correnti;3;Acquisto di beni e servizi;2;Acquisto di servizi;99;Altri servizi;999;Altri servizi diversi n.a.c.;2017-04-07;
363;3;"6,88";"59,04";COMUNE DI NEMBRO; ;RIMBORSO DIRITTI DI NOTIFICA - SECONDO SEMESTRE 2016;07-04-2017;101203;3;53;1;Spese correnti;3;Acquisto di beni e servizi;2;Acquisto di servizi;99;Altri servizi;999;Altri servizi diversi n.a.c.;2017-04-07;
363;4;"30,64";"59,04";COMUNE DI PISOGNE; ;RIMBORSO DIRITTI DI NOTIFICA - ATTO 2016- SIG. B.R.-;07-04-2017;101203;3;53;1;Spese correnti;3;Acquisto di beni e servizi;2;Acquisto di servizi;99;Altri servizi;999;Altri servizi diversi n.a.c.;2017-04-07;
364;1;"55,03";"55,03";IREN MERCATO S.P.A.;7028434F34;Fatt.n. 011740038691 del 14/03/2017 sc. 14/04/2017 EN.ELETTRICA ALLOGGIO COM.LE - B.ALIMENTARE - FEBBRAIO 2017;10-04-2017;101503;6;101;1;Spese correnti;3;Acquisto di beni e servizi;2;Acquisto di servizi;5;Utenze e canoni;4;Energia elettrica;2017-04-10;
365;1;"381,86";"381,86";IREN MERCATO S.P.A.;7028434F34;Fatt.n. 011730000873 del 15/03/2017 sc. 18/04/2017 EN.ELETTRICA SC.PRIMARIA - GENNAIO 2017;10-04-2017;104203;2;103;1;Spese correnti;3;Acquisto di beni e servizi;2;Acquisto di servizi;5;Utenze e canoni;4;Energia elettrica;2017-04-10;
366;1;"7,33";"1.812,95";IREN MERCATO S.P.A.;7028434F34;Fatt.n. 011740038697 del 14/03/2017 sc. 14/04/2017 EN.ELETTRICA I.P. GENNAIO 2017;10-04-2017;108203;1;109;1;Spese correnti;3;Acquisto di beni e servizi;2;Acquisto di servizi;5;Utenze e canoni;4;Energia elettrica;2017-04-10;
366;2;"110,98";"1.812,95";IREN MERCATO S.P.A.;7028434F34;Fatt.n. 011740038694 del 14/03/2017 sc. 14/04/2017 EN.ELETTRICA I.P. GENNAIO 2017;10-04-2017;108203;1;109;1;Spese correnti;3;Acquisto di beni e servizi;2;Acquisto di servizi;5;Utenze e canoni;4;Energia elettrica;2017-04-10;
366;3;"134,43";"1.812,95";IREN MERCATO S.P.A.;7028434F34;Fatt.n. 011740038695 del 14/03/2017 sc. 14/04/2017 EN.ELETTRICA I.P. GENNAIO 2017;10-04-2017;108203;1;109;1;Spese correnti;3;Acquisto di beni e servizi;2;Acquisto di servizi;5;Utenze e canoni;4;Energia elettrica;2017-04-10;
366;4;"758,15";"1.812,95";IREN MERCATO S.P.A.;7028434F34;Fatt.n. 011740038696 del 14/03/2017 sc. 14/04/2017 EN.ELETTRICA I.P. VIA PAPA GIOVANNI XXIII -GENNAIO 2017;10-04-2017;108203;1;109;1;Spese correnti;3;Acquisto di beni e servizi;2;Acquisto di servizi;5;Utenze e canoni;4;Energia elettrica;2017-04-10;
366;5;"802,06";"1.812,95";IREN MERCATO S.P.A.;7028434F34;Fatt.n. 011740038692 del 14/03/2017 sc. 14/04/2017 EN.ELETTRICA - I.P. GENNAIO 2017;10-04-2017;108203;1;109;1;Spese correnti;3;Acquisto di beni e servizi;2;Acquisto di servizi;5;Utenze e canoni;4;Energia elettrica;2017-04-10;
367;1;"183,04";"183,04";IREN MERCATO S.P.A.;7028434F34;Fatt.n. 011740038693 del 14/03/2017 sc. 14/04/2017 EN.ELETTRICA PIATTAFORMA ECOLOGICA FEBBRAIO 2017;10-04-2017;109503;6;105;1;Spese correnti;3;Acquisto di beni e servizi;2;Acquisto di servizi;5;Utenze e canoni;4;Energia elettrica;2017-04-10;
368;1;"37,72";"433,44";IREN MERCATO S.P.A.;7028434F34;SALDO Fatt.n. 011740049071  del 30/03/2017 EN.ELETTRICA CIMITERO VIA CAVENAGHI - GENNAIO 2017 -;10-04-2017;110503;4;106;1;Spese correnti;3;Acquisto di beni e servizi;2;Acquisto di servizi;5;Utenze e canoni;4;Energia elettrica;2017-04-10;
368;2;"165,24";"433,44";IREN MERCATO S.P.A.;7028434F34;SALDO Fatt.n. 011740049073  del 30/03/2017 EN.ELETTRICA ILL.VOTIVA CIMITERO SAN REMIGIO GENNAIO 2017;10-04-2017;110503;4;106;1;Spese correnti;3;Acquisto di beni e servizi;2;Acquisto di servizi;5;Utenze e canoni;4;Energia elettrica;2017-04-10;
368;3;"231,48";"433,44";IREN MERCATO S.P.A.;7028434F34;SALDO Fatt.n. 011730000872  del 15/03/2017 EN.ELETTRICA ILL.VOTIVA CIMITERO VIA MONTE SANTO - FEBBARIO 2017;10-04-2017;110503;4;106;1;Spese correnti;3;Acquisto di beni e servizi;2;Acquisto di servizi;5;Utenze e canoni;4;Energia elettrica;2017-04-10;
381;1;"67,43";"374,94";KUWAIT PETROLEUM ITALIA SPA;Z2A1A2F9EF;ACCONTO Fatt.n. PJ00068599  del 28/02/2017 Carburanti febbraio 2017;18-04-2017;108102;2;20;1;Spese correnti;3;Acquisto di beni e servizi;1;Acquisto di beni;2;Altri beni di consumo;2;"Carburanti, combustibili e lubrificanti";2017-04-18;
381;2;"307,51";"374,94";KUWAIT PETROLEUM ITALIA SPA;Z2A1A2F9EF;ACCONTO FATT.N. PJ00068599  DEL 28/02/2017 CARBURANTI FEBBRAIO 2017;18-04-2017;108102;2;20;1;Spese correnti;3;Acquisto di beni e servizi;1;Acquisto di beni;2;Altri beni di consumo;2;"Carburanti, combustibili e lubrificanti";2017-04-18;
382;1;"5,00";"5,00";TESORIERE COMUNALE BANCO BPM; ;SPESE PER IL SERVIZIO TESORERIA - ART.16 CONTRATTO REP. 881/2013 -1 TRIMESTRE 2017;18-04-2017;101303;5;117;1;Spese correnti;3;Acquisto di beni e servizi;2;Acquisto di servizi;17;Servizi finanziari;2;Oneri per servizio di tesoreria;2017-04-18;
383;1;"339,00";"339,00";CANTAMESSI S.R.L.;ZA51D7BFA1;Fatt.n. 30/FE del 08/03/2017 sc. 22/04/2017 RIPARAZIONE DAIHATSU TERIOS targa BS995WN;18-04-2017;101203;1;64;1;Spese correnti;3;Acquisto di beni e servizi;2;Acquisto di servizi;9;Manutenzione ordinaria e riparazioni;1;"Manutenzione ordinaria e riparazioni di mezzi di trasporto ad uso civile, di sicurezza e ordine pubblico";2017-04-18;
384;1;"317,40";"317,40";KYOCERA DOCUMENTS SOLUTIONS;Z92159FBC2;FATT.N. 1010407386 DEL 15/03/2017 SC. 30/04/2017 FOTOCOPIATRICI 24 - LOTTO 4 - 48 MESI CIG 6002452416;19-04-2017;101803;8;201;1;Spese correnti;3;Acquisto di beni e servizi;2;Acquisto di servizi;7;Utilizzo di beni di terzi;4;Noleggi di hardware;2017-04-19;
385;1;"324,39";"324,39";KYOCERA DOCUMENTS SOLUTIONS;ZBE159FBDA;FATT.N.1010407163 DEL 15/03/2017 SC. 30/04/2017 FOTOCOPIATRICI 24 - LOTTO 2 - 48 MESI CIG 6002442BD3;19-04-2017;101803;8;202;1;Spese correnti;3;Acquisto di beni e servizi;2;Acquisto di servizi;7;Utilizzo di beni di terzi;4;Noleggi di hardware;2017-04-19;
386;1;"8.579,14";"8.579,14";MABB S.R.L.;66409247D0;FATT.N. 53/2 del 31/03/2017 SC. 30/04/2017 TRASPORTO SCOLASTICO MARZO 2017;19-04-2017;104503;1;156;1;Spese correnti;3;Acquisto di beni e servizi;2;Acquisto di servizi;15;Contratti di servizio pubblico;2;Contratti di servizio di trasporto scolastico;2017-04-19;
387;1;"470,90";"470,90";IREN MERCATO S.P.A.;7028434F34;FATT.N. 011740049068 DEL 30/03/2017 SC. 02/05/2017 EN.ELETTRICA UFFICI COMUNALI - FEBBRAIO 2017 -;19-04-2017;101803;7;100;1;Spese correnti;3;Acquisto di beni e servizi;2;Acquisto di servizi;5;Utenze e canoni;4;Energia elettrica;2017-04-19;
388;1;"96,58";"526,79";IREN MERCATO S.P.A.;7028434F34;Fatt.n. 011740049069 del 30/03/2017 sc. 02/05/2017 EN.ELETTRICA SC.PRIMARIA - GENNAIO 2017;19-04-2017;104203;2;103;1;Spese correnti;3;Acquisto di beni e servizi;2;Acquisto di servizi;5;Utenze e canoni;4;Energia elettrica;2017-04-19;
388;2;"126,26";"526,79";IREN MERCATO S.P.A.;7028434F34;FATT.N. 011740049070 DEL 30/03/2017 SC. 02/05/2017 EN.ELETTRICA SC.PRIMARIA VIA MADONNA B.C. GENNAIO 2017;19-04-2017;104203;2;103;1;Spese correnti;3;Acquisto di beni e servizi;2;Acquisto di servizi;5;Utenze e canoni;4;Energia elettrica;2017-04-19;
388;3;"304,95";"526,79";IREN MERCATO S.P.A.;7028434F34;FATT.N.011740049074 del 30/03/2017 SC. 02/05/2017 EN.ELETTRICA SC.PRIMARIA ROVA GENNAIO 2017;19-04-2017;104203;2;103;1;Spese correnti;3;Acquisto di beni e servizi;2;Acquisto di servizi;5;Utenze e canoni;4;Energia elettrica;2017-04-19;
389;1;"575,71";"575,71";IREN MERCATO S.P.A.;7028434F34;FATT.N. 011740049077 DEL  30/03/2017 SC. 02/05/2017 EN.ELETTRICA EDIF.SCOLASTICO VIA PARTIGIANI - FEBBRAIO 2017;19-04-2017;104303;1;104;1;Spese correnti;3;Acquisto di beni e servizi;2;Acquisto di servizi;5;Utenze e canoni;4;Energia elettrica;2017-04-19;
390;1;"790,16";"790,16";IREN MERCATO S.P.A.;7028434F34;FATT.N. 011740049078 DEL 30/03/2017 SC. 02/05/2017 EN.ELETTRICA IMP.SPORTIVI FEBBRAIO 2017;19-04-2017;106203;1;107;1;Spese correnti;3;Acquisto di beni e servizi;2;Acquisto di servizi;5;Utenze e canoni;4;Energia elettrica;2017-04-19;
391;1;"74,51";"74,51";IREN MERCATO S.P.A.;7028434F34;FATT.N.011740049072 DEL 30/03/2017 SC. 02/05/2017 EN.ELETTRICA MAGAZZINO FEBBRAIO 2017;19-04-2017;108103;1;102;1;Spese correnti;3;Acquisto di beni e servizi;2;Acquisto di servizi;5;Utenze e canoni;4;Energia elettrica;2017-04-19;
392;1;"767,16";"7.519,59";IREN MERCATO S.P.A.;7028434F34;FATT.N. 011740049075 DEL 30/03/2017 SC. 02/05/2017 EN.ELETTRICA I.P. FEBBRAIO 2017;19-04-2017;108203;1;109;1;Spese correnti;3;Acquisto di beni e servizi;2;Acquisto di servizi;5;Utenze e canoni;4;Energia elettrica;2017-04-19;
392;2;"6.751,43";"7.519,59";IREN MERCATO S.P.A.;7028434F34;FATT.N. 011740049067 DEL 30/03/2017 SC. 02/05/2017 EN.ELETTRICA I.P. VIA FANOVO - FEBBRAIO 2017;19-04-2017;108203;1;109;1;Spese correnti;3;Acquisto di beni e servizi;2;Acquisto di servizi;5;Utenze e canoni;4;Energia elettrica;2017-04-19;
393;1;"179,00";"179,00";IREN MERCATO S.P.A.;7028434F34;FATT.N. 011740049076 DEL 30/03/2017 SC. 02/05/2017 EN.ELETTRICA IMPIANTO ITTIOGENICO FEBBRAIO 2017;19-04-2017;109603;5;108;1;Spese correnti;3;Acquisto di beni e servizi;2;Acquisto di servizi;5;Utenze e canoni;4;Energia elettrica;2017-04-19;
394;1;"7.727,66";"7.727,66";STUDIO MASSIMI S.A.S. ELABOR. DATI  DI MASSIMI G.;Z9B1D65EE8;SALDO FATT.N. 4  DEL 17/03/2017 GESTIONE IMU ANNO 2017 ACCONTO;19-04-2017;101403;1;77;1;Spese correnti;3;Acquisto di beni e servizi;2;Acquisto di servizi;13;Servizi ausiliari per il funzionamento dell'ente;999;Altri servizi ausiliari n.a.c.;2017-04-19;
395;1;"226,70";"226,70";GRUPPO MAGGIOLI SPA;Z481C0C82F;SALDO FATT.N. 0002148666 DEL 16/12/2016 CARTOLINE E BUSTE VERDI PER NOTIFICHE -;19-04-2017;101302;1;289;1;Spese correnti;3;Acquisto di beni e servizi;1;Acquisto di beni;2;Altri beni di consumo;1;"Carta, cancelleria e stampati";2017-04-19;
396;1;"829,35";"829,35";AGENZIA DELLE ENTRATE; ;IVA A DEBITO - 1 TRIMESTRE 2017 -;20-04-2017;101407;2;0;1;Spese correnti;10;Altre spese correnti;3;Versamenti IVA a debito;1;Versamenti IVA a debito per le gestioni commerciali;1;Versamenti IVA a debito per le gestioni commerciali;2017-04-20;
397;1;"927,30";"927,30";AMMINISTRATORI; ;INDENNITA' DI CARICA AL SINDACO APRILE 2017;20-04-2017;101103;1;5;1;Spese correnti;3;Acquisto di beni e servizi;2;Acquisto di servizi;1;Organi e incarichi istituzionali dell'amministrazione;1;Organi istituzionali dell'amministrazione - Indennit�;2017-04-20;
398;1;"1.066,39";"1.066,39";AMMINISTRATORI; ;INDENNITA' DI FUNZIONE AGLI ASSESSORI APRILE 2017;20-04-2017;101103;2;6;1;Spese correnti;3;Acquisto di beni e servizi;2;Acquisto di servizi;1;Organi e incarichi istituzionali dell'amministrazione;1;Organi istituzionali dell'amministrazione - Indennit�;2017-04-20;
445;1;"37,25";"2.171,74";UNIACQUE S.P.A.;ZC3178D003;SALDO Fatt.n. 201720001283  del 09/03/2017 APPROVVIGIONAMENTO IDRICO - MATRICOLA 00154063-1;24-04-2017;101203;3;370;1;Spese correnti;3;Acquisto di beni e servizi;2;Acquisto di servizi;99;Altri servizi;999;Altri servizi diversi n.a.c.;2017-04-24;
445;2;"37,38";"2.171,74";UNIACQUE S.P.A.;ZC3178D003;SALDO Fatt.n. 201720001290  del 09/03/2017 APPROVVIGIONAMENTO IDRICO -MATRICOLA 00141352-1;24-04-2017;101203;3;370;1;Spese correnti;3;Acquisto di beni e servizi;2;Acquisto di servizi;99;Altri servizi;999;Altri servizi diversi n.a.c.;2017-04-24;
445;3;"37,39";"2.171,74";UNIACQUE S.P.A.;ZC3178D003;SALDO Fatt.n. 201720001289  del 09/03/2017 APPROVVIGIONAMENTO IDRICO - MATRICOLA UNI-A4565 -;24-04-2017;101203;3;370;1;Spese correnti;3;Acquisto di beni e servizi;2;Acquisto di servizi;99;Altri servizi;999;Altri servizi diversi n.a.c.;2017-04-24;
445;4;"37,47";"2.171,74";UNIACQUE S.P.A.;ZC3178D003;SALDO Fatt.n. 201720001291  del 09/03/2017 APPROVVIGIONAMENTO IDRICO MATRICOLA 00141313-1;24-04-2017;101203;3;370;1;Spese correnti;3;Acquisto di beni e servizi;2;Acquisto di servizi;99;Altri servizi;999;Altri servizi diversi n.a.c.;2017-04-24;
445;5;"45,14";"2.171,74";UNIACQUE S.P.A.;ZC3178D003;SALDO Fatt.n. 201720001282  del 09/03/2017 APPROVVIGIONAMENTO IDRICO MATRICOLA 00459690-1;24-04-2017;101203;3;370;1;Spese correnti;3;Acquisto di beni e servizi;2;Acquisto di servizi;99;Altri servizi;999;Altri servizi diversi n.a.c.;2017-04-24;
445;6;"803,97";"2.171,74";UNIACQUE S.P.A.;ZC3178D003;SALDO Fatt.n. 201720001293  del 09/03/2017 APPROVVIGIONAMENTO IDRICO DAL 1.1.2014 - MATRICOLA 14595 -;24-04-2017;101203;3;370;1;Spese correnti;3;Acquisto di beni e servizi;2;Acquisto di servizi;99;Altri servizi;999;Altri servizi diversi n.a.c.;2017-04-24;
445;7;"1.173,14";"2.171,74";UNIACQUE S.P.A.;ZC3178D003;ACCONTO Fatt.n. 201720001277  del 09/03/2017 APPROVVIGIONAMENTO IDRICO DAL 2014 - MATRICOLA N. 00196560-1 EDIFICIO SCOLASTICO VIA PARTIGIANI;24-04-2017;101203;3;370;1;Spese correnti;3;Acquisto di beni e servizi;2;Acquisto di servizi;99;Altri servizi;999;Altri servizi diversi n.a.c.;2017-04-24;
446;1;"23,33";"2.953,21";UNIACQUE S.P.A.;ZC3178D003;SALDO Fatt.n. 201720001287  del 09/03/2017 APPROVVIGIONAMENTO IDRICO - MATRICOLA 02333161-1;24-04-2017;108103;5;441;1;Spese correnti;3;Acquisto di beni e servizi;2;Acquisto di servizi;9;Manutenzione ordinaria e riparazioni;11;Manutenzione ordinaria e riparazioni di altri beni materiali;2017-04-24;
446;2;"24,10";"2.953,21";UNIACQUE S.P.A.;ZC3178D003;SALDO Fatt.n. 201720001292  del 09/03/2017 APPROVVIGIONAMENTO IDRICO MATR.UNI A14975;24-04-2017;108103;5;441;1;Spese correnti;3;Acquisto di beni e servizi;2;Acquisto di servizi;9;Manutenzione ordinaria e riparazioni;11;Manutenzione ordinaria e riparazioni di altri beni materiali;2017-04-24;
446;3;"25,09";"2.953,21";UNIACQUE S.P.A.;ZC3178D003;SALDO Fatt.n. 201720001281  del 09/03/2017 APPROVVIGIONAMENTO IDRICO MATR. UNI A3325;24-04-2017;108103;5;441;1;Spese correnti;3;Acquisto di beni e servizi;2;Acquisto di servizi;9;Manutenzione ordinaria e riparazioni;11;Manutenzione ordinaria e riparazioni di altri beni materiali;2017-04-24;
446;4;"30,91";"2.953,21";UNIACQUE S.P.A.;ZC3178D003;SALDO Fatt.n. 201720001280  del 09/03/2017 APPROVVIGIONAMENTO IDRICO MATR. UNI - A3344;24-04-2017;108103;5;441;1;Spese correnti;3;Acquisto di beni e servizi;2;Acquisto di servizi;9;Manutenzione ordinaria e riparazioni;11;Manutenzione ordinaria e riparazioni di altri beni materiali;2017-04-24;
446;5;"34,35";"2.953,21";UNIACQUE S.P.A.;ZC3178D003;SALDO Fatt.n. 201720001288  del 09/03/2017 APPROVVIGIONAMENTO IDRICO MATRICOLA UNI A6732 -;24-04-2017;108103;5;441;1;Spese correnti;3;Acquisto di beni e servizi;2;Acquisto di servizi;9;Manutenzione ordinaria e riparazioni;11;Manutenzione ordinaria e riparazioni di altri beni materiali;2017-04-24;
446;6;"39,31";"2.953,21";UNIACQUE S.P.A.;ZC3178D003;SALDO Fatt.n. 201720001286  del 09/03/2017 APPROVVIGIONAMENTO IDRICO MATR. N. 00335259-1;24-04-2017;108103;5;441;1;Spese correnti;3;Acquisto di beni e servizi;2;Acquisto di servizi;9;Manutenzione ordinaria e riparazioni;11;Manutenzione ordinaria e riparazioni di altri beni materiali;2017-04-24;
446;7;"309,25";"2.953,21";UNIACQUE S.P.A.;ZC3178D003;SALDO Fatt.n. 201720001285  del 09/03/2017 APPROVVIGIONAMENTO IDRICO MATRICOLA 06-00444284-1;24-04-2017;108103;5;441;1;Spese correnti;3;Acquisto di beni e servizi;2;Acquisto di servizi;9;Manutenzione ordinaria e riparazioni;11;Manutenzione ordinaria e riparazioni di altri beni materiali;2017-04-24;
446;8;"513,03";"2.953,21";UNIACQUE S.P.A.;ZC3178D003;SALDO Fatt.n. 201720001284  del 09/03/2017 APPROVVIGIONAMENTO IDRICO -MATR. 06-00371656-1;24-04-2017;108103;5;441;1;Spese correnti;3;Acquisto di beni e servizi;2;Acquisto di servizi;9;Manutenzione ordinaria e riparazioni;11;Manutenzione ordinaria e riparazioni di altri beni materiali;2017-04-24;
446;9;"1.955,84";"2.953,21";UNIACQUE S.P.A.;ZC3178D003;SALDO Fatt.n. 201720001277  del 09/03/2017 APPROVVIGIONAMENTO IDRICO DAL 2014 - MATRICOLA N. 00196560-1 EDIFICIO SCOLASTICO VIA PARTIGIANI;24-04-2017;108103;5;441;1;Spese correnti;3;Acquisto di beni e servizi;2;Acquisto di servizi;9;Manutenzione ordinaria e riparazioni;11;Manutenzione ordinaria e riparazioni di altri beni materiali;2017-04-24;
449;1;"193,37";"193,37";GRAFICHE E. GASPARI S.R.L.;Z3C1DC1D7F;SALDO Fatt.n. 03636  del 31/03/2017 FORNITURA MATERIALE CANCELLERIA UFF. ANAGRAFE;27-04-2017;101702;1;90;1;Spese correnti;3;Acquisto di beni e servizi;1;Acquisto di beni;2;Altri beni di consumo;1;"Carta, cancelleria e stampati";2017-04-27;
458;1;"420,01";"420,01";SERVIZIO ELETTRICO NAZIONALE;ZA71E67D03;SALDO Fatt.n. 166790310304438  del 10/03/2017 EN.ELETTRICA ALLOGGIO COMUNALE FEB MAR. 2017;28-04-2017;101503;6;130;1;Spese correnti;3;Acquisto di beni e servizi;2;Acquisto di servizi;5;Utenze e canoni;4;Energia elettrica;2017-04-28;
460;1;"39,81";"215,20";QCOM S.P.A.;ZC11DA97D2;ACCONTO Fatt.n. 000539/PA  del 31/03/2017 CANONE ADSL E TRAFFICO TELEFONICO - MARZO 2017;02-05-2017;101803;7;66;1;Spese correnti;3;Acquisto di beni e servizi;2;Acquisto di servizi;5;Utenze e canoni;1;Telefonia fissa;2017-05-02;
460;2;"176,39";"215,20";QCOM S.P.A.;ZC11DA97D2;ACCONTO Fatt.n. 000539/PA  del 31/03/2017 CANONE ADSL E TRAFFICO TELEFONICO - MARZO 2017;02-05-2017;101803;7;66;1;Spese correnti;3;Acquisto di beni e servizi;2;Acquisto di servizi;5;Utenze e canoni;1;Telefonia fissa;2017-05-02;
461;1;"137,61";"758,58";SOENERGY S.R.L.;6432016B81;ACCONTO Fatt.n. 171044234  del 13/03/2017 FORNITURA GAS IMPIANTI SPORTIVI - FEBBRAIO 2017 -;02-05-2017;106203;1;95;1;Spese correnti;3;Acquisto di beni e servizi;2;Acquisto di servizi;5;Utenze e canoni;6;Gas;2017-05-02;
461;2;"621,97";"758,58";SOENERGY S.R.L.;6432016B81;ACCONTO Fatt.n. 171044234  del 13/03/2017 FORNITURA GAS IMPIANTI SPORTIVI - FEBBRAIO 2017 -;02-05-2017;106203;1;95;1;Spese correnti;3;Acquisto di beni e servizi;2;Acquisto di servizi;5;Utenze e canoni;6;Gas;2017-05-02;
462;1;"868,17";"4.814,38";SOENERGY S.R.L.;6432016B81;ACCONTO Fatt.n. 171044232  del 13/03/2017 FORNITURA GAS EDIFICIO SCOLASTICO VIA PARTIGIANI - FEBBRAIO 2017 -;02-05-2017;104203;2;78;1;Spese correnti;3;Acquisto di beni e servizi;2;Acquisto di servizi;5;Utenze e canoni;6;Gas;2017-05-02;
462;2;"3.946,21";"4.814,38";SOENERGY S.R.L.;6432016B81;ACCONTO Fatt.n. 171044232  del 13/03/2017 FORNITURA GAS EDIFICIO SCOLASTICO VIA PARTIGIANI - FEBBRAIO 2017 -;02-05-2017;104203;2;78;1;Spese correnti;3;Acquisto di beni e servizi;2;Acquisto di servizi;5;Utenze e canoni;6;Gas;2017-05-02;
463;1;"132,95";"732,74";SOENERGY S.R.L.;6432016B81;ACCONTO Fatt.n. 171044233  del 13/03/2017 FORNITURA GAS SCUOLA PRIMARIA ROVA - FEBBRAIO 2017;02-05-2017;104203;2;78;1;Spese correnti;3;Acquisto di beni e servizi;2;Acquisto di servizi;5;Utenze e canoni;6;Gas;2017-05-02;
463;2;"600,79";"732,74";SOENERGY S.R.L.;6432016B81;ACCONTO Fatt.n. 171044233  del 13/03/2017 FORNITURA GAS SCUOLA PRIMARIA ROVA - FEBBRAIO 2017;02-05-2017;104203;2;78;1;Spese correnti;3;Acquisto di beni e servizi;2;Acquisto di servizi;5;Utenze e canoni;6;Gas;2017-05-02;
464;1;"3,27";"140,43";SOENERGY S.R.L.;6432016B81;SALDO Fatt.n. 171044235  del 13/03/2017 FORNITURA GAS ALLOGGIO COMUNALE - FEBBRAIO 2017;02-05-2017;101503;6;77;1;Spese correnti;3;Acquisto di beni e servizi;2;Acquisto di servizi;5;Utenze e canoni;6;Gas;2017-05-02;
464;2;"11,12";"140,43";SOENERGY S.R.L.;6432016B81;SALDO Fatt.n. 171044235  del 13/03/2017 FORNITURA GAS ALLOGGIO COMUNALE - FEBBRAIO 2017;02-05-2017;101503;6;77;1;Spese correnti;3;Acquisto di beni e servizi;2;Acquisto di servizi;5;Utenze e canoni;6;Gas;2017-05-02;
464;3;"126,04";"140,43";SOENERGY S.R.L.;6432016B81;ACCONTO Fatt.n. 171044235  del 13/03/2017 FORNITURA GAS ALLOGGIO COMUNALE - FEBBRAIO 2017;02-05-2017;101503;6;77;1;Spese correnti;3;Acquisto di beni e servizi;2;Acquisto di servizi;5;Utenze e canoni;6;Gas;2017-05-02;
465;1;"118,51";"2.427,18";ENEL SOLE S.R.L.;ZA41DEEBC7;Fatt.n. 1730007022 del 28/02/2017  Manutenzione impinati di illuminazione pubblica Febbraio 2017;02-05-2017;108203;4;114;1;Spese correnti;3;Acquisto di beni e servizi;2;Acquisto di servizi;9;Manutenzione ordinaria e riparazioni;4;Manutenzione ordinaria e riparazioni di impianti e macchinari;2017-05-02;
465;2;"2.310,67";"2.427,18";ENEL SOLE S.R.L.;ZA41DEEBC7;Fatt.n. 1730009244 del 28/02/2017 Manutenzione impinati di illuminazione pubblica Febbraio 2017;02-05-2017;108203;4;114;1;Spese correnti;3;Acquisto di beni e servizi;2;Acquisto di servizi;9;Manutenzione ordinaria e riparazioni;4;Manutenzione ordinaria e riparazioni di impianti e macchinari;2017-05-02;
466;1;"118,51";"118,51";ENEL SOLE S.R.L.;ZA41DEEBC7;Fatt.n. 1730000731 del 31/01/2017  Manutenzione impinati di illuminazione pubblica Gennaio 2017;02-05-2017;108203;4;114;1;Spese correnti;3;Acquisto di beni e servizi;2;Acquisto di servizi;9;Manutenzione ordinaria e riparazioni;4;Manutenzione ordinaria e riparazioni di impianti e macchinari;2017-05-02;
467;1;"118,51";"2.427,18";ENEL SOLE S.R.L.;ZD4187CC44;Fatt.n. 1630066070 del 31/12/2016 Manutenzione impianti illuminazione pubblica Dicembre 2016;02-05-2017;108203;4;49;1;Spese correnti;3;Acquisto di beni e servizi;2;Acquisto di servizi;9;Manutenzione ordinaria e riparazioni;11;Manutenzione ordinaria e riparazioni di altri beni materiali;2017-05-02;
467;2;"2.310,67";"2.427,18";ENEL SOLE S.R.L.;ZD4187CC44;Fatt.n. 1630067035 del 31/12/2016  Manutenzione impianti illuminazione pubblica Dicembre 2016;02-05-2017;108203;4;49;1;Spese correnti;3;Acquisto di beni e servizi;2;Acquisto di servizi;9;Manutenzione ordinaria e riparazioni;11;Manutenzione ordinaria e riparazioni di altri beni materiali;2017-05-02;
468;1;"183,00";"389,88";CASA DEL PESCATORE-MONASTEROLO D.C.-COOP. L'INNESTO;Z2F1CF32CB;SALDO FATT.N. 23/PA  del 28/02/2017 MANUTENZIONE EDIFICI E SPAZI PUBBLICI MESE DI FEBBRAIO 2017;02-05-2017;110403;5;55;1;Spese correnti;3;Acquisto di beni e servizi;2;Acquisto di servizi;13;Servizi ausiliari per il funzionamento dell'ente;999;Altri servizi ausiliari n.a.c.;2017-05-02;
468;2;"206,88";"389,88";CASA DEL PESCATORE-MONASTEROLO D.C.-COOP. L'INNESTO;Z2F1CF32CB;SALDO FATT.N.40/PA  DEL 31/03/2017 MANUTENZIONE EDIFICI E SPAZI PUBBLICI - MESE DI MARZO 2017;02-05-2017;110403;5;55;1;Spese correnti;3;Acquisto di beni e servizi;2;Acquisto di servizi;13;Servizi ausiliari per il funzionamento dell'ente;999;Altri servizi ausiliari n.a.c.;2017-05-02;
469;1;"11.418,00";"11.418,00";DALL'ANGELO PAOLO - IMPRESA EDILE;Z6519D3786;SALDO Fatt.n. 2/E  del 22/03/2017 Realizzazione Recinzione Magazzino Comunale;02-05-2017;201501;1;384;2;Spese in conto capitale;2;Investimenti fissi lordi e acquisto di terreni;1;Beni materiali;9;Beni immobili;2;Fabbricati ad uso commerciale;2017-05-02;
470;1;"2.427,18";"2.427,18";ENEL SOLE S.R.L.;ZA41DEEBC7;SALDO FATT.N.1730014233  DEL 31/03/2017 MANUTENZIONE IMPIANTI ILLUMINAZIONE PUBBLICA MARZO 2017;02-05-2017;108203;4;114;1;Spese correnti;3;Acquisto di beni e servizi;2;Acquisto di servizi;9;Manutenzione ordinaria e riparazioni;4;Manutenzione ordinaria e riparazioni di impianti e macchinari;2017-05-02;
471;1;"10.990,76";"10.990,76";F.G.S. S.R.L.;ZAC1C7B45F;SALDO FATT.N. 60429  DEL 27/12/2016 IMPLEMENTAZIONE IMPIANTO VIDEOSORVEGLIANZA E APPLICATIVO SOFTWARE;04-05-2017;203105;2;343;2;Spese in conto capitale;2;Investimenti fissi lordi e acquisto di terreni;1;Beni materiali;5;Attrezzature;999;Attrezzature n.a.c.;2017-05-04;
472;1;"-260,00";"240,00";A.N.U.S.C.A. S.R.L.; ;SALDO Fatt.n. 705E  del 05/04/2017 NOTA CREDITO - PARTECIPAZIONE XV CONVEGNO REGIONALE DELLA LOMBARDIA- RANICA (BG) -;04-05-2017;101203;2;254;1;Spese correnti;3;Acquisto di beni e servizi;2;Acquisto di servizi;4;Acquisto di servizi per formazione e addestramento del personale dell'ente;999;Acquisto di servizi per altre spese per formazione e addestramento n.a.c.;2017-05-04;
472;2;"240,00";"240,00";A.N.U.S.C.A. S.R.L.;NO;SALDO Fatt.n. 706E  del 05/04/2017 PARTECIPAZIONE AL CORSO ANUSCA 2016;04-05-2017;101203;2;254;1;Spese correnti;3;Acquisto di beni e servizi;2;Acquisto di servizi;4;Acquisto di servizi per formazione e addestramento del personale dell'ente;999;Acquisto di servizi per altre spese per formazione e addestramento n.a.c.;2017-05-04;
472;3;"260,00";"240,00";A.N.U.S.C.A. S.R.L.;NO;SALDO Fatt.n. 3955E  del 22/12/2016 PARTECIPAZIONE CONVEGNO;04-05-2017;101203;2;254;1;Spese correnti;3;Acquisto di beni e servizi;2;Acquisto di servizi;4;Acquisto di servizi per formazione e addestramento del personale dell'ente;999;Acquisto di servizi per altre spese per formazione e addestramento n.a.c.;2017-05-04;
473;1;"190,00";"190,00";A.N.U.S.C.A. S.R.L.; ;QUOTA ASSOCIATIVA ANUSCA - ANNO 2017;04-05-2017;101703;2;69;1;Spese correnti;3;Acquisto di beni e servizi;2;Acquisto di servizi;99;Altri servizi;3;Quote di associazioni;2017-05-04;
474;1;"822,56";"822,56";COMUNE DI LOVERE; ;SPESE PER CENTRO PER L'IMPIEGO - ANNO 2017.;04-05-2017;110405;3;72;1;Spese correnti;4;Trasferimenti correnti;1;Trasferimenti correnti a Amministrazioni Pubbliche;2;Trasferimenti correnti a Amministrazioni Locali;3;Trasferimenti correnti a Comuni;2017-05-04;
475;1;"28,84";"28,84";COMUNE DI BERGAMO; ;RIMBORSO DIRITTI DI NOTIFICA - PEZZOTTA M.;05-05-2017;101203;3;70;1;Spese correnti;3;Acquisto di beni e servizi;2;Acquisto di servizi;99;Altri servizi;999;Altri servizi diversi n.a.c.;2017-05-05;
476;1;"42,25";"42,25";AZIENDA S.SANITARIA TERRITORIALE  BERGAMO EST; ;VISITA MEDICA PER PORTO D'ARMI PER L'AGENTE DI POLIZIA LOCALE.;08-05-2017;103103;8;136;1;Spese correnti;3;Acquisto di beni e servizi;2;Acquisto di servizi;4;Acquisto di servizi per formazione e addestramento del personale dell'ente;999;Acquisto di servizi per altre spese per formazione e addestramento n.a.c.;2017-05-08;
478;1;"1,86";"1,86";AGENZIA DELLE ENTRATE; ;QUOTE SU VERSAMENTI IVA 2016;09-05-2017;101407;2;0;1;Spese correnti;10;Altre spese correnti;3;Versamenti IVA a debito;1;Versamenti IVA a debito per le gestioni commerciali;1;Versamenti IVA a debito per le gestioni commerciali;2017-05-09;
479;1;"55,64";"55,64";IREN MERCATO S.P.A.;7028434F34;Fatt.n. 011740057185 del 19/04/2017 sc. 19/05/2017 EN.ELETTRICA ALLOGGIO P.ZZA IV NOVEMBRE - MARZO 2017;09-05-2017;101503;6;101;1;Spese correnti;3;Acquisto di beni e servizi;2;Acquisto di servizi;5;Utenze e canoni;4;Energia elettrica;2017-05-09;
480;1;"332,93";"332,93";IREN MERCATO S.P.A.;7028434F34;Fatt.n. 011740057179 del 19/04/2017 sc. 19/05/2017 ENERGIA ELETTRICA UFFICI COMUNALI MARZO 2017;09-05-2017;101803;7;100;1;Spese correnti;3;Acquisto di beni e servizi;2;Acquisto di servizi;5;Utenze e canoni;4;Energia elettrica;2017-05-09;
481;1;"429,31";"429,31";IREN MERCATO S.P.A.;7028434F34;Fatt.n. 011740057183 del 19/04/2017 sc. 19/05/2017 EN.ELETTRICA EDIFICIO SCOLASTICO VIA PARTIGIANI PRIMARIA E SECONDARIA;09-05-2017;104303;1;104;1;Spese correnti;3;Acquisto di beni e servizi;2;Acquisto di servizi;5;Utenze e canoni;4;Energia elettrica;2017-05-09;
482;1;"643,54";"643,54";IREN MERCATO S.P.A.;7028434F34;Fatt.n. 011740057184 del 19/04/2017 sc. 19/05/2017 ENERGIA ELETTRICA IMPIANTI SPORTIVI - MARZO 2017;09-05-2017;106203;1;107;1;Spese correnti;3;Acquisto di beni e servizi;2;Acquisto di servizi;5;Utenze e canoni;4;Energia elettrica;2017-05-09;
483;1;"70,70";"70,70";IREN MERCATO S.P.A.;7028434F34;Fatt.n. 011740057180 del 19/04/2017 sc. 19/05/2017 EN.ELETTRICA MAGAZZINO - MARZO 2017;09-05-2017;108103;1;102;1;Spese correnti;3;Acquisto di beni e servizi;2;Acquisto di servizi;5;Utenze e canoni;4;Energia elettrica;2017-05-09;
484;1;"711,78";"6.904,11";IREN MERCATO S.P.A.;7028434F34;Fatt.n. 011740057181 del 19/04/2017 sc. 19/05/2017 ENERGIA ELETTRICA PER ILL.PUBBLICA - VALLE FONTANE - MARZO;09-05-2017;108203;1;109;1;Spese correnti;3;Acquisto di beni e servizi;2;Acquisto di servizi;5;Utenze e canoni;4;Energia elettrica;2017-05-09;
484;2;"6.193,33";"6.904,11";IREN MERCATO S.P.A.;7028434F34;Fatt.n. 011740057178 del 19/04/2017 sc. 19/05/2017 EN.ELETTRICA ILLUM.PUBBLICA  VIA FANOVO MARZO 2017;09-05-2017;108203;1;109;1;Spese correnti;3;Acquisto di beni e servizi;2;Acquisto di servizi;5;Utenze e canoni;4;Energia elettrica;2017-05-09;
485;1;"180,74";"180,74";IREN MERCATO S.P.A.;7028434F34;Fatt.n. 011740057186 del 19/04/2017 sc. 19/05/2017 EN.ELETTRICA PIATTAFORMA ECOLOGICA - MARZO 2017 -;09-05-2017;109503;6;105;1;Spese correnti;3;Acquisto di beni e servizi;2;Acquisto di servizi;5;Utenze e canoni;4;Energia elettrica;2017-05-09;
486;1;"211,67";"211,67";IREN MERCATO S.P.A.;7028434F34;Fatt.n. 011740057182 del 19/04/2017 sc. 19/05/2017 ENERGIA ELETTRICA IMP.ITTIOGENICO - MARZO 2017 -;09-05-2017;109603;5;108;1;Spese correnti;3;Acquisto di beni e servizi;2;Acquisto di servizi;5;Utenze e canoni;4;Energia elettrica;2017-05-09;
487;1;"334,79";"1.171,05";COMUNE DI  ENDINE GAIANO -C.C.P.-; ;SPESE COMMISSIONI CONTO CORRENTE POSTALE - 96199609- 2 SEMESTRE 2016;10-05-2017;101403;2;203;1;Spese correnti;3;Acquisto di beni e servizi;2;Acquisto di servizi;3;Aggi di riscossione;999;Altri aggi di riscossione n.a.c.;2017-05-10;
487;2;"390,07";"1.171,05";COMUNE DI  ENDINE GAIANO -C.C.P.-; ;SPESE COMMISSIONI CONTO CORRENTE POSTALE 42202416 - 2 SEMESTRE 2016;10-05-2017;101403;2;203;1;Spese correnti;3;Acquisto di beni e servizi;2;Acquisto di servizi;3;Aggi di riscossione;999;Altri aggi di riscossione n.a.c.;2017-05-10;
487;3;"447,19";"1.171,05";COMUNE DI  ENDINE GAIANO -C.C.P.-; ;SPESE COMMISSIONI CONTO CORRENTE POSTALE 13333240 - 2 SEMESTRE 2016;10-05-2017;101403;2;203;1;Spese correnti;3;Acquisto di beni e servizi;2;Acquisto di servizi;3;Aggi di riscossione;999;Altri aggi di riscossione n.a.c.;2017-05-10;
492;1;"20,55";"405,34";TELECOM ITALIA SPA;Z331DD28B3;SALDO Fatt.n. 8B00117080  del 06/02/2017  SPESE TELEFONICHE UFFICI - 2 BIM. 2017;15-05-2017;101503;6;86;1;Spese correnti;3;Acquisto di beni e servizi;2;Acquisto di servizi;5;Utenze e canoni;1;Telefonia fissa;2017-05-15;
492;2;"23,64";"405,34";TELECOM ITALIA SPA;Z331DD28B3;ACCONTO Fatt.n. 8B00118107  del 06/02/2017 SPESE TELEFONICHE UFFICI 2 BIM 2017;15-05-2017;101503;6;86;1;Spese correnti;3;Acquisto di beni e servizi;2;Acquisto di servizi;5;Utenze e canoni;1;Telefonia fissa;2017-05-15;
492;3;"31,90";"405,34";TELECOM ITALIA SPA;Z331DD28B3;ACCONTO Fatt.n. 8B00116679  del 06/02/2017 SPESE TELEFONICHE UFFICI 2 BIM 2017;15-05-2017;101503;6;86;1;Spese correnti;3;Acquisto di beni e servizi;2;Acquisto di servizi;5;Utenze e canoni;1;Telefonia fissa;2017-05-15;
492;4;"89,86";"405,34";TELECOM ITALIA SPA;Z331DD28B3;ACCONTO Fatt.n. 8B00117080  del 06/02/2017  SPESE TELEFONICHE UFFICI - 2 BIM. 2017;15-05-2017;101503;6;86;1;Spese correnti;3;Acquisto di beni e servizi;2;Acquisto di servizi;5;Utenze e canoni;1;Telefonia fissa;2017-05-15;
492;5;"103,92";"405,34";TELECOM ITALIA SPA;Z331DD28B3;ACCONTO Fatt.n. 8B00118107  del 06/02/2017 SPESE TELEFONICHE UFFICI 2 BIM 2017;15-05-2017;101503;6;86;1;Spese correnti;3;Acquisto di beni e servizi;2;Acquisto di servizi;5;Utenze e canoni;1;Telefonia fissa;2017-05-15;
492;6;"140,47";"405,34";TELECOM ITALIA SPA;Z331DD28B3;ACCONTO Fatt.n. 8B00116679  del 06/02/2017 SPESE TELEFONICHE UFFICI 2 BIM 2017;15-05-2017;101503;6;86;1;Spese correnti;3;Acquisto di beni e servizi;2;Acquisto di servizi;5;Utenze e canoni;1;Telefonia fissa;2017-05-15;
493;1;"11,24";"171,73";TELECOM ITALIA SPA;Z331DD28B3;ACCONTO Fatt.n. 8B00114578  del 06/02/2017 SPESE TELEFONICHE SCUOLE SECONDARIA 2 BIM 2017;15-05-2017;104303;1;88;1;Spese correnti;3;Acquisto di beni e servizi;2;Acquisto di servizi;5;Utenze e canoni;1;Telefonia fissa;2017-05-15;
493;2;"20,55";"171,73";TELECOM ITALIA SPA;Z331DD28B3;ACCONTO Fatt.n. 8B00116089  del 06/02/2017 SPESE TELEFONICHE SC. SECONDARIA 2 BIM 2017;15-05-2017;104303;1;88;1;Spese correnti;3;Acquisto di beni e servizi;2;Acquisto di servizi;5;Utenze e canoni;1;Telefonia fissa;2017-05-15;
493;3;"51,08";"171,73";TELECOM ITALIA SPA;Z331DD28B3;ACCONTO Fatt.n. 8B00114578  del 06/02/2017 SPESE TELEFONICHE SCUOLE SECONDARIA 2 BIM 2017;15-05-2017;104303;1;88;1;Spese correnti;3;Acquisto di beni e servizi;2;Acquisto di servizi;5;Utenze e canoni;1;Telefonia fissa;2017-05-15;
493;4;"89,86";"171,73";TELECOM ITALIA SPA;Z331DD28B3;ACCONTO Fatt.n. 8B00116089  del 06/02/2017 SPESE TELEFONICHE SC. SECONDARIA 2 BIM 2017;15-05-2017;104303;1;88;1;Spese correnti;3;Acquisto di beni e servizi;2;Acquisto di servizi;5;Utenze e canoni;1;Telefonia fissa;2017-05-15;
494;1;"11,96";"61,76";TELECOM ITALIA SPA;Z331DD28B3;ACCONTO Fatt.n. 8B00117294  del 06/02/2017 SPESE TELEFONICHE 2 BIM 2017 BIBLIOTECA 035826923;15-05-2017;105103;5;89;1;Spese correnti;3;Acquisto di beni e servizi;2;Acquisto di servizi;5;Utenze e canoni;1;Telefonia fissa;2017-05-15;
494;2;"50,80";"61,76";TELECOM ITALIA SPA;Z331DD28B3;ACCONTO Fatt.n. 8B00117294  del 06/02/2017 SPESE TELEFONICHE 2 BIM 2017 BIBLIOTECA 035826923;15-05-2017;105103;5;89;1;Spese correnti;3;Acquisto di beni e servizi;2;Acquisto di servizi;5;Utenze e canoni;1;Telefonia fissa;2017-05-15;
495;1;"11,96";"173,95";TELECOM ITALIA SPA;Z331DD28B3;SALDO Fatt.n. 8B00117731  del 06/02/2017 SPESE TELEFONICHE SCUOLA PRIMARIA 2BIM 2017;15-05-2017;104203;2;87;1;Spese correnti;3;Acquisto di beni e servizi;2;Acquisto di servizi;5;Utenze e canoni;1;Telefonia fissa;2017-05-15;
495;2;"20,23";"173,95";TELECOM ITALIA SPA;Z331DD28B3;ACCONTO Fatt.n. 8B00121942  del 06/02/2017 SPESE TELEFONICHE SC.PRIMARIA 2 BIM 2017;15-05-2017;104203;2;87;1;Spese correnti;3;Acquisto di beni e servizi;2;Acquisto di servizi;5;Utenze e canoni;1;Telefonia fissa;2017-05-15;
495;3;"50,80";"173,95";TELECOM ITALIA SPA;Z331DD28B3;ACCONTO Fatt.n. 8B00117731  del 06/02/2017 SPESE TELEFONICHE SCUOLA PRIMARIA ROVA 2 BIM 2017;15-05-2017;104203;2;87;1;Spese correnti;3;Acquisto di beni e servizi;2;Acquisto di servizi;5;Utenze e canoni;1;Telefonia fissa;2017-05-15;
495;4;"92,96";"173,95";TELECOM ITALIA SPA;Z331DD28B3;ACCONTO Fatt.n. 8B00121942  del 06/02/2017 SPESE TELEFONICHE SC.PRIMARIA 2 BIM 2017;15-05-2017;104203;2;87;1;Spese correnti;3;Acquisto di beni e servizi;2;Acquisto di servizi;5;Utenze e canoni;1;Telefonia fissa;2017-05-15;
496;1;"927,30";"927,30";AMMINISTRATORI; ;INDENNITA' DI CARICA AL SINDACO - MAGGIO 2017;15-05-2017;101103;1;5;1;Spese correnti;3;Acquisto di beni e servizi;2;Acquisto di servizi;1;Organi e incarichi istituzionali dell'amministrazione;1;Organi istituzionali dell'amministrazione - Indennit�;2017-05-15;
497;1;"1.066,39";"1.066,39";AMMINISTRATORI; ;INDENNITA' DI FUNZIONE AGLI ASSESSORI MAGGIO 2017;15-05-2017;101103;2;6;1;Spese correnti;3;Acquisto di beni e servizi;2;Acquisto di servizi;1;Organi e incarichi istituzionali dell'amministrazione;1;Organi istituzionali dell'amministrazione - Indennit�;2017-05-15;
551;1;"1.007,50";"1.007,50";P.A.CONSULTING S.R.L.;Z941C26DAE;FATT.N. 20/57 DEL 03/05/2017 - GESTIONE PAGHE ED IVA - I TRIMESTRE;16-05-2017;101303;4;297;1;Spese correnti;3;Acquisto di beni e servizi;2;Acquisto di servizi;99;Altri servizi;999;Altri servizi diversi n.a.c.;2017-05-16;
552;1;"1.000,00";"1.000,00";P.A.CONSULTING S.R.L.;Z4F14039B2;FATT.N. 20/79 DEL 03/05/2017  SERVIZIO GESTIONE ADEMPIMENTI FISCALI IN MATERIA DI IVA;16-05-2017;101303;4;121;1;Spese correnti;3;Acquisto di beni e servizi;2;Acquisto di servizi;99;Altri servizi;999;Altri servizi diversi n.a.c.;2017-05-16;
554;1;"220,60";"220,60";NOVALI EGIDIO SNC;Z431E1EBD0;Fatt.n. V300100/17 del 29/04/2017  FORNITURA FASCIA SINDACO E FASCIA SINDACO RAGAZZI;17-05-2017;101102;4;112;1;Spese correnti;3;Acquisto di beni e servizi;1;Acquisto di beni;2;Altri beni di consumo;9;Beni per attivit� di rappresentanza;2017-05-17;
555;1;"1.186,14";"1.186,14";LEGGERE S.R.L. CENTRO SERVIZI BIBLIOTECHE DI BERGAMO;69936140D9;Fatt.n. 6262 del 28/04/2017 FORNITURA LIBRI PER BIBLIOTECA;17-05-2017;105102;2;99;1;Spese correnti;3;Acquisto di beni e servizi;1;Acquisto di beni;1;"Giornali, riviste e pubblicazioni";2;Pubblicazioni;2017-05-17;
557;1;"15.000,00";"15.000,00";NUCLEO PROTEZIONE CIVILE GRUPPO ALPINI DI ENDINE; ;CONTRIBUTO ECONOMICO STRAORDINARIO REALIZZAZIONE NUOVO CENTRO POLIFUNZIONALE PROTEZIONE CIVILE - CONVENZIONE REP. 1085 29.12.2016;19-05-2017;209307;1;446;2;Spese in conto capitale;3;Contributi agli investimenti;4;Contributi agli investimenti a Istituzioni Sociali Private;1;Contributi agli investimenti a Istituzioni Sociali Private;1;Contributi agli investimenti a Istituzioni Sociali Private;2017-05-19;
558;1;"794,61";"794,61";MINISTERO INFRASTRUTTURE TRASPORTI -DIR.MOTORIZZAZIONE;ZE71E76306;CANONE ANNUALE (QUOTA IN DODICESIMI) SERVIZIO VISURE BANCA DATI MOTORIZZAZIONE CIVILE;22-05-2017;103103;1;146;1;Spese correnti;3;Acquisto di beni e servizi;2;Acquisto di servizi;5;Utenze e canoni;3;Accesso a banche dati e a pubblicazioni on line;2017-05-22;
559;1;"8,49";"47,08";KUWAIT PETROLEUM ITALIA SPA;Z2A1A2F9EF;ACCONTO Fatt.n. PJ00072508  del 31/03/2017 CARBURANTI MARZO 2017;22-05-2017;103102;2;21;1;Spese correnti;3;Acquisto di beni e servizi;1;Acquisto di beni;2;Altri beni di consumo;2;"Carburanti, combustibili e lubrificanti";2017-05-22;
559;2;"39,59";"47,08";KUWAIT PETROLEUM ITALIA SPA;Z2A1A2F9EF;ACCONTO Fatt.n. PJ00072508  del 31/03/2017 CARBURANTI MARZO 2017;22-05-2017;103102;2;21;1;Spese correnti;3;Acquisto di beni e servizi;1;Acquisto di beni;2;Altri beni di consumo;2;"Carburanti, combustibili e lubrificanti";2017-05-22;
560;1;"110,54";"607,43";KUWAIT PETROLEUM ITALIA SPA;Z2A1A2F9EF;SALDO Fatt.n. PJ00072508  del 31/03/2017 CARBURANTI MARZO 2017;22-05-2017;108102;2;20;1;Spese correnti;3;Acquisto di beni e servizi;1;Acquisto di beni;2;Altri beni di consumo;2;"Carburanti, combustibili e lubrificanti";2017-05-22;
560;2;"498,89";"607,43";KUWAIT PETROLEUM ITALIA SPA;Z2A1A2F9EF;ACCONTO Fatt.n. PJ00072508  del 31/03/2017 CARBURANTI MARZO 2017;22-05-2017;108102;2;20;1;Spese correnti;3;Acquisto di beni e servizi;1;Acquisto di beni;2;Altri beni di consumo;2;"Carburanti, combustibili e lubrificanti";2017-05-22;
562;1;"623,27";"1.312,66";GENERAL SERVICE;Z531CDEE28;SALDO Fatt.n. FatPAM 16/.PA/2017  del 31/03/2017 Pulizia edificio comunale Marzo 2017;22-05-2017;101503;5;58;1;Spese correnti;3;Acquisto di beni e servizi;2;Acquisto di servizi;13;Servizi ausiliari per il funzionamento dell'ente;2;Servizi di pulizia e lavanderia;2017-05-22;
562;2;"688,39";"1.312,66";GENERAL SERVICE;Z531CDEE28;SALDO Fatt.n. FatPAM 22/.PA/2017  del 29/04/2017 Pulizia edificio comunale Aprile 2017;22-05-2017;101503;5;58;1;Spese correnti;3;Acquisto di beni e servizi;2;Acquisto di servizi;13;Servizi ausiliari per il funzionamento dell'ente;2;Servizi di pulizia e lavanderia;2017-05-22;
563;1;"753,92";"753,92";POSTE ITALIANE SPA; ;ACCONTO Fatt.n. 8717066319  del 07/03/2017 Fattura Elettronica relativa all'Identificativo Rendiconto 2090523462;22-05-2017;101203;21;59;1;Spese correnti;3;Acquisto di beni e servizi;2;Acquisto di servizi;16;Servizi amministrativi;2;Spese postali;2017-05-22;
564;1;"2,00";"2,00";POSTE ITALIANE SPA;Z5D1D957B5;SALDO Fatt.n. 8717066319  del 07/03/2017 Fattura Elettronica relativa all'Identificativo Rendiconto 2090523462;22-05-2017;101203;21;74;1;Spese correnti;3;Acquisto di beni e servizi;2;Acquisto di servizi;16;Servizi amministrativi;2;Spese postali;2017-05-22;
565;1;"577,48";"711,55";VISIOLI CARLA; ;SALDO Fatt.n. 1  del 01/05/2017 COMPENSO PER PRESTAZIONI PROFESSIONALI - REVISORE UNICO - 2016;23-05-2017;101103;8;223;1;Spese correnti;3;Acquisto di beni e servizi;2;Acquisto di servizi;1;Organi e incarichi istituzionali dell'amministrazione;8;"Compensi agli organi istituzionali di revisione, di controllo ed altri incarichi istituzionali dell'amministrazione";2017-05-23;
565;2;"133,07";"711,55";VISIOLI CARLA; ;SALDO Fatt.n. 1  del 01/05/2017 COMPENSO PER PRESTAZIONI PROFESSIONALI - REVISORE UNICO - 2016;23-05-2017;101103;8;223;1;Spese correnti;3;Acquisto di beni e servizi;2;Acquisto di servizi;1;Organi e incarichi istituzionali dell'amministrazione;8;"Compensi agli organi istituzionali di revisione, di controllo ed altri incarichi istituzionali dell'amministrazione";2017-05-23;
566;1;"4.471,92";"5.500,00";VISIOLI CARLA; ;SALDO Fatt.n. 1  del 01/05/2017 COMPENSO PER PRESTAZIONI PROFESSIONALI - REVISORE UNICO - 2016;23-05-2017;101103;8;223;1;Spese correnti;3;Acquisto di beni e servizi;2;Acquisto di servizi;1;Organi e incarichi istituzionali dell'amministrazione;8;"Compensi agli organi istituzionali di revisione, di controllo ed altri incarichi istituzionali dell'amministrazione";2017-05-23;
566;2;"1.029,08";"5.500,00";VISIOLI CARLA; ;SALDO Fatt.n. 1  del 01/05/2017 COMPENSO PER PRESTAZIONI PROFESSIONALI - REVISORE UNICO - 2016;23-05-2017;101103;8;223;1;Spese correnti;3;Acquisto di beni e servizi;2;Acquisto di servizi;1;Organi e incarichi istituzionali dell'amministrazione;8;"Compensi agli organi istituzionali di revisione, di controllo ed altri incarichi istituzionali dell'amministrazione";2017-05-23;
568;1;"6,88";"6,88";COMUNE DI ROVATO; ;RIMBORSO DIRITTI DI NOTIFICA - PERIODO 1.7.16/31.12.16 -;24-05-2017;101203;3;70;1;Spese correnti;3;Acquisto di beni e servizi;2;Acquisto di servizi;99;Altri servizi;999;Altri servizi diversi n.a.c.;2017-05-24;
569;1;"601,90";"601,90";MADASCHI GIUSEPPE AUTOFFICINA;ZB01DC2440;SALDO Fatt.n. 1/PA  del 14/03/2017 MITSUBISHI CANTER PNEUMATICI;24-05-2017;108103;7;85;1;Spese correnti;3;Acquisto di beni e servizi;2;Acquisto di servizi;9;Manutenzione ordinaria e riparazioni;1;"Manutenzione ordinaria e riparazioni di mezzi di trasporto ad uso civile, di sicurezza e ordine pubblico";2017-05-24;
570;1;"8.579,14";"8.579,14";MABB S.R.L.;66409247D0;Fatt.n. 84/2 del 30/04/2017 sc. 04/06/2017 SERVIZIO TRASPORTO SCOLASTICO - APRILE 2017;30-05-2017;104503;1;156;1;Spese correnti;3;Acquisto di beni e servizi;2;Acquisto di servizi;15;Contratti di servizio pubblico;2;Contratti di servizio di trasporto scolastico;2017-05-30;
571;1;"4.250,00";"4.250,00";DUEFFE SERVIZI S.R.L.;Z0D1A6E8E7;SALDO FATT.N.1/PA DEL 31/03/2017 GESTIONE CIMITERI PRIMO TRIMESTRE 2017;30-05-2017;110503;2;18;1;Spese correnti;3;Acquisto di beni e servizi;2;Acquisto di servizi;99;Altri servizi;999;Altri servizi diversi n.a.c.;2017-05-30;
572;1;"4,10";"4,10";IREN MERCATO S.P.A.;7028434F34;IVA SU FATT.N. 011740034120  DEL 08/03/2017 EN.ELETTRICA CASETTA DELL'ACQUA -CHIUSURA CONTRATTO PERIODO 1.11.16 / 13.11.16;30-05-2017;101503;6;134;1;Spese correnti;3;Acquisto di beni e servizi;2;Acquisto di servizi;5;Utenze e canoni;4;Energia elettrica;2017-05-30;
575;1;"35,53";"191,47";QCOM S.P.A.;ZC11DA97D2;SALDO Fatt.n. 000759/PA  del 30/04/2017 CANONE ADSL APRILE 2017;31-05-2017;101803;7;66;1;Spese correnti;3;Acquisto di beni e servizi;2;Acquisto di servizi;5;Utenze e canoni;1;Telefonia fissa;2017-05-31;
575;2;"157,94";"191,47";QCOM S.P.A.;ZC11DA97D2;ACCONTO Fatt.n. 000759/PA  del 30/04/2017 CANONE ADSL APRILE 2017;31-05-2017;101803;7;66;1;Spese correnti;3;Acquisto di beni e servizi;2;Acquisto di servizi;5;Utenze e canoni;1;Telefonia fissa;2017-05-31;
576;1;"22,56";"129,51";SOENERGY S.R.L.;6432016B81;ACCONTO FATT.N. 171059215  DEL 10/04/2017 FORNITURA GAS ALLOGGIO COMUNALE -MARZO 2017;31-05-2017;101503;6;77;1;Spese correnti;3;Acquisto di beni e servizi;2;Acquisto di servizi;5;Utenze e canoni;6;Gas;2017-05-31;
576;2;"107,95";"129,51";SOENERGY S.R.L.;6432016B81;ACCONTO FATT.N. 171059215  DEL 10/04/2017 FORNITURA GAS ALLOGGIO COMUNALE -MARZO 2017;31-05-2017;101503;6;77;1;Spese correnti;3;Acquisto di beni e servizi;2;Acquisto di servizi;5;Utenze e canoni;6;Gas;2017-05-31;
577;1;"111,45";"619,88";SOENERGY S.R.L.;6432016B81;ACCONTO FATT.N. 171059216 DEL 10/04/2017 FORNITURA GAS RISCALDAMENTO IMPIANTI SPORTIVI MARZO 2017;31-05-2017;106203;1;95;1;Spese correnti;3;Acquisto di beni e servizi;2;Acquisto di servizi;5;Utenze e canoni;6;Gas;2017-05-31;
577;2;"507,43";"619,88";SOENERGY S.R.L.;6432016B81;ACCONTO Fatt.n. 171059216  del 10/04/2017 FORNITURA GAS RISCALDAMENTO IMPIANTI SPORTIVI MARZO 2017;31-05-2017;106203;1;95;1;Spese correnti;3;Acquisto di beni e servizi;2;Acquisto di servizi;5;Utenze e canoni;6;Gas;2017-05-31;
578;1;"390,24";"2.165,88";SOENERGY S.R.L.;6432016B81;ACCONTO FATT.N.171059212  DEL10/04/2017 FORNITURA GAS UFFICI COMUNALI -FEB MARZO E CONGUAGLIO 1.2.16/31.1.17;31-05-2017;101803;7;76;1;Spese correnti;3;Acquisto di beni e servizi;2;Acquisto di servizi;5;Utenze e canoni;6;Gas;2017-05-31;
578;2;"1.775,64";"2.165,88";SOENERGY S.R.L.;6432016B81;ACCONTO Fatt.n. 171059212  del 10/04/2017 FORNITURA GAS UFFICI COMUNALI -FEB MARZO E CONGUAGLIO 1.2.16/31.1.17;31-05-2017;101803;7;76;1;Spese correnti;3;Acquisto di beni e servizi;2;Acquisto di servizi;5;Utenze e canoni;6;Gas;2017-05-31;
579;1;"609,54";"3.375,49";SOENERGY S.R.L.;6432016B81;ACCONTO FATT.N.171059214  DEL 10/04/2017 FORNITURA GAS RISCALDAMENTO SC.PRIMARIA ENDINE MARZO 2017;31-05-2017;104203;2;78;1;Spese correnti;3;Acquisto di beni e servizi;2;Acquisto di servizi;5;Utenze e canoni;6;Gas;2017-05-31;
579;2;"2.767,95";"3.375,49";SOENERGY S.R.L.;6432016B81;ACCONTO FATT.N.171059214 DEL 10/04/2017 FORNITURA GAS RISCALDAMENTO SC.PRIMARIA ENDINE MARZO 2017;31-05-2017;104203;2;78;1;Spese correnti;3;Acquisto di beni e servizi;2;Acquisto di servizi;5;Utenze e canoni;6;Gas;2017-05-31;
580;1;"89,97";"494,24";SOENERGY S.R.L.;6432016B81;ACCONTO Fatt.n. 171059213  del 10/04/2017 FORNITURA GAS RISCALDAMENTO SC.PRIMARIA ROVA MARZO 2017 E CONGUAGLIO FEBBRAIO 2017;31-05-2017;104203;2;78;1;Spese correnti;3;Acquisto di beni e servizi;2;Acquisto di servizi;5;Utenze e canoni;6;Gas;2017-05-31;
580;2;"405,27";"494,24";SOENERGY S.R.L.;6432016B81;ACCONTO Fatt.n. 171059213  del 10/04/2017 FORNITURA GAS RISCALDAMENTO SC.PRIMARIA ROVA MARZO 2017 E CONGUAGLIO FEBBRAIO 2017;31-05-2017;104203;2;78;1;Spese correnti;3;Acquisto di beni e servizi;2;Acquisto di servizi;5;Utenze e canoni;6;Gas;2017-05-31;
582;1;"198,00";"198,00";VIVAI CARRARA DI CARRARA GIOVANNI;Z521E55392;SALDO FATT.N. 15/A DEL 09/05/2017 FORNITURA CORONE DI ALLORO E CIOTOLE FIORI 25 APRILE 2017;06-06-2017;101102;4;135;1;Spese correnti;3;Acquisto di beni e servizi;1;Acquisto di beni;2;Altri beni di consumo;999;Altri beni e materiali di consumo n.a.c.;2017-06-06;
583;1;"387,60";"387,60";ANAS COMPARTIMENTO VIABILITA' MILANO;Z001EE099B;SALDO Fatt.n. 0074000918  del 09/05/2017 SS.42 MEZZA MARATONA LA 10 MIGLIA DEL CASTELLO- SPESE ISTRUTTORIA E SOPRALLUOGO;06-06-2017;103103;3;179;1;Spese correnti;3;Acquisto di beni e servizi;2;Acquisto di servizi;99;Altri servizi;999;Altri servizi diversi n.a.c.;2017-06-06;
584;1;"4.987,36";"4.987,36";DUEFFE SERVIZI S.R.L.;Z0D1A6E8E7;SALDO FATT.N. 2/PA  DEL 08/05/2017 GESTIONE CIMITERI SECONDO TRIMESTRE 2017;06-06-2017;110503;2;18;1;Spese correnti;3;Acquisto di beni e servizi;2;Acquisto di servizi;99;Altri servizi;999;Altri servizi diversi n.a.c.;2017-06-06;
585;1;"2.159,40";"2.159,40";ROMELI GIUSEPPE -;Z9E1BD41CD;SALDO FATT.N.1E  DEL 28/02/2017 SALDO PULIZIA NEVE STAGIONE INVERNALE  2016/2017;06-06-2017;108103;3;315;1;Spese correnti;3;Acquisto di beni e servizi;2;Acquisto di servizi;13;Servizi ausiliari per il funzionamento dell'ente;999;Altri servizi ausiliari n.a.c.;2017-06-06;
586;1;"46,59";"46,59";IREN MERCATO S.P.A.;7028434F34;Fatt.n. 011740067713 del 15/05/2017 sc. 15/06/2017 EN.ELETTRICA ALLOGGIO COMUNALE - B.ALIMENTARE - APRILE 2017;06-06-2017;101503;6;101;1;Spese correnti;3;Acquisto di beni e servizi;2;Acquisto di servizi;5;Utenze e canoni;4;Energia elettrica;2017-06-06;
587;1;"260,60";"260,60";IREN MERCATO S.P.A.;7028434F34;Fatt.n. 011740067707 del 15/05/2017 sc. 15/06/2017 EN.ELETTRICA UFFICI - APRILE;06-06-2017;101803;7;100;1;Spese correnti;3;Acquisto di beni e servizi;2;Acquisto di servizi;5;Utenze e canoni;4;Energia elettrica;2017-06-06;
588;1;"715,66";"715,66";IREN MERCATO S.P.A.;7028434F34;Fatt.n. 011730003837 del 16/05/2017 sc. 16/06/2017 ENERGIA ELETTRICA SC.PRIMARIA - VIA MADONNA BUON CONSIGLIO - MARZO APRILE 2017;06-06-2017;104203;2;103;1;Spese correnti;3;Acquisto di beni e servizi;2;Acquisto di servizi;5;Utenze e canoni;4;Energia elettrica;2017-06-06;
589;1;"270,33";"270,33";IREN MERCATO S.P.A.;7028434F34;Fatt.n. 011740067711 del 15/05/2017 sc. 15/06/2017 ENERGIA ELETTRICA EDIF.SCOLASTICO VIA PARTIGIANI - APRILE 2017 -;06-06-2017;104303;1;104;1;Spese correnti;3;Acquisto di beni e servizi;2;Acquisto di servizi;5;Utenze e canoni;4;Energia elettrica;2017-06-06;
590;1;"350,75";"350,75";IREN MERCATO S.P.A.;7028434F34;Fatt.n. 011740067712 del 15/05/2017 sc. 15/06/2017 EN.ELETTRICA IMPIANTI SPORTIVI - APRILE 2017;06-06-2017;106203;1;107;1;Spese correnti;3;Acquisto di beni e servizi;2;Acquisto di servizi;5;Utenze e canoni;4;Energia elettrica;2017-06-06;
591;1;"61,32";"61,32";IREN MERCATO S.P.A.;7028434F34;Fatt.n. 011740067708 del 15/05/2017 sc. 15/06/2017 ENERGIA ELETTRICA MAGAZZINO - APRILE 2017;06-06-2017;108103;1;102;1;Spese correnti;3;Acquisto di beni e servizi;2;Acquisto di servizi;5;Utenze e canoni;4;Energia elettrica;2017-06-06;
592;1;"593,03";"5.828,79";IREN MERCATO S.P.A.;7028434F34;Fatt.n. 011740067709 del 15/05/2017 sc. 15/06/2017 ENERGIA ELETTRICA I.P. VIA V.FONTANE - APRILE;06-06-2017;108203;1;109;1;Spese correnti;3;Acquisto di beni e servizi;2;Acquisto di servizi;5;Utenze e canoni;4;Energia elettrica;2017-06-06;
592;2;"5.235,76";"5.828,79";IREN MERCATO S.P.A.;7028434F34;Fatt.n. 011740067706 del 15/05/2017 sc. 15/06/2017 ENERGIA ELETTRICA I.P. VIA FANOVO -APRILE 2017 -;06-06-2017;108203;1;109;1;Spese correnti;3;Acquisto di beni e servizi;2;Acquisto di servizi;5;Utenze e canoni;4;Energia elettrica;2017-06-06;
593;1;"160,87";"160,87";IREN MERCATO S.P.A.;7028434F34;Fatt.n. 011740067714 del 15/05/2017 sc. 15/06/2017 EN.ELETTRICA PIATTAFORMA ECOLOGICA - APRILE 2017;06-06-2017;109503;6;105;1;Spese correnti;3;Acquisto di beni e servizi;2;Acquisto di servizi;5;Utenze e canoni;4;Energia elettrica;2017-06-06;
594;1;"197,20";"197,20";IREN MERCATO S.P.A.;7028434F34;Fatt.n. 011740067710 del 15/05/2017 sc. 15/06/2017 ENERGIA ELETTRICA IMPIANTO ITTIOGENICO - APRILE 2017;06-06-2017;109603;5;108;1;Spese correnti;3;Acquisto di beni e servizi;2;Acquisto di servizi;5;Utenze e canoni;4;Energia elettrica;2017-06-06;
595;1;"399,22";"399,22";IREN MERCATO S.P.A.;7028434F34;FATT.N. 011730003836 DEL 16/05/2017 SC. 16/06/2017 EN.ELETTRICA CIMITERO VIA MONTE SANTO - MARZO APRILE 2017;06-06-2017;110503;4;106;1;Spese correnti;3;Acquisto di beni e servizi;2;Acquisto di servizi;5;Utenze e canoni;4;Energia elettrica;2017-06-06;
596;1;"1.440,00";"1.440,00";A.V.A.E ONLUS ASS.NE VOLONTARI AIUTO EXTRACOMUNITARI; ;CONTRIBUTO PER TRASPORTI DERRATE ALIMENTARI - ANNO 2017;06-06-2017;110405;5;143;1;Spese correnti;4;Trasferimenti correnti;4;Trasferimenti correnti a Istituzioni Sociali Private;1;Trasferimenti correnti a Istituzioni Sociali Private;1;Trasferimenti correnti a Istituzioni Sociali Private;2017-06-06;
597;1;"1.420,00";"1.420,00";ASS.NE BANCO ALIMENT.DELLA  LOMBARDIA "DANILO FOSSATI"; ;CONTRIBUTO PER FORNITURA GRATUITA PRODOTTI ALIMENTARI - ANNO 2016;06-06-2017;110405;5;144;1;Spese correnti;4;Trasferimenti correnti;4;Trasferimenti correnti a Istituzioni Sociali Private;1;Trasferimenti correnti a Istituzioni Sociali Private;1;Trasferimenti correnti a Istituzioni Sociali Private;2017-06-06;
598;1;"927,30";"927,30";AMMINISTRATORI; ;INDENNITA' DI CARICA AL SINDACO -GIUGNO 2017 -;08-06-2017;101103;1;5;1;Spese correnti;3;Acquisto di beni e servizi;2;Acquisto di servizi;1;Organi e incarichi istituzionali dell'amministrazione;1;Organi istituzionali dell'amministrazione - Indennit�;2017-06-08;
599;1;"1.066,39";"1.066,39";AMMINISTRATORI; ;INDENNITA' DI FUNZIONE AGLI ASSESSORI - GIUGNO 2017 -;08-06-2017;101103;2;6;1;Spese correnti;3;Acquisto di beni e servizi;2;Acquisto di servizi;1;Organi e incarichi istituzionali dell'amministrazione;1;Organi istituzionali dell'amministrazione - Indennit�;2017-06-08;
645;1;"1.162,15";"1.162,15";VISIOLI CARLA; ;SALDO FATT.N. 1  DEL 01/05/2017 COMPENSO PER PRESTAZIONI PROFESSIONALI - REVISORE UNICO - 2016;09-06-2017;101103;8;223;1;Spese correnti;3;Acquisto di beni e servizi;2;Acquisto di servizi;1;Organi e incarichi istituzionali dell'amministrazione;8;"Compensi agli organi istituzionali di revisione, di controllo ed altri incarichi istituzionali dell'amministrazione";2017-06-09;
648;1;"600,00";"600,00";BRESCIANI ILARIO; ;REALIZZ.PISTA CICLABILE GERU ROVA - LIQUIDAZIONE PARTICELLA 4240 (EX PORZIONE 1669) CATASTO TERRENI CENS.ENDINE FOGLIO 9 PROV..LIQUID. SETT.TECNICO N. 2/2017;12-06-2017;208101;22;348;2;Spese in conto capitale;2;Investimenti fissi lordi e acquisto di terreni;1;Beni materiali;9;Beni immobili;13;Altre vie di comunicazione;2017-06-12;
649;1;"17.000,00";"17.000,00";TAVIANI ENRICO (EREDE ZAMBETTI CESARE); ;PISTA CICLABILE GERU ROVA - PARTICELLE  958-609-796-1771 FOGLIO 9- PROVV. LIQUIDAZIONE SETT.TECNICO - N.2/2017;12-06-2017;208101;22;348;2;Spese in conto capitale;2;Investimenti fissi lordi e acquisto di terreni;1;Beni materiali;9;Beni immobili;13;Altre vie di comunicazione;2017-06-12;
652;1;"12,08";"67,00";KUWAIT PETROLEUM ITALIA SPA;Z2A1A2F9EF;ACCONTO FATT.N. PJ00076458  DEL 30/04/2017 CARBURANTI MESE APRILE 2017;15-06-2017;108102;2;20;1;Spese correnti;3;Acquisto di beni e servizi;1;Acquisto di beni;2;Altri beni di consumo;2;"Carburanti, combustibili e lubrificanti";2017-06-15;
652;2;"55,92";"67,00";KUWAIT PETROLEUM ITALIA SPA;Z2A1A2F9EF;ACCONTO FATT.N. PJ00076458  DEL 30/04/2017 CARBURANTI MESE APRILE 2017;15-06-2017;108102;2;20;1;Spese correnti;3;Acquisto di beni e servizi;1;Acquisto di beni;2;Altri beni di consumo;2;"Carburanti, combustibili e lubrificanti";2017-06-15;
653;1;"75,25";"417,29";KUWAIT PETROLEUM ITALIA SPA;Z2A1A2F9EF;ACCONTO FATT.N.PJ00076458  DEL 30/04/2017 CARBURANTI MESE DI APRILE 2017;15-06-2017;103102;2;21;1;Spese correnti;3;Acquisto di beni e servizi;1;Acquisto di beni;2;Altri beni di consumo;2;"Carburanti, combustibili e lubrificanti";2017-06-15;
653;2;"342,04";"417,29";KUWAIT PETROLEUM ITALIA SPA;Z2A1A2F9EF;ACCONTO Fatt.n. PJ00076458  del 30/04/2017 Carburanti mese Aprile 2017;15-06-2017;103102;2;21;1;Spese correnti;3;Acquisto di beni e servizi;1;Acquisto di beni;2;Altri beni di consumo;2;"Carburanti, combustibili e lubrificanti";2017-06-15;
654;1;"5,50";"5,50";TESORIERE COMUNALE BANCO BPM; ;SPESE SERVIZIO TESORERIA -COMMISSIONI NR.3 BOLLETTINI POSTALI- CPRE N. 668 DEL 16.6.17;19-06-2017;101303;5;187;1;Spese correnti;3;Acquisto di beni e servizi;2;Acquisto di servizi;17;Servizi finanziari;2;Oneri per servizio di tesoreria;2017-06-19;
655;1;"1.643,80";"1.643,80";PROVINCIA DI BERGAMO; ;QUOTA PROV.LE - VERSAMENTO ACCONTO DITTA CANTAMESSA PER MATERIALE CAVATO NELL'ANNO 2016;19-06-2017;101405;2;188;1;Spese correnti;4;Trasferimenti correnti;1;Trasferimenti correnti a Amministrazioni Pubbliche;2;Trasferimenti correnti a Amministrazioni Locali;2;Trasferimenti correnti a Province;2017-06-19;
657;1;"14.400,00";"15.000,00";SCUOLA MATERNA PARROCCHIALE "CASA DEI BIMBI"; ;CONTRIBUTO ALLA SCUOLA MATERNA PARROCCHIALE - ANNO 2017 - 2^ RATA;19-06-2017;104105;1;65;1;Spese correnti;4;Trasferimenti correnti;4;Trasferimenti correnti a Istituzioni Sociali Private;1;Trasferimenti correnti a Istituzioni Sociali Private;1;Trasferimenti correnti a Istituzioni Sociali Private;2017-06-19;
657;2;"600,00";"15.000,00";SCUOLA MATERNA PARROCCHIALE "CASA DEI BIMBI"; ;CONTRIBUTO ALLA SCUOLA MATERNA PARROCCHIALE - ANNO 2017 - 2^ RATA;19-06-2017;104105;1;65;1;Spese correnti;4;Trasferimenti correnti;4;Trasferimenti correnti a Istituzioni Sociali Private;1;Trasferimenti correnti a Istituzioni Sociali Private;1;Trasferimenti correnti a Istituzioni Sociali Private;2017-06-19;
659;1;"217,76";"2.460,02";POSTE ITALIANE SPA;Z5D1D957B5;Fatt.n. 8717153546 del 24/05/2017  FATTURA SPEDIZIONI POSTALI -GENNAIO 2017-B=031617871715354662;20-06-2017;101203;21;74;1;Spese correnti;3;Acquisto di beni e servizi;2;Acquisto di servizi;16;Servizi amministrativi;2;Spese postali;2017-06-20;
659;2;"2.243,26";"2.460,02";POSTE ITALIANE SPA;Z5D1D957B5;Fatt.n. 8717153597 del 24/05/2017  SPESE DI SPEDIZIONE - FEBBRAIO 2017 B=031617871715359720;20-06-2017;101203;21;74;1;Spese correnti;3;Acquisto di beni e servizi;2;Acquisto di servizi;16;Servizi amministrativi;2;Spese postali;2017-06-20;
660;1;"344,01";"344,01";SERVIZIO ELETTRICO NAZIONALE;7028434F34;Fatt.n. 166790310304439 del 10/05/2017  ENERGIA ELETTRICA ALLOGGIO COMUNALE - BIMESTRE APR 2017 MAGGIO 2017;20-06-2017;101503;6;130;1;Spese correnti;3;Acquisto di beni e servizi;2;Acquisto di servizi;5;Utenze e canoni;4;Energia elettrica;2017-06-20;
661;1;"8.579,14";"8.579,14";MABB S.R.L.;66409247D0;Fatt.n. 126/2 del 31/05/2017 - TRASPORTO SCOLASTICO MESE DI MAGGIO 2017;20-06-2017;104503;1;156;1;Spese correnti;3;Acquisto di beni e servizi;2;Acquisto di servizi;15;Contratti di servizio pubblico;2;Contratti di servizio di trasporto scolastico;2017-06-20;
662;1;"197,14";"1.141,88";GRAPHICSCALVE S.P.A.;Z191E9CF0B;SALDO Fatt.n. 000097-0CPA  del 31/05/2017 BOLLETTAZIONE IMU;20-06-2017;101403;1;154;1;Spese correnti;3;Acquisto di beni e servizi;2;Acquisto di servizi;13;Servizi ausiliari per il funzionamento dell'ente;4;Stampa e rilegatura;2017-06-20;
662;2;"366,00";"1.141,88";GRAPHICSCALVE S.P.A.;Z191E9CF0B;SALDO Fatt.n. 000113-0CPA  del 31/05/2017 ATTIVAZIONE PROCEDURA STAMPA IMU 2017;20-06-2017;101403;1;154;1;Spese correnti;3;Acquisto di beni e servizi;2;Acquisto di servizi;13;Servizi ausiliari per il funzionamento dell'ente;4;Stampa e rilegatura;2017-06-20;
662;3;"578,74";"1.141,88";GRAPHICSCALVE S.P.A.;Z191E9CF0B;SALDO Fatt.n. 000098-0CPA  del 31/05/2017 SERVIZIO POSTALIZZAZIONE IMU;20-06-2017;101403;1;154;1;Spese correnti;3;Acquisto di beni e servizi;2;Acquisto di servizi;13;Servizi ausiliari per il funzionamento dell'ente;4;Stampa e rilegatura;2017-06-20;
663;1;"36,20";"201,73";QCOM S.P.A.;ZC11DA97D2;ACCONTO Fatt.n. 000978/PA  del 31/05/2017 CANONE ADSL E TRAFFICO TELEFONICO - MAGGIO 2017;30-06-2017;101803;7;66;1;Spese correnti;3;Acquisto di beni e servizi;2;Acquisto di servizi;5;Utenze e canoni;1;Telefonia fissa;2017-06-30;
663;2;"165,53";"201,73";QCOM S.P.A.;ZC11DA97D2;ACCONTO Fatt.n. 000978/PA  del 31/05/2017 CANONE ADSL E TRAFFICO TELEFONICO - MAGGIO 2017;30-06-2017;101803;7;66;1;Spese correnti;3;Acquisto di beni e servizi;2;Acquisto di servizi;5;Utenze e canoni;1;Telefonia fissa;2017-06-30;
664;1;"63,35";"351,31";SOENERGY S.R.L.;6432016B81;ACCONTO Fatt.n. 171093235  del 12/05/2017 FORNITURA GAS PER RISCALDAMENTO UFFICI COMUNALI -APRILE E CONGUAGLIO MARZO 2017;30-06-2017;101803;7;76;1;Spese correnti;3;Acquisto di beni e servizi;2;Acquisto di servizi;5;Utenze e canoni;6;Gas;2017-06-30;
664;2;"288,96";"351,31";SOENERGY S.R.L.;6432016B81;ACCONTO FATT.N. 171093235  DEL 12/05/2017 FORNITURA GAS PER RISCALDAMENTO UFFICI COMUNALI -APRILE E CONGUAGLIO MARZO 2017;30-06-2017;101803;7;76;1;Spese correnti;3;Acquisto di beni e servizi;2;Acquisto di servizi;5;Utenze e canoni;6;Gas;2017-06-30;
665;1;"56,70";"309,90";SOENERGY S.R.L.;6432016B81;ACCONTO Fatt.n. 171093236  del 12/05/2017 FORNITURA GAS PER RISCALDAMENTO SCUOLA PRIMARIA ROVA - APRILE E CONGUALGIO MARZO 2017;30-06-2017;104203;2;78;1;Spese correnti;3;Acquisto di beni e servizi;2;Acquisto di servizi;5;Utenze e canoni;6;Gas;2017-06-30;
665;2;"253,20";"309,90";SOENERGY S.R.L.;6432016B81;ACCONTO Fatt.n. 171093236  del 12/05/2017 FORNITURA GAS PER RISCALDAMENTO SCUOLA PRIMARIA ROVA - APRILE E CONGUALGIO MARZO 2017;30-06-2017;104203;2;78;1;Spese correnti;3;Acquisto di beni e servizi;2;Acquisto di servizi;5;Utenze e canoni;6;Gas;2017-06-30;
666;1;"34,59";"186,26";SOENERGY S.R.L.;6432016B81;ACCONTO FATT.N. 171093234  DEL 12/05/2017 FORNITURA GAS PER RISCALDAMENTO IMPIANTI SPORTIVI - PERIODO APRILE E CONGUAGLIO MARZO 2017;30-06-2017;106203;1;95;1;Spese correnti;3;Acquisto di beni e servizi;2;Acquisto di servizi;5;Utenze e canoni;6;Gas;2017-06-30;
666;2;"153,67";"186,26";SOENERGY S.R.L.;6432016B81;ACCONTO FATT.N. 171093234  DEL 12/05/2017 FORNITURA GAS PER RISCALDAMENTO IMPIANTI SPORTIVI - PERIODO APRILE E CONGUAGLIO MARZO 2017;30-06-2017;106203;1;95;1;Spese correnti;3;Acquisto di beni e servizi;2;Acquisto di servizi;5;Utenze e canoni;6;Gas;2017-06-30;
667;1;"16,07";"89,16";SOENERGY S.R.L.;6432016B81;ACCONTO FATT.N. 171093233  DEL 12/05/2017 FORNITURA GAS PER RISCALDAMENTO ALLOGGIO COMUNALE -APRILE E CONGUAGLIO MARZO 2017;30-06-2017;101503;6;77;1;Spese correnti;3;Acquisto di beni e servizi;2;Acquisto di servizi;5;Utenze e canoni;6;Gas;2017-06-30;
667;2;"73,09";"89,16";SOENERGY S.R.L.;6432016B81;ACCONTO FATT.N. 171093233  DEL 12/05/2017 FORNITURA GAS PER RISCALDAMENTO ALLOGGIO COMUNALE -APRILE E CONGUAGLIO MARZO 2017;30-06-2017;101503;6;77;1;Spese correnti;3;Acquisto di beni e servizi;2;Acquisto di servizi;5;Utenze e canoni;6;Gas;2017-06-30;
668;1;"6.659,67";"14.116,20";CASSA DEPOSITI E PRESTITI; ;Rata Interessi 1^Sem. 30-06-2017 RIQUALIFICAZIONE URBANA CENTRO STORICO ROVA;30-06-2017;108106;2;3;1;Spese correnti;7;Interessi passivi;5;Interessi su Mutui e altri finanziamenti a medio lungo termine;5;Interessi passivi su mutui e altri finanziamenti a medio lungo termine ad altri soggetti;999;Interessi passivi su mutui e altri finanziamenti a medio lungo termine ad altri soggetti;2017-06-30;
668;2;"7.458,53";"14.116,20";CASSA DEPOSITI E PRESTITI; ;Rata Interessi 1^Sem. 30-06-2017PIAZZA SAN MICHELE IN FRAZIONE S.FELICE;30-06-2017;108106;2;3;1;Spese correnti;7;Interessi passivi;5;Interessi su Mutui e altri finanziamenti a medio lungo termine;5;Interessi passivi su mutui e altri finanziamenti a medio lungo termine ad altri soggetti;999;Interessi passivi su mutui e altri finanziamenti a medio lungo termine ad altri soggetti;2017-06-30;
669;1;"1.625,78";"6.499,09";CASSA DEPOSITI E PRESTITI; ;RATA INTERESSI 1^SEM. 30-06-2017 RETE IDRICA P.ZA IV NOVEMBRE FOGNATURA ZONA JOLLY C.;30-06-2017;109406;1;4;1;Spese correnti;7;Interessi passivi;5;Interessi su Mutui e altri finanziamenti a medio lungo termine;5;Interessi passivi su mutui e altri finanziamenti a medio lungo termine ad altri soggetti;999;Interessi passivi su mutui e altri finanziamenti a medio lungo termine ad altri soggetti;2017-06-30;
669;2;"2.012,62";"6.499,09";CASSA DEPOSITI E PRESTITI; ;RATA INTERESSI 1^SEM. 30-06-2017 RETE FOGNARIA SEPARATA IN LOCALITA' PURA;30-06-2017;109406;1;4;1;Spese correnti;7;Interessi passivi;5;Interessi su Mutui e altri finanziamenti a medio lungo termine;5;Interessi passivi su mutui e altri finanziamenti a medio lungo termine ad altri soggetti;999;Interessi passivi su mutui e altri finanziamenti a medio lungo termine ad altri soggetti;2017-06-30;
669;3;"2.863,69";"6.499,09";CASSA DEPOSITI E PRESTITI; ;RATA INTERESSI 1^SEM 30-06-2017 RETE FOGNARIA TRA V. S. ANTONIO E CIMITERO ENDINE;30-06-2017;109406;1;4;1;Spese correnti;7;Interessi passivi;5;Interessi su Mutui e altri finanziamenti a medio lungo termine;5;Interessi passivi su mutui e altri finanziamenti a medio lungo termine ad altri soggetti;999;Interessi passivi su mutui e altri finanziamenti a medio lungo termine ad altri soggetti;2017-06-30;
